Workbook

Sheet Version Log (hidden)
A1: Version | B1: Changes | C1: Changes By | D1: Requested By | E1: Sign off | F1: Effective date
A2: 22.15 | B2: New, revamped serviceability calculator | E2: Brock Ford, Dave Melville, Melissa Christy, Paul Herbert | F2: 2022-08-25
A3: 22.15 (v2) | B3: - Will not show NMS result if expenses not entered (additional or living) - Will not show serviceability outcome (pass/fail) if NMS, DTI or LVR = blank - Will not show outcome if no loan or security details entered, and warning note given - Fix of rare date error in income assessor, where monthly pay and first pay is <2 weeks into year. This was an undiscovered issue on the old calculator - Removed blocker on 'future date' in PAYG calc - Defaulted ownerships to 100% in rental and debt screens | E3: Patrick Song | F3: 2022-08-26
A4: 22.15 (v3) | B4: - Allow decimal for loan term on main screen - Allow negative amounts in self-employed calculator - Add in OO (other) and INV (other) as purpose types - Removed drop-down list for IO period, and allowed decimal places - Removed 'name' as a missing piece of info | E4: Evan Hughes | F4: 2022-08-29
A5: 22.16 | B5: - Added 'bi-monthly' as a payment cycle | E5: Evan Hughes | F5: 2022-08-30
A6: 22.17 | B6: - Fixed error with monthly pay cycle (no. pay periods) - Made rental income in Summary tab gross, not discounted - Further info to advise to complete relationship info, otherwise expenses don't compare to HEM - Fix to Summary (NTBS) screen to change rental and foreign income amounts to gross (pre-discount) | E6: Patrick Song | F6: 2022-08-31
A7: 22.17 (v2) | B7: - Fixed Summary screen (NMS and loan calculations) - Update Edit/Publish macros to properly hide data tabs - Summary button will make tabs appear (non-data ones) - Existing debt ID is now free text - Excluded 'name' in the missing information Y/N formula | E7: Evan Hughes | F7: 2022-09-02
A8: 22.18 (TO DO) | B8: - Further fixes to pay periods - using a matrix for bi-monthly and monthly - calculation is updated & new tab for pay periods created - Providing assessors access to background data in the income assessor to understand calculation (with supporting notes for what each cell does) - New BPMS button that displays tabs and instructs how to save in xlsx format. Is this needed? - Fix ML formula post Christian confirmation (maybe AG too)
A9: 22.18 | B9: - Fixed 'approximate' wording in assessment summary - Amended column widths in rental income and existing debt screens - Slightly altered wording in 'new loan - yes/no' in rental income screen - Message on front page to remind users to enable macros before proceeding - Income assessor: reduced column widths and placed reminder to enable macros if not all apps visible - Note on income assessor (2) that it will get added to main screen - Changed HECS calc to not incl rental, inv for foreign (DM to confirm if we keep this); test before live -Changed Summary (AOL) to Summary (NTBS) - First date of financial year - change note to 'payslip period end date of first payslip this year' (ENSURE BDMs are aware of this change & why - both dates need to be payslip period end date) - Added note on existing debt screen to assist where rental debt has multi splits - Further fixes to pay periods - using a matrix for monthly - calc is updated & new tab for pay periods created - Providing assessors access to background data in the income assessor to understand calculation (with supporting notes for what each cell does). - Fixed ML formula so it's based off actual remaining ML period - Fixed minor error in PAYG calc where quoted non-base was exactly the same as calculated non-base | E9: Patrick Song | F9: 2022-09-08
A10: 22.18 (v2) | B10: - Minor fix to HECS calculation on deductions section | E10: Evan Hughes | F10: 2022-09-09
A11: 22.18 (v3) | B11: - Not showing smiley/sad face until PASS/FAIL is given - Fixed description of YTD non-base - Re-sized some comment boxes to make them more visible - Shifted some 'back to home' and 'clear' buttons as they sometimes became hidden
A12: 22.19 | B12: - Change negative gearing rate to 3.98% - HEM Update to Q2-2022 - Added PRINT ASSESSMENT buttons which PDFs the serviceability worksheet - Added note to manual entry section that input should not be discounted - Updated references in serviceability summary to point to names - Update serviceability calculations sheet notes/comments | E12: Patrick Song | F12: 2022-09-23
A13: 22.2 | B13: - Fix to error where HEM wasn’t being calculated | E13: Evan Hughes | F13: 2022-09-26
A14: 22.21 | B14: - Changes to use borrower level CDLE vs HEM | E14: Patrick Song | F14: 2022-10-24
A15: 22.22 (v1) | B15: - Added additional S/E sheets (can now do up to 5) - Set print area for main screen to be on one page | E15: Evan Hughes
A16: 22.22 (v1) | B16: - Added "BNPL" to Credit Card Limit (Customer view page) - Replaced HECS tick box with "HECS amount still owing (Customer view page) - Updated formula to use minimum of HECS amount still owing, and calculated value of HECS requirements based on income brackets (Serviceability calculations) - Updated macro to clear HECS amount still owing inputs from Customer view page - Included Customer declared HECS amount in the DTI calculations - Freeze panes to allow viewing of supporting calculations without having to scroll back and forth | C16: Hanh Tran (with Evan Hughes) | E16: Evan Hughes Aldwin Calubad | F16: 2022-12-12
A17: 22.22 (v2) | B17: Minor changes (from recommended changes in backlog): - All pages accessible by public: Updated print layout. - Customer view page tab: Added link to Master Limit info on AMP Distributor site. - Income Assessor & Income Assessor (2) tabs: Added/updated buttons to toggle between main and 2nd PAYG income assessors. Added link to credit policy. - All Self Employed Income, Rental Income tabs: Added link to credit policy - Foreign income tab: Updated policy wording to note max LVR and new to bank clients must be living and working in Australia. Added link to credit policy. - Existing debt tab: Data validation to restrict numerical values only in remaining IO term field | C17: Hanh Tran | E17: Not required as cosmetic changes only | F17: 2022-12-20
A18: 23.01 | B18: -Updated HEM table. Note that income brackets have also been updated. -Remove data validation requirement of <$10k for splits (to allow for top up scenarios) -Updated "See interest rates" link to 2023 | C18: Hanh Tran | E18: Sergio Martin | F18: 2023-03-17
A19: 23.02 | B19: -Updates in the rental income section to allow user input of actual interest rates for deductibility (previously known as Negative Gearing). Addition of 4 additional restricted postcodes in QLD -Increased “floor rate’ from 5.10% to 6.00% | C19: Warren Tappe | E19: Sergio Martin (req) Aldwin Calubad Evan Hughes (req) | F19: 2023-05-25
A20: 23.03 | B20: Summary (NTBS) - Missing formula reference when calculating rental income on 2 property in list Existing Debt – in other debt table, corrected loan type list Existing Debt – Correction 3% buffer added to personal loans HEM Tables Updated | C20: Warren Tappe | E20: Lakmal - Testing Sergio | F20: 2023-06-20
A21: 23.04 | B21: HECS Repayment Rates SGC Rates Corrected rental zone names | C21: Warren Tappe | E21: Lakmal - Testing Sergio | F21: 2023-07-24
A22: 23.05 | B22: HEM Tables - also minor correction to formula picking up ount of existing debts | C22: Warren Tappe | E22: Lakmal - Testing Sergio | F22: 2023-09-15
A23: 23.06 | B23: HEM Tables Repayment Assesment Rate Postcode updates Button formatting | C23: Warren Tappe | E23: Lakmal - Testing Sergio | F23: 2023-12-13
A24: 24.01 | B24: HEM Table | C24: Warren Tappe | E24: Lakmal - Testing Sergio | F24: 2024-03-15
A25: 24.02 | B25: NMS to change from $500 to $200 for INV DTI>6, <80% | C25: Warren Tappe | E25: Lakmal - Testing Sergio | F25: 15/03/2024 - Uploaded 26th
A26: 24.03 | B26: LMI - Change to rate bands as well as loading for Self emp and refi purpose | C26: Warren Tappe | E26: Lakmal - Testing Sergio
A27: 24.04 | B27: Tax Rates - SGC - HELP | C27: Warren Tappe | E27: Lakmal - Testing Sergio
A28: 24.05 | B28: HEM - Rental Shading policy changes - Max rental yeild change - Bonus income change - Self Employed 1 year only income | C28: Warren Tappe | E28: Lakmal - Testing Sergio
A29: 24.05 | B29: removed 2 self emp wage types from list (non borrowing trustee/director wages)
A30: 24.06 | B30: 1. Allow option for calculating self employed income if more than 1 year financials is provided. 2. Superannuation contribution rate for previous years included so that self employed income can be calculated based on the year of financials provided | C30: Hanh Tran | E30: Lakmal - Testing Sergio
A31: 24.07 | B31: HEM - 2024Q2 August | C31: Hanh Tran | E31: Lakmal - Testing Sergio
A32: 24.08 | B32: HEM - 2024Q3 November | C32: Hanh | E32: Lakmal - Testing Sergio
A33: 25.01 | B33: HEM - 2024Q4 | C33: Hanh | D33: Lakmal - Testing Sergio
A34: 25.02 | B34: Allow interest only period up to 10 years for ProPack | C34: Hanh | D34: Andy leader (Product Team) | E34: Andy Leader-Requestor Lakmal - Testing Sergio-Owner | F34: 2025-04-01

Sheet Changes backlog (hidden)
A1: Date Recommended | B1: Recommended change | C1: Recommended By | D1: Target Date | E1: Status Update | F1: Updated By | G1: Implemented Date
B2: Show deductions, HECS in a separate 'Apply Online' entry table | D2: Post go live
B3: Make non-taxed income as part of pay cycle | D3: Post go live
B4: Allow master limit to be non-5/10 years (e.g., 7.5). Not a drop down. Can manually allow on exception for now | D4: Quick post live
B5: Foreign income: can we have warning must be residing and living in Australia and max 70% LVR ? | D5: Post go live | E5: Done, however will add max loan amount or add LVR restriction when foreign income has been used in servicing | F5: Hanh Tran
B6: Deductions: how to include leases? | D6: Post go live
B7: Link to credit policy for PAYG/SE income | D7: Post go live | E7: Done | F7: Hanh Tran
B8: Link to master limit info on website | D8: Post go live | E8: Done | F8: Hanh Tran
B9: Have a pop-up on rental/debt screens if no ownership given, and user clicks back to main screen (or have warning on main screen?) | D9: Quick post live
A10: 2022-12-12 | B10: Show only minimum max loan amount (instead of showing max based on LVR and NMS) | C10: Deidre Walker | D10: Q1 2023
A11: 2022-12-15 | B11: can only go to 2nd job by clicking add 2nd job and in that can only go back to main screen ie cant toggle between jobs | C11: Warren Arnott | D11: Q1 2023 | E11: Done | F11: Hanh Tran
A12: 2022-12-20 | B12: Update print settings on all pages | C12: Laura Downer | D12: Q1 2023 | E12: Done | F12: Hanh Tran
A13: 2022-12-20 | B13: Expenses tab: Data validation to allow numerical value only in remaining IO term | C13: Rose Natoli | D13: Q1 2023 | E13: Done | F13: Hanh Tran
A14: 2022-12-20 | B14: Restrict LVR/max loan amount when foreign income added | C14: Hanh Tran | D14: Q1 2023
A15: 2023-02-01 | B15: < $10k limit, to allow for loan increases | C15: Emma Vince | E15: Done | F15: Hanh Tran
A16: 2023-02-01 | B16: LMI premium calculation when Investment (other) purpose is selected, check why LMI doesn't calculate for this purpose | C16: Emma Vince
A17: 2023-02-03 | B17: Lock formatting so users can't drag cells | C17: Heath Timins

Sheet Customer view page
R1: Submission date
F2: AMP Bank Serviceability Calculator
O3: v25.02
B5: Applicant Information | R5: Legend
C6: No. Applicants | E6: Applicant 1 | G6: =IF($C$7>1,"Applicant 2","N/A") -> N/A | I6: =IF($C$7>2,"Applicant 3","N/A") -> N/A | K6: =IF($C$7>3,"Applicant 4","N/A") -> N/A | N6: =IF($C$7>4,"Applicant 5","N/A") -> N/A | O6: =IF($C$7>4,"Applicant 5","") -> 
C7: 1 | D7: Name* | R7: Enter data/choose option
D8: Status (couple or single)* | R8: Auto-calculated
D9: Spouse of?*
D10: Number of dependents
E11: NOTE: only include common dependents under ONE applicant (the first applicant of the couple)
B13: Income
C14: PAYG income | E14: =IF(E7="","Applicant 1",E7) -> Applicant 1 | G14: =IF(G7="",G6,G7) -> N/A | I14: =IF($I$7="",$I$6,$I$7) -> N/A | K14: =IF($K$7="",$K$6,$K$7) -> N/A | N14: =IF($N$7="",$N$6,$N$7) -> N/A
C15: Employment type
C16: Essential services
D17: Pay frequency
D19: Select how you'd like to input the borrower's PAYG income information: | K19: PAYG income assessor
C21: Income assessor | E21: Click button to provide payslip information to automatically calculate serviceable income
D22: Base salary | E22: =IF(OR(K19="PAYG income assessor",K19="Mix of both"),'Income assessor'!$AC5+'Income assessor (2)'!$AC5,0) -> 0 | G22: =IF(OR(K19="PAYG income assessor",K19="Mix of both"),'Income assessor'!$AC6+'Income assessor (2)'!$AC6,0) -> 0 | I22: =IF(OR(K19="PAYG income assessor",K19="Mix of both"),'Income assessor'!$AC7+'Income assessor (2)'!$AC7,0) -> 0 | K22: =IF(OR(K19="PAYG income assessor",K19="Mix of both"),'Income assessor'!$AC8+'Income assessor (2)'!$AC8,0) -> 0 | N22: =IF(OR(K19="PAYG income assessor",K19="Mix of both"),'Income assessor'!$AC9+'Income assessor (2)'!$AC9,0) -> 0 | R22: =IF($K$19="Mix of both","NOTE! Each applicant can only use one of 'income assessor' or 'manual entry' for PAYG","") -> 
D23: Overtime/Commission | E23: =IF(OR($K$19="PAYG income assessor",$K$19="Mix of both"),'Income assessor'!$AL5+'Income assessor (2)'!$AL5,0) -> 0 | G23: =IF(OR($K$19="PAYG income assessor",$K$19="Mix of both"),'Income assessor'!$AL6+'Income assessor (2)'!$AL6,0) -> 0 | I23: =IF(OR($K$19="PAYG income assessor",$K$19="Mix of both"),'Income assessor'!$AL7+'Income assessor (2)'!$AL7,0) -> 0 | K23: =IF(OR($K$19="PAYG income assessor",$K$19="Mix of both"),'Income assessor'!$AL8+'Income assessor (2)'!$AL8,0) -> 0 | N23: =IF(OR($K$19="PAYG income assessor",$K$19="Mix of both"),'Income assessor'!$AL9+'Income assessor (2)'!$AL9,0) -> 0
D25: Non-taxed income | E25: =IF(OR(K19="PAYG income assessor",K19="Mix of both"),'Income assessor'!Q5+'Income assessor (2)'!Q5,0) -> 0 | G25: =IF(OR(K19="PAYG income assessor",K19="Mix of both"),'Income assessor'!Q6+'Income assessor (2)'!Q6,0) -> 0 | I25: =IF(OR(K19="PAYG income assessor",K19="Mix of both"),'Income assessor'!Q7+'Income assessor (2)'!Q7,0) -> 0 | K25: =IF(OR(K19="PAYG income assessor",K19="Mix of both"),'Income assessor'!Q8+'Income assessor (2)'!Q8,0) -> 0 | N25: =IF(OR(K19="PAYG income assessor",K19="Mix of both"),'Income assessor'!Q9+'Income assessor (2)'!Q9,0) -> 0
D26: Bonus income | E26: =IF(OR(K19="PAYG income assessor",K19="Mix of both"),IF('Income assessor'!R5+'Income assessor (2)'!R5<='All data points & rules'!$M$27,('Income assessor'!R5+'Income assessor (2)'!R5)*'All data points & rules'!$N$27,'All data points & rules'!$M$27*'All data points & rules'!$N$27+('Income assessor'!R5+'Income assessor (2)'!R5-'All data points & rules'!$M$27)*'All data points & rules'!$N$28),0) -> 0 | G26: =IF(OR(K19="PAYG income assessor",K19="Mix of both"),IF('Income assessor'!R6+'Income assessor (2)'!R6<='All data points & rules'!$M$27,('Income assessor'!R6+'Income assessor (2)'!R6)*'All data points & rules'!$N$27,'All data points & rules'!$M$27*'All data points & rules'!$N$27+('Income assessor'!R6+'Income assessor (2)'!R6-'All data points & rules'!$M$27)*'All data points & rules'!$N$28),0) -> 0 | I26: =IF(OR(K19="PAYG income assessor",K19="Mix of both"),IF('Income assessor'!R7+'Income assessor (2)'!R7<='All data points & rules'!$M$27,('Income assessor'!R7+'Income assessor (2)'!R7)*'All data points & rules'!$N$27,'All data points & rules'!$M$27*'All data points & rules'!$N$27+('Income assessor'!R7+'Income assessor (2)'!R7-'All data points & rules'!$M$27)*'All data points & rules'!$N$28),0) -> 0 | K26: =IF(OR(K19="PAYG income assessor",K19="Mix of both"),IF('Income assessor'!R8+'Income assessor (2)'!R8<='All data points & rules'!$M$27,('Income assessor'!R8+'Income assessor (2)'!R8)*'All data points & rules'!$N$27,'All data points & rules'!$M$27*'All data points & rules'!$N$27+('Income assessor'!R8+'Income assessor (2)'!R8-'All data points & rules'!$M$27)*'All data points & rules'!$N$28),0) -> 0 | N26: =IF(OR(K19="PAYG income assessor",K19="Mix of both"),IF('Income assessor'!R9+'Income assessor (2)'!R9<='All data points & rules'!$M$27,('Income assessor'!R9+'Income assessor (2)'!R9)*'All data points & rules'!$N$27,'All data points & rules'!$M$27*'All data points & rules'!$N$27+('Income assessor'!R9+'Income assessor (2)'!R9-'All data points & rules'!$M$27)*'All data points & rules'!$N$28),0) -> 0
D27: Investment income | E27: =IF(OR(K19="PAYG income assessor",K19="Mix of both"),('Income assessor'!$AZ5+'Income assessor (2)'!$AZ5)*'All data points & rules'!$M$26,0) -> 0 | G27: =IF(OR(K19="PAYG income assessor",K19="Mix of both"),('Income assessor'!$AZ6+'Income assessor (2)'!$AZ6)*'All data points & rules'!$M$26,0) -> 0 | I27: =IF(OR(K19="PAYG income assessor",K19="Mix of both"),('Income assessor'!$AZ7+'Income assessor (2)'!$AZ7)*'All data points & rules'!$M$26,0) -> 0 | K27: =IF(OR(K19="PAYG income assessor",K19="Mix of both"),('Income assessor'!$AZ8+'Income assessor (2)'!$AZ8)*'All data points & rules'!$M$26,0) -> 0 | N27: =IF(OR(K19="PAYG income assessor",K19="Mix of both"),('Income assessor'!$AZ9+'Income assessor (2)'!$AZ9)*'All data points & rules'!$M$26,0) -> 0
E28: Tip: the above are annual amounts incl discounting/haircutting. See bottom of screen for gross annual amounts to enter in Apply Online
C29: Manual entry (enter non-discounted figures) | E29: Enter base salary, overtime & commission based on the stated pay frequency above. Discounts are auto calculated. Please note: • Two consecutive payslips must be provided to support the figures inputted • The income assessor should be used in most instances. Seek guidance from your BDM if manual entry is needed for your customer
D30: Base salary
D31: Overtime
D32: Commission
D34: Non-taxed income (annual)
D35: Bonus income (annual)
D36: Investment income (annual)
C37: Self-employed income | E37: If an applicant earns self-employed income, click button to provide (up to 5 entities)
D38: Annual amount calculated | E38: =IF(OR('Self-employed Income'!J75=0,'Self-employed Income'!J75=""),0,'Self-employed Income'!J75)+IF(OR('Self-employed Income (2)'!J75=0,'Self-employed Income (2)'!J75=""),0,'Self-employed Income (2)'!J75)+IF(OR('Self-employed Income (3)'!J75=0,'Self-employed Income (3)'!J75=""),0,'Self-employed Income (3)'!J75)+IF(OR('Self-employed Income (4)'!J75=0,'Self-employed Income (4)'!J75=""),0,'Self-employed Income (4)'!J75)+IF(OR('Self-employed Income (5)'!J75=0,'Self-employed Income (5)'!J75=""),0,'Self-employed Income (5)'!J75) -> 0 | G38: =IF(OR('Self-employed Income'!J77=0,'Self-employed Income'!J77=""),0,'Self-employed Income'!J77)+IF(OR('Self-employed Income (2)'!J77=0,'Self-employed Income (2)'!J77=""),0,'Self-employed Income (2)'!J77)+IF(OR('Self-employed Income (3)'!J77=0,'Self-employed Income (3)'!J77=""),0,'Self-employed Income (3)'!J77)+IF(OR('Self-employed Income (4)'!J77=0,'Self-employed Income (4)'!J77=""),0,'Self-employed Income (4)'!J77)+IF(OR('Self-employed Income (5)'!J77=0,'Self-employed Income (5)'!J77=""),0,'Self-employed Income (5)'!J77) -> 0 | I38: =IF(OR('Self-employed Income'!J79=0,'Self-employed Income'!J79=""),0,'Self-employed Income'!J79)+IF(OR('Self-employed Income (2)'!J79=0,'Self-employed Income (2)'!J79=""),0,'Self-employed Income (2)'!J79)+IF(OR('Self-employed Income (3)'!J79=0,'Self-employed Income (3)'!J79=""),0,'Self-employed Income (3)'!J79)+IF(OR('Self-employed Income (4)'!J79=0,'Self-employed Income (4)'!J79=""),0,'Self-employed Income (4)'!J79)+IF(OR('Self-employed Income (5)'!J79=0,'Self-employed Income (5)'!J79=""),0,'Self-employed Income (5)'!J79) -> 0 | K38: =IF(OR('Self-employed Income'!J81=0,'Self-employed Income'!J81=""),0,'Self-employed Income'!J81)+IF(OR('Self-employed Income (2)'!J81=0,'Self-employed Income (2)'!J81=""),0,'Self-employed Income (2)'!J81)+IF(OR('Self-employed Income (3)'!J81=0,'Self-employed Income (3)'!J81=""),0,'Self-employed Income (3)'!J81)+IF(OR('Self-employed Income (4)'!J81=0,'Self-employed Income (4)'!J81=""),0,'Self-employed Income (4)'!J81)+IF(OR('Self-employed Income (5)'!J81=0,'Self-employed Income (5)'!J81=""),0,'Self-employed Income (5)'!J81) -> 0 | N38: =IF(OR('Self-employed Income'!J83=0,'Self-employed Income'!J83=""),0,'Self-employed Income'!J83)+IF(OR('Self-employed Income (2)'!J83=0,'Self-employed Income (2)'!J83=""),0,'Self-employed Income (2)'!J83)+IF(OR('Self-employed Income (3)'!J83=0,'Self-employed Income (3)'!J83=""),0,'Self-employed Income (3)'!J83)+IF(OR('Self-employed Income (4)'!J83=0,'Self-employed Income (4)'!J83=""),0,'Self-employed Income (4)'!J83)+IF(OR('Self-employed Income (5)'!J83=0,'Self-employed Income (5)'!J83=""),0,'Self-employed Income (5)'!J83) -> 0
C39: Other annual income | E39: Tip: enter the above calculated annual amount/s as gross income in Apply Online Do any applicants earn rental or foreign income? Click button to provide
D40: Rental income | E40: =IF('Serviceability calculations'!C24=0,0,'Serviceability calculations'!C24) -> 0 | G40: =IF('Serviceability calculations'!D24=0,0,'Serviceability calculations'!D24) -> 0 | I40: =IF('Serviceability calculations'!E24=0,0,'Serviceability calculations'!E24) -> 0 | K40: =IF('Serviceability calculations'!F24=0,0,'Serviceability calculations'!F24) -> 0 | N40: =IF('Serviceability calculations'!G24=0,0,'Serviceability calculations'!G24) -> 0
D42: Foreign income | E42: =IF('Foreign Income'!E5="",0,'Foreign Income'!E5) -> 0 | G42: =IF('Foreign Income'!E6="",0,'Foreign Income'!E6) -> 0 | I42: =IF('Foreign Income'!E7="",0,'Foreign Income'!E7) -> 0 | K42: =IF('Foreign Income'!E8="",0,'Foreign Income'!E8) -> 0 | N42: =IF('Foreign Income'!E9="",0,'Foreign Income'!E9) -> 0
C43: Deductions | E43: Tip: the above amounts incl. discounting. The information you provided in each screen should be entered in Apply Online Do any applicants have any deductions? Click button to provide
D44: Total monthly deductions | E44: ='Serviceability calculations'!T35 -> 0 | G44: ='Serviceability calculations'!U35 -> 0 | I44: ='Serviceability calculations'!V35 -> 0 | K44: ='Serviceability calculations'!W35 -> 0 | N44: ='Serviceability calculations'!X35 -> 0
D45: Total annual deductions | E45: =E44*12 -> 0 | G45: =G44*12 -> 0 | I45: =I44*12 -> 0 | K45: =K44*12 -> 0 | N45: =N44*12 -> 0
E46: Tip: enter deduction amount as the repayment of an 'other' liability in Apply Online
B48: Monthly Expenses
E50: Enter itemised expenses by clicking the button. General expenses (or HEM) for joint customers shown below as 50/50 split
E51: =IF(E7="","Applicant 1",E7) -> Applicant 1 | G51: =IF(G7="",G6,G7) -> N/A | I51: =IF($I$7="",$I$6,$I$7) -> N/A | K51: =IF($K$7="",$K$6,$K$7) -> N/A | N51: =IF($N$7="",$N$6,$N$7) -> N/A
B52: General living expenses* (greater of declared v HEM)
E53: =IF(OR('Customer view page'!E8="Single",E9="Non-applicant"),'HEM tables & calculation'!M30,'HEM tables & calculation'!M30/2) -> 0 | G53: =IF(OR(G8="Single",G9="Non-applicant"),'HEM tables & calculation'!M31,'HEM tables & calculation'!M31/2+IFERROR(VLOOKUP("Applicant 2",'HEM tables & calculation'!$E$30:$M$34,9,0)/2,0)) -> 0 | I53: =IF(OR(I8="Single",I9="Non-applicant"),'HEM tables & calculation'!M32,'HEM tables & calculation'!M32/2+IFERROR(VLOOKUP("Applicant 3",'HEM tables & calculation'!$E$30:$M$34,9,0)/2,0)) -> 0 | K53: =IF(OR(K8="Single",K9="Non-applicant"),'HEM tables & calculation'!M33,'HEM tables & calculation'!M33/2+IFERROR(VLOOKUP("Applicant 4",'HEM tables & calculation'!$E$30:$M$34,9,0)/2,0)) -> 0 | N53: =IF(OR(N8="Single",N9="Non-applicant"),'HEM tables & calculation'!M34,'HEM tables & calculation'!M34/2+IFERROR(VLOOKUP("Applicant 5",'HEM tables & calculation'!$E$30:$M$34,9,0)/2,0)) -> 0
B54: Other living expenses* (additional; not comparable to HEM) | E54: =IF(AND(SUM(E53:O53)=0,SUM('Monthly expenses'!E28:I28)>0),"NOTE! If living expenses (or HEM) not showing, check you have provided relationship information at top of screen for HEM calculation & comparison","") -> 
E55: ='Serviceability calculations'!C62 -> 0 | G55: ='Serviceability calculations'!D62 -> 0 | I55: ='Serviceability calculations'!E62 -> 0 | K55: ='Serviceability calculations'!F62 -> 0 | N55: ='Serviceability calculations'!G62 -> 0
B58: Existing Liabilities
E59: =E51 -> Applicant 1 | G59: =G51 -> N/A | I59: =I51 -> N/A | K59: =K51 -> N/A | N59: =N51 -> N/A | O59: =IF($C$7>4,"Applicant 5","") -> 
B60: Credit card + BNPL limit
D61: HECS amount owing (if applic.)
B62: Estimated yearly HECS repayment | E62: ='Serviceability calculations'!C40 -> 0 | G62: ='Serviceability calculations'!D40 -> 0 | I62: ='Serviceability calculations'!E40 -> 0 | K62: ='Serviceability calculations'!F40 -> 0 | N62: ='Serviceability calculations'!G40 -> 0
E63: Tip: enter HECS amount as the repayment of an 'other' liability in Apply Online Click to enter other existing debt, and to provide loan info of any rental properties declared above | R63: =IF(OR(AND(ISNUMBER('Existing debt'!E6)=TRUE,'Existing debt'!E6>0,ISBLANK('Existing debt'!G6)=TRUE),AND(ISNUMBER('Existing debt'!E7)=TRUE,'Existing debt'!E7>0,ISBLANK('Existing debt'!G7)=TRUE),AND(ISNUMBER('Existing debt'!E8)=TRUE,'Existing debt'!E8>0,ISBLANK('Existing debt'!G8)=TRUE),AND(ISNUMBER('Existing debt'!E9)=TRUE,'Existing debt'!E9>0,ISBLANK('Existing debt'!G9)=TRUE),AND(ISNUMBER('Existing debt'!E10)=TRUE,'Existing debt'!E10>0,ISBLANK('Existing debt'!G10)=TRUE),AND(ISNUMBER('Existing debt'!E11)=TRUE,'Existing debt'!E11>0,ISBLANK('Existing debt'!G11)=TRUE),),"NOTE! Ensure you enter debt details for your rental property/ies","") -> 
B64: Number of existing loans | G64: =COUNTIFS('Existing debt'!E16:E24,">0")+COUNTIFS('Existing debt'!E6:E11,">0") -> 0 | H64: Total existing monthly commitment | L64: =SUM('Existing debt'!H16:H24)+SUM('Existing debt'!H6:H11) -> 0 | N64: NOTE: non-credit card
B67: Loan Details
H68: =IF(F70="ProPack","Applying for Master Limit?","") -> 
E69: Splits* | F69: Package* | J69: Monthly repayments | M69: LVR | N69: FHB? | O69: LMI to be capitalised?
C70: Term (yrs)* | J70: =IF('New loan details & repayments'!C32="No",TEXT('New loan details & repayments'!J14,"$#,##0") & " per month",TEXT('New loan details & repayments'!L14,"$#,##0") & " per month") -> $0 per month | M70: =IFERROR('New loan details & repayments'!C24,"") -> 0
C71: Loan amount | D71: =SUM(E73:F82) -> 0 | E71: Enter each split's current applicable interest rate noting the package, loan amt, LVR, purpose, etc
E72: Amount* | G72: Purpose* | I72: Product* | L72: Type* | M72: =IF(COUNTIF(L73:L82,"IO")>0,"IO term (yrs)","") ->  | N72: Enter rate* | O72: Split repayment
D73: Split 1 | O73: =IF('New loan details & repayments'!$C$32="Yes",'New loan details & repayments'!L4,'New loan details & repayments'!J4) -> 0 | R73: =IF(AND(M73>5,$F$70<>"ProPack",I73<>"Line of Credit"),"Max IO period is 5yrs",IF(AND(I73="Construction",M73>2),"Max IO period is 2yrs",IF(M73>10,"Max IO period is 10yrs",""))) -> 
D74: Split 2 | O74: =IF('New loan details & repayments'!$C$32="Yes",'New loan details & repayments'!L5,'New loan details & repayments'!J5) -> 0 | R74: =IF(AND(M74>5,$F$70<>"ProPack",I74<>"Line of Credit"),"Max IO period is 5yrs",IF(AND(I74="Construction",M74>2),"Max IO period is 2yrs",IF(M74>10,"Max IO period is 10yrs",""))) -> 
D75: Split 3 | O75: =IF('New loan details & repayments'!$C$32="Yes",'New loan details & repayments'!L6,'New loan details & repayments'!J6) -> 0
D76: Split 4 | O76: =IF('New loan details & repayments'!$C$32="Yes",'New loan details & repayments'!L7,'New loan details & repayments'!J7) -> 0
D77: Split 5 | O77: =IF('New loan details & repayments'!$C$32="Yes",'New loan details & repayments'!L8,'New loan details & repayments'!J8) -> 0
D78: Split 6 | O78: =IF('New loan details & repayments'!$C$32="Yes",'New loan details & repayments'!L9,'New loan details & repayments'!J9) -> 0
D79: Split 7 | O79: =IF('New loan details & repayments'!$C$32="Yes",'New loan details & repayments'!L10,'New loan details & repayments'!J10) -> 0
D80: Split 8 | O80: =IF('New loan details & repayments'!$C$32="Yes",'New loan details & repayments'!L11,'New loan details & repayments'!J11) -> 0
D81: Split 9 | O81: =IF('New loan details & repayments'!$C$32="Yes",'New loan details & repayments'!L12,'New loan details & repayments'!J12) -> 0
D82: Split 10 | O82: =IF('New loan details & repayments'!$C$32="Yes",'New loan details & repayments'!L13,'New loan details & repayments'!J13) -> 0
B85: LMI
E86: =IFERROR(IF(M70<=80%,"LVR is less than or equal to 80%; no LMI payable",IF(AND('New loan details & repayments'!C27="OO",M70>90%),"OO purpose loan - LVR is greater than 90% before LMI added; LMI will not be provided",IF(AND('New loan details & repayments'!C27="INV",'New loan details & repayments'!C25>90%),"Adding LMI takes LVR over 90%, or LVR is already over 90%; this is outside appetite for INV",""))),"") -> LVR is less than or equal to 80%; no LMI payable | R86: =IF(SUM(E94:F99)=0,"NOTE! Security value/s required to calculate LVR & LMI","") -> NOTE! Security value/s required to calculate LVR & LMI
E87: Approx. LMI | F87: Revised loan amount | H87: Revised LVR | K87: Revised monthly repayments
E88: =IFERROR(IF(E86="",'New loan details & repayments'!C17,"n/a"),"") -> n/a | F88: =IFERROR(IF(E86="",D71+E88,"n/a"),"") -> n/a | H88: =IFERROR(IF(E86="",'New loan details & repayments'!C25,"n/a"),"") -> n/a | J88: -----------------> | K88: =IFERROR(IF(AND(E86="",'New loan details & repayments'!C32="Yes"),TEXT('New loan details & repayments'!L14+'New loan details & repayments'!F20,"$#,##0")&" per month",IF(AND(E86="",'New loan details & repayments'!C32="No"),TEXT('New loan details & repayments'!J14+'New loan details & repayments'!F20,"$#,##0")&" per month","n/a")),"") -> n/a
E89: NOTE: LMI is an approximate only. The official Genworth calculator will be the source of truth
B91: Security Details
M92: Postcode LMI restricted? | R92: =IF(COUNTIF(J94:J99,"Yes")>0,"NOTE! High density apartments may be subject to 80% LVR","") -> 
C93: No. securities* | E93: Value* | G93: Post Code* | H93: Apt/Unit* | J93: High Density | K93: Zone | N93: =IF(COUNTIF(M94:M99,"Yes")>0,"Note!","") -> 
D94: Security 1* | J94: =IF(G94="","",IF(H94="No","No",IF(COUNTIF('Zoning & Postcodes'!J:J,'Customer view page'!G94)>0,"Yes","No"))) ->  | K94: =IF(G94="","",VLOOKUP(G94,'Zoning & Postcodes'!$B:$F,5,0)) ->  | M94: =IF(G94="","",IF(COUNTIF('Zoning & Postcodes'!$H$1:$H$76,'Customer view page'!G94)>0,"Yes","No")) ->  | N94: =IF(M94="Yes","LMI restricted. Refer to BDM","") -> 
D95: Security 2 | J95: =IF(G95="","",IF(H95="No","No",IF(COUNTIF('Zoning & Postcodes'!J:J,'Customer view page'!G95)>0,"Yes","No"))) ->  | K95: =IF(G95="","",VLOOKUP(G95,'Zoning & Postcodes'!$B:$F,5,0)) ->  | M95: =IF(G95="","",IF(COUNTIF('Zoning & Postcodes'!$H$1:$H$72,'Customer view page'!G95)>0,"Yes","No")) ->  | N95: =IF(M95="Yes","LMI restricted. Refer to BDM","") -> 
D96: Security 3 | J96: =IF(G96="","",IF(H96="No","No",IF(COUNTIF('Zoning & Postcodes'!J:J,'Customer view page'!G96)>0,"Yes","No"))) ->  | K96: =IF(G96="","",VLOOKUP(G96,'Zoning & Postcodes'!$B:$F,5,0)) ->  | M96: =IF(G96="","",IF(COUNTIF('Zoning & Postcodes'!$H$1:$H$72,'Customer view page'!G96)>0,"Yes","No")) -> 
D97: Security 4 | J97: =IF(G97="","",IF(H97="No","No",IF(COUNTIF('Zoning & Postcodes'!J:J,'Customer view page'!G97)>0,"Yes","No"))) ->  | K97: =IF(G97="","",VLOOKUP(G97,'Zoning & Postcodes'!$B:$F,5,0)) ->  | M97: =IF(G97="","",IF(COUNTIF('Zoning & Postcodes'!$H$1:$H$72,'Customer view page'!G97)>0,"Yes","No")) -> 
D98: Security 5 | J98: =IF(G98="","",IF(H98="No","No",IF(COUNTIF('Zoning & Postcodes'!J:J,'Customer view page'!G98)>0,"Yes","No"))) ->  | K98: =IF(G98="","",VLOOKUP(G98,'Zoning & Postcodes'!$B:$F,5,0)) ->  | M98: =IF(G98="","",IF(COUNTIF('Zoning & Postcodes'!$H$1:$H$72,'Customer view page'!G98)>0,"Yes","No")) -> 
D99: Security 6 | J99: =IF(G99="","",IF(H99="No","No",IF(COUNTIF('Zoning & Postcodes'!J:J,'Customer view page'!G99)>0,"Yes","No"))) ->  | K99: =IF(G99="","",VLOOKUP(G99,'Zoning & Postcodes'!$B:$F,5,0)) ->  | M99: =IF(G99="","",IF(COUNTIF('Zoning & Postcodes'!$H$1:$H$72,'Customer view page'!G99)>0,"Yes","No")) -> 
B101: =IF('All data points & rules'!F49="Y",'All data points & rules'!B51,"") -> To get servicing outcome, information is still needed from some applicants: relationship status spouse option expenses
B102: Assessment of Serviceability
G103: =IF(OR(E111=0,E111="",E118=0,E118=""),"NOTE! New loan and/or security details required","") -> NOTE! New loan and/or security details required
C104: Monthly serviceability summary | L104: Other information
D106: Net adjusted income | E106: =IFERROR('Serviceability calculations'!C67,"") -> 0 | F106: =IF('Serviceability calculations'!H29>0,"incl. negative gearing","") ->  | L106: Predominant purpose | N106: =IFERROR('New loan details & repayments'!C27 & "/" & 'New loan details & repayments'!C28,"") -> /
D107: Existing debt commitments | E107: ='Serviceability calculations'!C70 -> 0 | F107: =IFERROR(IF('Serviceability calculations'!H40>0,"HECS adjusted in income",""),"") ->  | L107: Max loan (LVR) | N107: ='New loan details & repayments'!I19 -> 0
D108: Net expenses | E108: ='Serviceability calculations'!C72+'Serviceability calculations'!C73 -> 0 | L108: Max loan (NMS) | N108: =IFERROR('New loan details & repayments'!I26,"") -> 
D109: Net disposable income | E109: =IF(OR(E106=0,E106="",E108=0,E108=""),"",IFERROR(E106-E107-E108,"")) ->  | G109: =IF(OR(E114="",E116=0,E116="",E118="",E118=0,E111=0,E111=""),"UNFINISHED",IFERROR(IF(AND('New loan details & repayments'!C27="OO",COUNTIF('All data points & rules'!B17:B22,"N")>0),"FAILED",IF(AND('New loan details & repayments'!C27="INV",COUNTIF('All data points & rules'!B29:B33,"N")>0),"FAILED",IF(AND('All data points & rules'!B20="N",'All data points & rules'!B32="N"),"","PASSED"))),"")) -> UNFINISHED | L109: Max loan (DTI<8) | N109: ='New loan details & repayments'!I38 -> 0
C111: New loan repayments w/ buffer | E111: =IFERROR('Serviceability calculations'!C69,"") -> 0 | F111: =IF('New loan details & repayments'!C16=TRUE,"incl. LMI","") ->  | L111: Approximate LMI | N111: ='New loan details & repayments'!C17 -> 0
C112: Repayment factored rate | E112: =IF(SUM(N73:N82)=0,"",IFERROR('New loan details & repayments'!F18,"")) -> 
G113: =IFERROR(IF(G109="PASSED","Based on the provided information, AMP Bank will accept this application. Please ensure the information inputted to ApplyOnline matches this calculator.",IF(AND(G109="FAILED",'New loan details & repayments'!C27="OO"),'All data points & rules'!B23,IF(AND(G109="FAILED",'New loan details & repayments'!C27="INV"),'All data points & rules'!B34,""))),"") ->  | M113: Click below to calculate the First Home Buyer Family Guarantee amount and applicability.
D114: NMS | E114: =IFERROR(E109-E111,"") -> 
D116: DTI | E116: =IFERROR('Serviceability calculations'!G81,"") -> 0
D118: LVR | E118: =IFERROR('New loan details & repayments'!C24,"") -> 0
L120: Internal use only
B121: NOTE: please upload this excel workbook into Apply Online as part of the application submission. The workbook may need to be closed before uploading.
E122: Apply Online data entry for income (gross annual amounts)
E123: =E59 -> Applicant 1 | G123: =G59 -> N/A | I123: =I59 -> N/A | K123: =K59 -> N/A | N123: =N59 -> N/A | O123: =IF($C$7>4,"Applicant 5","") -> 
D124: Annual base salary (PAYG) | E124: ='Serviceability calculations'!C17 -> 0 | G124: ='Serviceability calculations'!D17 -> 0 | I124: ='Serviceability calculations'!E17 -> 0 | K124: ='Serviceability calculations'!F17 -> 0 | N124: ='Serviceability calculations'!G17 -> 0
D125: Annual base salary (self-employed) | E125: ='Serviceability calculations'!C23 -> 0 | G125: ='Serviceability calculations'!D23 -> 0 | I125: ='Serviceability calculations'!E23 -> 0 | K125: ='Serviceability calculations'!F23 -> 0 | N125: ='Serviceability calculations'!G23 -> 0
D126: Annual bonus | E126: =E35+'Income assessor'!$R$5+'Income assessor (2)'!$R$5 -> 0 | G126: =G35+'Income assessor'!$R$6+'Income assessor (2)'!$R$6 -> 0 | I126: =I35+'Income assessor'!$R$7+'Income assessor (2)'!$R$7 -> 0 | K126: =K35+'Income assessor'!$R$8+'Income assessor (2)'!$R$8 -> 0 | N126: =N35+'Income assessor'!$R$9+'Income assessor (2)'!$R$9 -> 0
D127: Annual commission | E127: =IFERROR('Income assessor'!$AW$5+'Income assessor (2)'!$AW$5+('Customer view page'!E32*VLOOKUP(E17,'All data points & rules'!$L$31:$N$36,2,0)*VLOOKUP(E15,'All data points & rules'!$L$38:$M$42,2,0)),0) -> 0 | G127: =IFERROR('Income assessor'!$AW$6+'Income assessor (2)'!$AW$6+('Customer view page'!G32*VLOOKUP(G17,'All data points & rules'!$L$31:$N$36,2,0)*VLOOKUP(G15,'All data points & rules'!$L$38:$M$42,2,0)),0) -> 0 | I127: =IFERROR('Income assessor'!$AW$7+'Income assessor (2)'!$AW$7+('Customer view page'!I32*VLOOKUP(I17,'All data points & rules'!$L$31:$N$36,2,0)*VLOOKUP(I15,'All data points & rules'!$L$38:$M$42,2,0)),0) -> 0 | K127: =IFERROR('Income assessor'!$AW$8+'Income assessor (2)'!$AW$8+('Customer view page'!K32*VLOOKUP(K17,'All data points & rules'!$L$31:$N$36,2,0)*VLOOKUP(K15,'All data points & rules'!$L$38:$M$42,2,0)),0) -> 0 | N127: =IFERROR('Income assessor'!$AW$9+'Income assessor (2)'!$AW$9+('Customer view page'!N32*VLOOKUP(N17,'All data points & rules'!$L$31:$N$36,2,0)*VLOOKUP(N15,'All data points & rules'!$L$38:$M$42,2,0)),0) -> 0
D128: Annual overtime (non-essential services) | E128: ='Income assessor'!$AX$5+'Income assessor (2)'!$AX$5+IF(E16="No",'Customer view page'!$E$31*VLOOKUP(E17,'All data points & rules'!$L$31:$N$36,2,0)*VLOOKUP(E15,'All data points & rules'!$L$38:$M$42,2,0),0) -> 0 | G128: ='Income assessor'!$AX$6+'Income assessor (2)'!$AX$6+IF(G16="No",'Customer view page'!$G$31*VLOOKUP(G17,'All data points & rules'!$L$31:$N$36,2,0)*VLOOKUP(G15,'All data points & rules'!$L$38:$M$42,2,0),0) -> 0 | I128: ='Income assessor'!$AX$7+'Income assessor (2)'!$AX$7+IF(I16="No",'Customer view page'!$I$31*VLOOKUP(I17,'All data points & rules'!$L$31:$N$36,2,0)*VLOOKUP(I15,'All data points & rules'!$L$38:$M$42,2,0),0) -> 0 | K128: ='Income assessor'!$AX$8+'Income assessor (2)'!$AX$8+IF(K16="No",'Customer view page'!$K$31*VLOOKUP(K17,'All data points & rules'!$L$31:$N$36,2,0)*VLOOKUP(K15,'All data points & rules'!$L$38:$M$42,2,0),0) -> 0 | N128: ='Income assessor'!$AX$9+'Income assessor (2)'!$AX$9+IF(N16="No",'Customer view page'!$N$31*VLOOKUP(N17,'All data points & rules'!$L$31:$N$36,2,0)*VLOOKUP(N15,'All data points & rules'!$L$38:$M$42,2,0),0) -> 0
D129: Annual overtime (essential services) | E129: ='Income assessor'!$AY$5+'Income assessor (2)'!$AY$5+IF(E16="Yes",'Customer view page'!$E$31*VLOOKUP(E17,'All data points & rules'!$L$31:$N$36,2,0)*VLOOKUP(E15,'All data points & rules'!$L$38:$M$42,2,0),0) -> 0 | G129: ='Income assessor'!$AY$6+'Income assessor (2)'!$AY$6+IF(G16="Yes",'Customer view page'!$G$31*VLOOKUP(G17,'All data points & rules'!$L$31:$N$36,2,0)*VLOOKUP(G15,'All data points & rules'!$L$38:$M$42,2,0),0) -> 0 | I129: ='Income assessor'!$AY$7+'Income assessor (2)'!$AY$7+IF(I16="Yes",'Customer view page'!$I$31*VLOOKUP(I17,'All data points & rules'!$L$31:$N$36,2,0)*VLOOKUP(I15,'All data points & rules'!$L$38:$M$42,2,0),0) -> 0 | K129: ='Income assessor'!$AY$8+'Income assessor (2)'!$AY$8+IF(K16="Yes",'Customer view page'!$K$31*VLOOKUP(K17,'All data points & rules'!$L$31:$N$36,2,0)*VLOOKUP(K15,'All data points & rules'!$L$38:$M$42,2,0),0) -> 0 | N129: ='Income assessor'!$AY$9+'Income assessor (2)'!$AY$9+IF(N16="Yes",'Customer view page'!$N$31*VLOOKUP(N17,'All data points & rules'!$L$31:$N$36,2,0)*VLOOKUP(N15,'All data points & rules'!$L$38:$M$42,2,0),0) -> 0
D130: Annual investment | E130: ='Income assessor'!$AZ$5+'Income assessor (2)'!$AZ$5+'Customer view page'!E36 -> 0 | G130: ='Income assessor'!$AZ$6+'Income assessor (2)'!$AZ$6+'Customer view page'!G36 -> 0 | I130: ='Income assessor'!$AZ$7+'Income assessor (2)'!$AZ$7+'Customer view page'!I36 -> 0 | K130: ='Income assessor'!$AZ$8+'Income assessor (2)'!$AZ$8+'Customer view page'!K36 -> 0 | N130: ='Income assessor'!$AZ$9+'Income assessor (2)'!$AZ$9+'Customer view page'!N36 -> 0
D131: Foreign income | E131: ='Foreign Income'!D5 -> 0 | G131: ='Foreign Income'!D6 -> 0 | I131: ='Foreign Income'!D7 -> 0 | K131: ='Foreign Income'!D8 -> 0 | N131: ='Foreign Income'!D9 -> 0
D132: Non-taxed income (enter as annuity) | E132: ='Serviceability calculations'!C47 -> 0 | G132: ='Serviceability calculations'!D47 -> 0 | I132: ='Serviceability calculations'!E47 -> 0 | K132: ='Serviceability calculations'!F47 -> 0 | N132: ='Serviceability calculations'!G47 -> 0

Sheet ProcessDoc
A3: From: Hanh Tran <Hanh_Tran@ampbanking.com.au>
A4: Sent: Friday, 9 December 2022 12:19 PM
A5: To: Evan Hughes <Evan_Hughes@ampbanking.com.au>
A6: Subject: AMP Bank Serviceability Calculator - Process
A8: Hi Evan,
A10: Thanks again for your time to give me a run down of the process for the Serviceability Calculator changes.
A12: At some point (in the new year), I will document this/create a process in Confluence as you suggested.
A14: Process notes below, let me know if I’ve missed anything, thanks again!
A17: Calculator Ownership: David Melville’s replacement or Kerry Roberts (To be confirmed)
A18: Stakeholder Sign Off Required: Evan Hughes (as current, delegate for David Melville) & Change Requestor
A19: Working Folder Location: S:\CR,Credit&Risk\A - Control Documents\AMP Bank Calculators\Current\Bank Serviceability Calculator\New Version - August 2022
A21: Process:
A22: 1. Create a copy of the previous version, rename with version as VYY.VersionSequence#
A23: 2. Make edits
A24: a. Update Version Number (cell O3)
A25: b. Ensure Version Log has been recorded
A26: c. Test macros are working correctly (Clear All, Print Assessment, Number of Applicants, GoTo Sheets etc)
A27: d. Click Publish and Save
A28: 3. Request stakeholders to test and sign off
A29: 4. Release/Distribution:
A30: a. To upload to Apply Online, Distributor Centre & Aggregator distribution:
A31: i. Save a copy of the final version to S:\Common\AMP Bank Calculators\Queue\For Upload\
A32: ii. Email as below to request to upload/distribute
A33: To: Graeme Holmes (Customer Experience & Communications Manager, AMP Bank Business Management), Bronte Doyle (Pricing & Product Analyst – Mortgages, Mortgage Product)
A34: CC: Kerry Roberts (Mortgage Product Manager New Business, Mortgage Product), Matthew Davies (?), Evan Hughes (as current delegate for David Melville’s role)
A35: b. To Genworth Mortgage Insurers (if the changes impact the Serviceability Calculations)
A36: i. Email a copy of the calculator:
A37: To: ContinuousImprovementAU@genworth.com
A38: CC: Evan Hughes (as current delegate for David Melville’s role)
A39: c. To Finsure (Aggregator) to update their system (if the changes impact the Serviceability Calculations)
A40: i. Unlock calculator
A41: ii. Replace LMI rate card values with dummy data
A42: iii. Email To: products@infynity.com.au
A43: CC: Evan Hughes (as current delegate for David Melville’s role)
A44: 5. Communication
A45: a. Email BDM/Sales Team, Lending Operations
A46: b. Consider Bank Bulletin updates if changes are notable
A50: From: Evan Hughes <Evan_Hughes@ampbanking.com.au>
A51: Sent: Sunday, 11 December 2022 11:51 AM
A52: To: Hanh Tran <Hanh_Tran@ampbanking.com.au>
A53: Subject: RE: AMP Bank Serviceability Calculator - Process
A55: HI Hahn!
A57: Perfect! I’d just add that before you save and close it ready to publish, check through each of the sheets to make sure buttons are working, pages are in the right position, etc.
A59: And you can remove Matt Davies, he’s now left 😊
A61: Thanks,
A62: Ev

Sheet All data points & rules (hidden)
A1: Key requirements & rules | D1: Assessment rates | H1: Income | P1: Stamp duty rates | S1: Other
A2: OO loans: maximum LVR (+ LMI) | B2: 0.9 | E2: Repayment assessment rate (RAR) | F2: 0.065 | H2: Income tax brackets | L2: Rental income allowed | P2: State | Q2: Rate | S2: Minimum rent/board amount | T2: 650
A3: INV loans: maximum LVR (incl LMI) | B3: 0.9 | E3: Repayment buffer rate | F3: 0.03 | H3: Min | I3: Max | L3: =M3&" ("&N3*100&"%)" -> Residential Investment (80%) | M3: Residential Investment | N3: 0.8 | P3: ACT | Q3: 0 | S3: Family guarantee max | T3: 0.8
A4: NMS must be greater than $0 | B4: 0 | E4: Discount off RAR for interest expense assessment rate | F4: 0.0213 | H4: 0.01 | I4: 18200 | J4: 0 | L4: Service Apartment & Short Term (Airbnb, Stayz, etc) - Active Lease/Income Statements (65%) | M4: Service Apartment & Short Term (Airbnb, Stayz, etc) - Active Lease/Income Statements | N4: 0.65 | P4: NSW | Q4: 0 | S4: Family guarantee equity max | T4: 0.5
A5: NMS minimum if DTI >=6 (OO) | B5: 200 | E5: Interest expenses assessment rate | H5: 18200.01 | I5: 45000 | J5: 0.16 | L5: Service Apartment & Short Term (Airbnb, Stayz, etc) - 3rd Party Estimate (80%) | M5: Service Apartment & Short Term (Airbnb, Stayz, etc) - 3rd Party Estimate | N5: 0.8 | P5: NT | Q5: 0.1
A6: NMS minimum if DTI >=6 (INV) | B6: 200 | E6: Credit card limit factoring (monthly commitment) | F6: 0.038 | H6: 45000.01 | I6: 135000 | J6: 0.3 | L6: Commercial / Industrial / Non-Residential - Active Lease/Income Statements (65%) | M6: Commercial / Industrial / Non-Residential - Active Lease/Income Statements | N6: 0.65 | P6: QLD | Q6: 0.09
A7: For OO loans, if LVR (incl LMI) is greater than: | B7: 0.9 | E7: Maximum Rental Yield | F7: 0.06 | H7: 135000 | I7: 190000 | J7: 0.37 | P7: QLD-R | Q7: 0.09
A8: the NMS must be greater than | B8: 500 | H8: 190000 | I8: - | J8: 0.45 | P8: SA | Q8: 0.11
A9: Min LVR before LMI applies | B9: 0.8 | P9: TAS | Q9: 0.1
A10: Maximum DTI (must be below) | B10: 8 | H10: Medicare rate | I10: 0.02 | P10: VIC | Q10: 0.1
A11: If DTI is greater than or equal to: | B11: 6 | H11: Medicare lower | I11: 24276 | P11: WA | Q11: 0.1
A12: LVR must be less than or equal to | B12: 0.8 | H12: Medicare upper | I12: 30345
A13: Maximum LVR for an IO loan (if not Construc) | B13: 0.8
L14: =M14&" ("&N14*100&"%)" -> Domestic (100%) | M14: Domestic | N14: 1
A15: Rule checks & error messages | H15: HECS brackets | L15: =M15&" ("&N15*100&"%)" -> Foreign Tier 1 (80%) | M15: Foreign Tier 1 | N15: 0.8
A16: If OO loan, rules to measure are | B16: MEETS? | C16: Fail message | H16: Min | I16: Max | L16: =M16&" ("&N16*100&"%)" -> Foreign Tier 2 (50%) | M16: Foreign Tier 2 | N16: 0.5
A17: Maximum LVR is 90% + LMI | B17: =IF('New loan details & repayments'!C24<=B2,"Y","N") -> Y | C17: the maximum LVR for Owner Occupier loans is 90% + LMI | H17: 0 | I17: 54435 | J17: 0
A18: For IO loan (excl construc), maximum LVR is 80% | B18: =IF(OR('New loan details & repayments'!C29="N",'New loan details & repayments'!C30="Y"),"Y",IF(AND('New loan details & repayments'!C29="Y",'New loan details & repayments'!C24<=B13),"Y","N")) -> Y | C18: the maximum LVR for IO loans is 80% (excl. Construction) | H18: =I17+0.1 -> 54435.1 | I18: 62850 | J18: 0.01
A19: Maximum DTI is 8 | B19: =IF('Serviceability calculations'!G81<B10,"Y","N") -> Y | C19: the DTI for all loans must be below 8 | H19: 62850.1 | I19: 66620 | J19: 0.02 | L19: Non-base income allowed
A20: NMS must be >0 (all scenarios, incl below) | B20: =IF('Serviceability calculations'!C74>B4,"Y","N") -> N | C20: the NMS must be greater than $0 | H20: 66620.1 | I20: 70618 | J20: 0.025 | L20: Foreign income allowed (tier 1) | M20: 0.8
A21: If DTI >=6, NMS must be >200 & LVR must be <=80 | B21: =IF('Serviceability calculations'!G81<B11,"Y",IF(AND('Serviceability calculations'!G81>=B11,'Serviceability calculations'!G81<B10,'New loan details & repayments'!C24<=B12,'Serviceability calculations'!C74>B5),"Y","N")) -> Y | C21: if the DTI is >=6, NMS must be >$200 & LVR must be <=80% (OO purpose) | H21: 70618.1 | I21: 74855 | J21: 0.03 | L21: Foreign income allowed (tier 2) | M21: 0.5
A22: If LVR >90% (incl LMI), NMS must be >500 | B22: =IF('New loan details & repayments'!C16=FALSE,"Y",IF('New loan details & repayments'!C25<=B7,"Y",IF(AND('New loan details & repayments'!C25>B7,'Serviceability calculations'!C74>B8),"Y","N"))) -> Y | C22: if the LVR for Owner Occupier loans is >90% when including LMI, NMS must be >$500. | H22: 74855.1 | I22: 79346 | J22: 0.035 | L22: Commission | M22: 0.8
A23: Combined fail message (NOTE: if any of first 4 fail, the bottom 2 won't matter) | B23: ="Reasons for failure: " & IF(B17="N",C17 & "; ","") & IF(B18="N",C18 & "; ","") & IF(B19="N",C19 & "; ","") & IF(B20="N",C20 & "; ","") & IF(AND(COUNTIF(B17:B20,"Y")=4,B21="N"),C21 & "; ","") & IF(AND(COUNTIF(B17:B20,"Y")=4,B22="N"),C22,"") -> Reasons for failure: the NMS must be greater than $0; | H23: 79346.1 | I23: 84107 | J23: 0.04 | L23: Commission (essential - NOT IN USE) | M23: 1
H24: 84107.1 | I24: 89154 | J24: 0.045 | L24: Overtime (non-essential) | M24: 0.8
H25: 89154.1 | I25: 94503 | J25: 0.05 | L25: Overtime (essential) | M25: 1
H26: 94503.1 | I26: 100174 | J26: 0.055 | L26: Investment income | M26: 0.8
H27: 100174.1 | I27: 106185 | J27: 0.06 | L27: Bonus allowance (first $50k) | M27: 50000 | N27: 0.8
A28: If INV loan, rules to measure are | B28: MEETS? | C28: Fail message | H28: 106185.1 | I28: 112556 | J28: 0.065 | L28: Bonus allowance (over $50k) | N28: 0.8
A29: Maximum LVR is 90% incl LMI | B29: =IF(AND('New loan details & repayments'!C16=TRUE,'New loan details & repayments'!C25<='All data points & rules'!B3),"Y",IF(AND('New loan details & repayments'!C16=FALSE,'New loan details & repayments'!C24<='All data points & rules'!B3),"Y","N")) -> Y | C29: the maximum LVR for Investment loans is 90% incl LMI | H29: 112556.1 | I29: 119309 | J29: 0.07
A30: For IO loan (excl construc), maximum LVR is 80% | B30: =IF(OR('New loan details & repayments'!C29="N",'New loan details & repayments'!C30="Y"),"Y",IF(AND('New loan details & repayments'!C29="Y",'New loan details & repayments'!C24<=B13),"Y","N")) -> Y | C30: the maximum LVR for IO loans is 80% (excl. Construction) | H30: 119309.1 | I30: 126467 | J30: 0.075
A31: Maximum DTI is 8 | B31: =IF('Serviceability calculations'!G81<B10,"Y","N") -> Y | C31: the DTI for all loans must be below 8 | H31: 126467.1 | I31: 134056 | J31: 0.08 | L31: Pay cycle | M31: Number payments | N31: Days
A32: NMS must be >0 (all scenarios, incl below) | B32: =IF('Serviceability calculations'!C74>B4,"Y","N") -> N | C32: the NMS must be greater than $0 | H32: 134056.1 | I32: 142100 | J32: 0.085 | L32: Annually | M32: 1 | N32: 365
A33: If DTI >=6, NMS must be > 200 & LVR must be <=80 | B33: =IF('Serviceability calculations'!G81<B11,"Y",IF(AND('Serviceability calculations'!G81>=B11,'Serviceability calculations'!G81<B10,'New loan details & repayments'!C24<=B12,'Serviceability calculations'!C74>B6),"Y","N")) -> Y | C33: if the DTI is >=6, NMS must be >$200 & LVR must be <=80% (INV purpose) | H33: 142100.1 | I33: 150626 | J33: 0.09 | L33: Monthly | M33: 12 | N33: 31
A34: Combined fail message (NOTE: if any of first 3 fail, the bottom 2 won't matter) | B34: ="Reasons for failure: " & IF(B29="N",C29 & "; ","") & IF(B30="N",C30 & "; ","") & IF(B31="N",C31 & "; ","") & IF(AND(COUNTIF(B29:B31,"Y")=3,B32="N"),C32 & "; ","") & IF(AND(COUNTIF(B29:B31,"Y")=3,B33="N"),C33,"") -> Reasons for failure: the NMS must be greater than $0; | H34: 150626.1 | I34: 159663 | J34: 0.095 | L34: Bi-monthly | M34: 24 | N34: 16
H35: 159663.1 | I35: 99999999 | J35: 0.1 | L35: F/nightly | M35: 26 | N35: 14
L36: Weekly | M36: 52 | N36: 7
H37: Min Super contrib Current Year | I37: =I44 -> 0.115
L38: Pay cycle | M38: Weighting
A39: Information that must be filled in before result provided (if PAYG) | H39: Min Super contrib | L39: Full-time | M39: 1
A40: Item | B40: Applicant 1 | C40: Applicant 2 | D40: Applicant 3 | E40: Applicant 4 | F40: Applicant 5 | H40: Year | I40: Min SG | L40: Part-time | M40: 1
A41: PAYG? | B41: =IF(OR('Customer view page'!E22>0,'Customer view page'!E30>0),"Y","N") -> N | C41: =IF(OR('Customer view page'!G22>0,'Customer view page'!G30>0),"Y","N") -> N | D41: =IF(OR('Customer view page'!I22>0,'Customer view page'!I30>0),"Y","N") -> N | E41: =IF(OR('Customer view page'!K22>0,'Customer view page'!K30>0),"Y","N") -> N | F41: =IF(OR('Customer view page'!N22>0,'Customer view page'!N30>0),"Y","N") -> N | H41: 2022 | I41: 0.1 | L41: Casual | M41: =46/52 -> 0.8846153846
A42: Name | B42: =IF('Customer view page'!E7="","N","Y") -> N | C42: =IF($C$49<2,"N/A",IF('Customer view page'!G7="","N","Y")) -> N/A | D42: =IF($C$49<3,"N/A",IF('Customer view page'!I7="","N","Y")) -> N/A | E42: =IF($C$49<4,"N/A",IF('Customer view page'!K7="","N","Y")) -> N/A | F42: =IF($C$49<5,"N/A",IF('Customer view page'!N7="","N","Y")) -> N/A | H42: 2023 | I42: 0.105 | L42: Casual teacher | M42: =40/52 -> 0.7692307692
A43: Status | B43: =IF('Customer view page'!E8="","N","Y") -> N | C43: =IF($C$49<2,"N/A",IF('Customer view page'!G8="","N","Y")) -> N/A | D43: =IF($C$49<3,"N/A",IF('Customer view page'!I8="","N","Y")) -> N/A | E43: =IF($C$49<4,"N/A",IF('Customer view page'!K8="","N","Y")) -> N/A | F43: =IF($C$49<5,"N/A",IF('Customer view page'!N8="","N","Y")) -> N/A | H43: 2024 | I43: 0.11
A44: If couple, choose spouse option | B44: =IF('Customer view page'!E9="","N","Y") -> N | C44: =IF($C$49<2,"N/A",IF('Customer view page'!G9="","N","Y")) -> N/A | D44: =IF($C$49<3,"N/A",IF('Customer view page'!I9="","N","Y")) -> N/A | E44: =IF($C$49<4,"N/A",IF('Customer view page'!K9="","N","Y")) -> N/A | F44: =IF($C$49<5,"N/A",IF('Customer view page'!N9="","N","Y")) -> N/A | H44: 2025 | I44: 0.115
A45: Employment type | B45: =IF(AND(B41="Y",'Customer view page'!E15=""),"N","Y") -> Y | C45: =IF($C$49<2,"N/A",IF(AND(C41="Y",'Customer view page'!G15=""),"N","Y")) -> N/A | D45: =IF($C$49<3,"N/A",IF(AND(D41="Y",'Customer view page'!I15=""),"N","Y")) -> N/A | E45: =IF($C$49<4,"N/A",IF(AND(E41="Y",'Customer view page'!K15=""),"N","Y")) -> N/A | F45: =IF($C$49<5,"N/A",IF(AND(F41="Y",'Customer view page'!N15=""),"N","Y")) -> N/A | H45: 2026
A46: Pay frequency | B46: =IF(AND(B41="Y",'Customer view page'!E17=""),"N","Y") -> Y | C46: =IF($C$49<2,"N/A",IF(AND(C41="Y",'Customer view page'!G17=""),"N","Y")) -> N/A | D46: =IF($C$49<3,"N/A",IF(AND(D41="Y",'Customer view page'!I17=""),"N","Y")) -> N/A | E46: =IF($C$49<4,"N/A",IF(AND(E41="Y",'Customer view page'!K17=""),"N","Y")) -> N/A | F46: =IF($C$49<5,"N/A",IF(AND(F41="Y",'Customer view page'!N17=""),"N","Y")) -> N/A | H46: 2027
A47: Expenses | B47: =IF('Monthly expenses'!D28+'Monthly expenses'!D31=0,"N","Y") -> N | C47: =IF($C$49<2,"N/A",IF('Monthly expenses'!D28+'Monthly expenses'!D31=0,"N","Y")) -> N/A | D47: =IF($C$49<3,"N/A",IF('Monthly expenses'!D28+'Monthly expenses'!D31=0,"N","Y")) -> N/A | E47: =IF($C$49<4,"N/A",IF('Monthly expenses'!D28+'Monthly expenses'!D31=0,"N","Y")) -> N/A | F47: =IF($C$49<5,"N/A",IF('Monthly expenses'!D28+'Monthly expenses'!D31=0,"N","Y")) -> N/A | H47: 2028
B49: Applicants | C49: ='Customer view page'!C7 -> 1 | E49: Missing info | F49: =IF(COUNTIF(B43:F47,"N")>0,"Y","N") -> Y
B51: ="To get servicing outcome, information is still needed from some applicants: " & IF(COUNTIF(B43:F43,"N")>0,"relationship status ","") & IF(COUNTIF(B44:F44,"N")>0,"spouse option ","") & IF(COUNTIF(B45:F45,"N")>0,"employment type ","") & IF(COUNTIF(B46:F46,"N")>0,"pay frequency ","") & IF(COUNTIF(B47:F47,"N")>0,"expenses","") -> To get servicing outcome, information is still needed from some applicants: relationship status spouse option expenses

Sheet Serviceability calculations (hidden)
C1: Applicant 1 | D1: Applicant 2 | E1: Applicant 3 | F1: Applicant 4 | G1: Applicant 5 | H1: Total
B2: Basic info
B3: Status | C3: ='Customer view page'!E8 -> 0 | D3: ='Customer view page'!G8 -> 0 | E3: ='Customer view page'!I8 -> 0 | F3: ='Customer view page'!K8 -> 0 | G3: ='Customer view page'!N8 -> 0
B4: Couple with | C4: ='Customer view page'!E9 -> 0 | D4: ='Customer view page'!G9 -> 0 | E4: ='Customer view page'!I9 -> 0 | F4: ='Customer view page'!K9 -> 0 | G4: ='Customer view page'!N9 -> 0
B5: Dependents | C5: ='Customer view page'!E10 -> 0 | D5: ='Customer view page'!G10 -> 0 | E5: ='Customer view page'!I10 -> 0 | F5: ='Customer view page'!K10 -> 0 | G5: ='Customer view page'!N10 -> 0
B6: HECS | C6: =IF('Customer view page'!E61>0,TRUE,FALSE) -> FALSE | D6: =IF('Customer view page'!G61>0,TRUE,FALSE) -> FALSE | E6: =IF('Customer view page'!I61>0,TRUE,FALSE) -> FALSE | F6: =IF('Customer view page'!K61>0,TRUE,FALSE) -> FALSE | G6: =IF('Customer view page'!N61>0,TRUE,FALSE) -> FALSE
B7: Employee type | C7: ='Customer view page'!E15 -> 0 | D7: ='Customer view page'!G15 -> 0 | E7: ='Customer view page'!I15 -> 0 | F7: ='Customer view page'!K15 -> 0 | G7: ='Customer view page'!N15 -> 0
B8: Essential services | C8: =IF('Customer view page'!E16="Yes","Yes","No") -> No | D8: =IF('Customer view page'!G16="Yes","Yes","No") -> No | E8: =IF('Customer view page'!I16="Yes","Yes","No") -> No | F8: =IF('Customer view page'!K16="Yes","Yes","No") -> No | G8: =IF('Customer view page'!N16="Yes","Yes","No") -> No
B9: Pay frequency | C9: ='Customer view page'!E17 -> 0 | D9: ='Customer view page'!G17 -> 0 | E9: ='Customer view page'!I17 -> 0 | F9: ='Customer view page'!K17 -> 0 | G9: ='Customer view page'!N17 -> 0
B10: No. of payments | C10: =IFERROR(VLOOKUP('Customer view page'!E17,'All data points & rules'!$L$31:$N$36,2,0),"") ->  | D10: =IFERROR(VLOOKUP('Customer view page'!G17,'All data points & rules'!$L$31:$N$36,2,0),"") ->  | E10: =IFERROR(VLOOKUP('Customer view page'!I17,'All data points & rules'!$L$31:$N$36,2,0),"") ->  | F10: =IFERROR(VLOOKUP('Customer view page'!K17,'All data points & rules'!$L$31:$N$36,2,0),"") ->  | G10: =IFERROR(VLOOKUP('Customer view page'!N17,'All data points & rules'!$L$31:$N$36,2,0),"") -> 
B12: Income method | C12: ='Customer view page'!K19 -> PAYG income assessor
C14: Full serviceability assessment (NMS) | I14: NOTE. Please upload the serviceability calculator workbook to Apply Online. Do not upload this assessment sheet. | K14: Pre-discounted income used for DTI, HEM, AOL | S14: Deductions calculation
C15: =C1 -> Applicant 1 | D15: =D1 -> Applicant 2 | E15: Applicant 3 | F15: Applicant 4 | G15: Applicant 5 | H15: Total | L15: Applicant 1 | M15: Applicant 2 | N15: Applicant 3 | O15: Applicant 4 | P15: Applicant 5 | T15: Applicant 1 | U15: Applicant 2 | V15: Applicant 3 | W15: Applicant 4 | X15: Applicant 5
B16: Annual income | I16: Notes/comments | Q16: Total
B17: Base salary | C17: =IFERROR('Customer view page'!E22+'Customer view page'!E30*'Serviceability calculations'!C10*VLOOKUP(C7,'All data points & rules'!$L$38:$M$42,2,0),0) -> 0 | D17: =IFERROR('Customer view page'!G22+'Customer view page'!G30*'Serviceability calculations'!D10*VLOOKUP(D7,'All data points & rules'!$L$38:$M$42,2,0),0) -> 0 | E17: =IFERROR('Customer view page'!I22+'Customer view page'!I30*'Serviceability calculations'!E10*VLOOKUP(E7,'All data points & rules'!$L$38:$M$42,2,0),0) -> 0 | F17: =IFERROR('Customer view page'!K22+'Customer view page'!K30*'Serviceability calculations'!F10*VLOOKUP(F7,'All data points & rules'!$L$38:$M$42,2,0),0) -> 0 | G17: =IFERROR('Customer view page'!N22+'Customer view page'!N30*'Serviceability calculations'!G10*VLOOKUP(G7,'All data points & rules'!$L$38:$M$42,2,0),0) -> 0 | H17: =SUM(C17:G17) -> 0 | I17: Base salary via the income assessor OR manually given | K17: Gross salary (incl. non taxed) | L17: =C17+C47 -> 0 | M17: =D17+D47 -> 0 | N17: =E17+E47 -> 0 | O17: =F17+F47 -> 0 | P17: =G17+G47 -> 0 | Q17: =SUM(L17:P17) -> 0 | S17: Post-tax annual deductions | T17: =C48 -> 0 | U17: =D48 -> 0 | V17: =E48 -> 0 | W17: =F48 -> 0 | X17: =G48 -> 0 | Y17: =SUM(T17:X17) -> 0
B18: Commission/Overtime (income assess) | C18: ='Customer view page'!E23 -> 0 | D18: ='Customer view page'!G23 -> 0 | E18: ='Customer view page'!I23 -> 0 | F18: ='Customer view page'!K23 -> 0 | G18: ='Customer view page'!N23 -> 0 | H18: =SUM(C18:G18) -> 0 | I18: Comm/Otime calculated via the income assessor | K18: Self-employed | L18: =IF('Customer view page'!E38="",0,'Customer view page'!E38) -> 0 | M18: =IF('Customer view page'!G38="",0,'Customer view page'!G38) -> 0 | N18: =IF('Customer view page'!I38="",0,'Customer view page'!I38) -> 0 | O18: =IF('Customer view page'!K38="",0,'Customer view page'!K38) -> 0 | P18: =IF('Customer view page'!N38="",0,'Customer view page'!N38) -> 0 | Q18: =SUM(L18:P18) -> 0 | S18: Post-tax monthly deductions | T18: =T17/12 -> 0 | U18: =U17/12 -> 0 | V18: =V17/12 -> 0 | W18: 0 | X18: 0 | Y18: =SUM(T18:X18) -> 0
B19: Commission (manual) | C19: =IFERROR('Customer view page'!E32*'All data points & rules'!$M$22*VLOOKUP(C7,'All data points & rules'!$L$38:$M$42,2,0)*C10,0) -> 0 | D19: =IFERROR('Customer view page'!G32*'All data points & rules'!$M$22*VLOOKUP(D7,'All data points & rules'!$L$38:$M$42,2,0)*D10,0) -> 0 | E19: =IFERROR('Customer view page'!I32*'All data points & rules'!$M$22*VLOOKUP(E7,'All data points & rules'!$L$38:$M$42,2,0)*E10,0) -> 0 | F19: =IFERROR('Customer view page'!K32*'All data points & rules'!$M$22*VLOOKUP(F7,'All data points & rules'!$L$38:$M$42,2,0)*F10,0) -> 0 | G19: =IFERROR('Customer view page'!N32*'All data points & rules'!$M$22*VLOOKUP(G7,'All data points & rules'!$L$38:$M$42,2,0)*G10,0) -> 0 | I19: Commission manually entered; discounted as per credit rules | K19: Commission/Overtime (income assess) | L19: =SUM('Income assessor'!AW5:AY5)+SUM('Income assessor (2)'!AW5:AY5) -> 0 | M19: =SUM('Income assessor'!AW6:AY6)+SUM('Income assessor (2)'!AW6:AY6) -> 0 | N19: =SUM('Income assessor'!AW7:AY7)+SUM('Income assessor (2)'!AW7:AY7) -> 0 | O19: =SUM('Income assessor'!AW8:AY8)+SUM('Income assessor (2)'!AW8:AY8) -> 0 | P19: =SUM('Income assessor'!AW9:AY9)+SUM('Income assessor (2)'!AW9:AY9) -> 0 | Q19: =SUM(L19:P19) -> 0 | S19: Pre-tax annual deductions | T19: =C28 -> 0 | U19: =D28 -> 0 | V19: =E28 -> 0 | W19: 0 | X19: 0 | Y19: =SUM(T19:X19) -> 0
B20: Overtime (manual) | C20: =IFERROR('Customer view page'!E31*IF(C8="Yes",'All data points & rules'!$M$25,'All data points & rules'!$M$24)*VLOOKUP(C7,'All data points & rules'!$L$38:$M$42,2,0)*C10,0) -> 0 | D20: =IFERROR('Customer view page'!G31*IF(D8="Yes",'All data points & rules'!$M$25,'All data points & rules'!$M$24)*VLOOKUP(D7,'All data points & rules'!$L$38:$M$42,2,0)*D10,0) -> 0 | E20: =IFERROR('Customer view page'!I31*IF(E8="Yes",'All data points & rules'!$M$25,'All data points & rules'!$M$24)*VLOOKUP(E7,'All data points & rules'!$L$38:$M$42,2,0)*E10,0) -> 0 | F20: =IFERROR('Customer view page'!K31*IF(F8="Yes",'All data points & rules'!$M$25,'All data points & rules'!$M$24)*VLOOKUP(F7,'All data points & rules'!$L$38:$M$42,2,0)*F10,0) -> 0 | G20: =IFERROR('Customer view page'!N31*IF(G8="Yes",'All data points & rules'!$M$25,'All data points & rules'!$M$24)*VLOOKUP(G7,'All data points & rules'!$L$38:$M$42,2,0)*G10,0) -> 0 | H20: 0 | I20: Overtime manually entered; discounted as per credit rules | K20: Commission (manual) | L20: =IFERROR('Customer view page'!E32*C10*VLOOKUP(C7,'All data points & rules'!$L$38:$M$42,2,0),0) -> 0 | M20: =IFERROR('Customer view page'!G32*D10*VLOOKUP(D7,'All data points & rules'!$L$38:$M$42,2,0),0) -> 0 | N20: =IFERROR('Customer view page'!I32*E10*VLOOKUP(E7,'All data points & rules'!$L$38:$M$42,2,0),0) -> 0 | O20: =IFERROR('Customer view page'!K32*F10*VLOOKUP(F7,'All data points & rules'!$L$38:$M$42,2,0),0) -> 0 | P20: =IFERROR('Customer view page'!N32*G10*VLOOKUP(G7,'All data points & rules'!$L$38:$M$42,2,0),0) -> 0 | Q20: =SUM(L20:P20) -> 0
B21: Bonus | C21: =IF('Customer view page'!E35+'Income assessor'!$R$5+'Income assessor (2)'!$R$5<='All data points & rules'!$M$27,('Customer view page'!E35+'Income assessor'!$R$5+'Income assessor (2)'!$R$5)*'All data points & rules'!$N$27,'All data points & rules'!$M$27*'All data points & rules'!$N$27+('Customer view page'!E35+'Income assessor'!$R$5+'Income assessor (2)'!$R$5-'All data points & rules'!$M$27)*'All data points & rules'!$N$28) -> 0 | D21: =IF('Customer view page'!G35+'Income assessor'!$R$6+'Income assessor (2)'!$R$6<='All data points & rules'!$M$27,('Customer view page'!G35+'Income assessor'!$R$6+'Income assessor (2)'!$R$6)*'All data points & rules'!$N$27,'All data points & rules'!$M$27*'All data points & rules'!$N$27+('Customer view page'!G35+'Income assessor'!$R$6+'Income assessor (2)'!$R$6-'All data points & rules'!$M$27)*'All data points & rules'!$N$28) -> 0 | E21: =IF('Customer view page'!I35+'Income assessor'!$R$7+'Income assessor (2)'!$R$7<='All data points & rules'!$M$27,('Customer view page'!I35+'Income assessor'!$R$7+'Income assessor (2)'!$R$7)*'All data points & rules'!$N$27,'All data points & rules'!$M$27*'All data points & rules'!$N$27+('Customer view page'!I35+'Income assessor'!$R$7+'Income assessor (2)'!$R$7-'All data points & rules'!$M$27)*'All data points & rules'!$N$28) -> 0 | F21: =IF('Customer view page'!K35+'Income assessor'!$R$8+'Income assessor (2)'!$R$8<='All data points & rules'!$M$27,('Customer view page'!K35+'Income assessor'!$R$8+'Income assessor (2)'!$R$8)*'All data points & rules'!$N$27,'All data points & rules'!$M$27*'All data points & rules'!$N$27+('Customer view page'!K35+'Income assessor'!$R$8+'Income assessor (2)'!$R$8-'All data points & rules'!$M$27)*'All data points & rules'!$N$28) -> 0 | G21: =IF('Customer view page'!N35+'Income assessor'!$R$9+'Income assessor (2)'!$R$9<='All data points & rules'!$M$27,('Customer view page'!N35+'Income assessor'!$R$9+'Income assessor (2)'!$R$9)*'All data points & rules'!$N$27,'All data points & rules'!$M$27*'All data points & rules'!$N$27+('Customer view page'!N35+'Income assessor'!$R$9+'Income assessor (2)'!$R$9-'All data points & rules'!$M$27)*'All data points & rules'!$N$28) -> 0 | H21: 0 | I21: Discounted as per credit rules | K21: Overtime (manual) | L21: =IFERROR('Customer view page'!E31*C10*VLOOKUP(C7,'All data points & rules'!$L$38:$M$42,2,0),0) -> 0 | M21: =IFERROR('Customer view page'!G31*D10*VLOOKUP(D7,'All data points & rules'!$L$38:$M$42,2,0),0) -> 0 | N21: =IFERROR('Customer view page'!I31*E10*VLOOKUP(E7,'All data points & rules'!$L$38:$M$42,2,0),0) -> 0 | O21: =IFERROR('Customer view page'!K31*F10*VLOOKUP(F7,'All data points & rules'!$L$38:$M$42,2,0),0) -> 0 | P21: =IFERROR('Customer view page'!N31*G10*VLOOKUP(G7,'All data points & rules'!$L$38:$M$42,2,0),0) -> 0 | Q21: =SUM(L21:P21) -> 0 | S21: Taxable Income (excl. pre-tax deductions) | T21: =C30+T19 -> 0 | U21: =D30+D28 -> 0 | V21: =E30+E28 -> 0 | W21: =F30+F28 -> 0 | X21: =G30+G28 -> 0 | Y21: =SUM(T21:X21) -> 0
B22: Investment | C22: =IFERROR('Customer view page'!E27+('Customer view page'!E36*'All data points & rules'!$M$26),0) -> 0 | D22: =IFERROR('Customer view page'!G27+('Customer view page'!G36*'All data points & rules'!$M$26),0) -> 0 | E22: =IFERROR('Customer view page'!I27+('Customer view page'!I36*'All data points & rules'!$M$26),0) -> 0 | F22: =IFERROR('Customer view page'!K27+('Customer view page'!K36*'All data points & rules'!$M$26),0) -> 0 | G22: =IFERROR('Customer view page'!N27+('Customer view page'!N36*'All data points & rules'!$M$26),0) -> 0 | H22: 0 | I22: Discounted as per credit rules | K22: Bonus | L22: ='Income assessor'!AU5+'Income assessor'!AV5+'Income assessor (2)'!AU5+'Income assessor (2)'!AV5+'Customer view page'!E35 -> 0 | M22: ='Income assessor'!AU6+'Income assessor'!AV6+'Income assessor (2)'!AU6+'Income assessor (2)'!AV6+'Customer view page'!G35 -> 0 | N22: ='Income assessor'!AU7+'Income assessor'!AV7+'Income assessor (2)'!AU7+'Income assessor (2)'!AV7+'Customer view page'!I35 -> 0 | O22: ='Income assessor'!AU8+'Income assessor'!AV8+'Income assessor (2)'!AU8+'Income assessor (2)'!AV8+'Customer view page'!K35 -> 0 | P22: ='Income assessor'!AU9+'Income assessor'!AV9+'Income assessor (2)'!AU9+'Income assessor (2)'!AV9+'Customer view page'!N35 -> 0 | Q22: =SUM(L22:P22) -> 0 | S22: =B33 -> Bracket 1: 0.01 to 18200
B23: Self-employed | C23: ='Customer view page'!E38 -> 0 | D23: ='Customer view page'!G38 -> 0 | E23: ='Customer view page'!I38 -> 0 | F23: ='Customer view page'!K38 -> 0 | G23: ='Customer view page'!N38 -> 0 | H23: 0 | I23: Outcome via the self-employed calculator | K23: Investment | L23: ='Income assessor'!$AZ$5+'Income assessor (2)'!$AZ$5+'Customer view page'!E36 -> 0 | M23: ='Income assessor'!$AZ$6+'Income assessor (2)'!$AZ$6+'Customer view page'!G36 -> 0 | N23: ='Income assessor'!$AZ$7+'Income assessor (2)'!$AZ$7+'Customer view page'!I36 -> 0 | O23: ='Income assessor'!$AZ$8+'Income assessor (2)'!$AZ$8+'Customer view page'!K36 -> 0 | P23: ='Income assessor'!$AZ$9+'Income assessor (2)'!$AZ$9+'Customer view page'!N36 -> 0 | Q23: 0 | S23: =B34 -> Bracket 2: 18200.01 to 45000 | T23: =IF(T$21>'All data points & rules'!$I5,('All data points & rules'!$I5-'All data points & rules'!$H5)*'All data points & rules'!$J5,IF(T$21<'All data points & rules'!$H5,0,(T$21-'All data points & rules'!$H5)*'All data points & rules'!$J5)) -> 0 | U23: =IF(U$21>'All data points & rules'!$I5,('All data points & rules'!$I5-'All data points & rules'!$H5)*'All data points & rules'!$J5,IF(U$21<'All data points & rules'!$H5,0,(U$21-'All data points & rules'!$H5)*'All data points & rules'!$J5)) -> 0 | V23: =IF(V$21>'All data points & rules'!$I5,('All data points & rules'!$I5-'All data points & rules'!$H5)*'All data points & rules'!$J5,IF(V$21<'All data points & rules'!$H5,0,(V$21-'All data points & rules'!$H5)*'All data points & rules'!$J5)) -> 0 | W23: =IF(W$21>'All data points & rules'!$I5,('All data points & rules'!$I5-'All data points & rules'!$H5)*'All data points & rules'!$J5,IF(W$21<'All data points & rules'!$H5,0,(W$21-'All data points & rules'!$H5)*'All data points & rules'!$J5)) -> 0 | X23: =IF(X$21>'All data points & rules'!$I5,('All data points & rules'!$I5-'All data points & rules'!$H5)*'All data points & rules'!$J5,IF(X$21<'All data points & rules'!$H5,0,(X$21-'All data points & rules'!$H5)*'All data points & rules'!$J5)) -> 0
B24: Rental | C24: =SUMPRODUCT('Rental Income'!$K$6:$K$13,'Rental Income'!O6:O13)*52 -> 0 | D24: =SUMPRODUCT('Rental Income'!$K$6:$K$13,'Rental Income'!P6:P13)*52 -> 0 | E24: =SUMPRODUCT('Rental Income'!$K$6:$K$13,'Rental Income'!Q6:Q13)*52 -> 0 | F24: =SUMPRODUCT('Rental Income'!$K$6:$K$13,'Rental Income'!R6:R13)*52 -> 0 | G24: =SUMPRODUCT('Rental Income'!$K$6:$K$13,'Rental Income'!S6:S13)*52 -> 0 | H24: 0 | I24: Discounted by property type; max rental yield applies | K24: Foreign | L24: ='Foreign Income'!$D$5 -> 0 | M24: ='Foreign Income'!$D$6 -> 0 | N24: ='Foreign Income'!$D$7 -> 0 | O24: ='Foreign Income'!$D$8 -> 0 | P24: ='Foreign Income'!$D$9 -> 0 | Q24: =SUM(L24:P24) -> 0 | S24: Bracket 3: 45000.01 to 135000 | T24: =IF(T$21>'All data points & rules'!$I6,('All data points & rules'!$I6-'All data points & rules'!$H6)*'All data points & rules'!$J6,IF(T$21<'All data points & rules'!$H6,0,(T$21-'All data points & rules'!$H6)*'All data points & rules'!$J6)) -> 0 | U24: =IF(U$21>'All data points & rules'!$I6,('All data points & rules'!$I6-'All data points & rules'!$H6)*'All data points & rules'!$J6,IF(U$21<'All data points & rules'!$H6,0,(U$21-'All data points & rules'!$H6)*'All data points & rules'!$J6)) -> 0 | V24: =IF(V$21>'All data points & rules'!$I6,('All data points & rules'!$I6-'All data points & rules'!$H6)*'All data points & rules'!$J6,IF(V$21<'All data points & rules'!$H6,0,(V$21-'All data points & rules'!$H6)*'All data points & rules'!$J6)) -> 0 | W24: =IF(W$21>'All data points & rules'!$I6,('All data points & rules'!$I6-'All data points & rules'!$H6)*'All data points & rules'!$J6,IF(W$21<'All data points & rules'!$H6,0,(W$21-'All data points & rules'!$H6)*'All data points & rules'!$J6)) -> 0 | X24: =IF(X$21>'All data points & rules'!$I6,('All data points & rules'!$I6-'All data points & rules'!$H6)*'All data points & rules'!$J6,IF(X$21<'All data points & rules'!$H6,0,(X$21-'All data points & rules'!$H6)*'All data points & rules'!$J6)) -> 0
B25: Foreign | C25: ='Customer view page'!E42 -> 0 | D25: ='Customer view page'!G42 -> 0 | E25: ='Customer view page'!I42 -> 0 | F25: ='Customer view page'!K42 -> 0 | G25: ='Customer view page'!N42 -> 0 | H25: 0 | I25: Discounted as per credit rules | K25: Rental (NOTE: not used for HEM) | L25: =SUMPRODUCT('Rental Income'!$H$6:$H$13,'Rental Income'!O6:O13)*52 -> 0 | M25: =SUMPRODUCT('Rental Income'!$H$6:$H$13,'Rental Income'!P6:P13)*52 -> 0 | N25: =SUMPRODUCT('Rental Income'!$H$6:$H$13,'Rental Income'!Q6:Q13)*52 -> 0 | O25: =SUMPRODUCT('Rental Income'!$H$6:$H$13,'Rental Income'!R6:R13)*52 -> 0 | P25: =SUMPRODUCT('Rental Income'!$H$6:$H$13,'Rental Income'!S6:S13)*52 -> 0 | Q25: =SUM('Rental Income'!H6:H13)*52 -> 0 | S25: Bracket 4: 135000 to 190000 | T25: =IF(T$21>'All data points & rules'!$I7,('All data points & rules'!$I7-'All data points & rules'!$H7)*'All data points & rules'!$J7,IF(T$21<'All data points & rules'!$H7,0,(T$21-'All data points & rules'!$H7)*'All data points & rules'!$J7)) -> 0 | U25: =IF(U$21>'All data points & rules'!$I7,('All data points & rules'!$I7-'All data points & rules'!$H7)*'All data points & rules'!$J7,IF(U$21<'All data points & rules'!$H7,0,(U$21-'All data points & rules'!$H7)*'All data points & rules'!$J7)) -> 0 | V25: =IF(V$21>'All data points & rules'!$I7,('All data points & rules'!$I7-'All data points & rules'!$H7)*'All data points & rules'!$J7,IF(V$21<'All data points & rules'!$H7,0,(V$21-'All data points & rules'!$H7)*'All data points & rules'!$J7)) -> 0 | W25: =IF(W$21>'All data points & rules'!$I7,('All data points & rules'!$I7-'All data points & rules'!$H7)*'All data points & rules'!$J7,IF(W$21<'All data points & rules'!$H7,0,(W$21-'All data points & rules'!$H7)*'All data points & rules'!$J7)) -> 0 | X25: =IF(X$21>'All data points & rules'!$I7,('All data points & rules'!$I7-'All data points & rules'!$H7)*'All data points & rules'!$J7,IF(X$21<'All data points & rules'!$H7,0,(X$21-'All data points & rules'!$H7)*'All data points & rules'!$J7)) -> 0
B26: Total gross income | C26: =SUM(C17:C25) -> 0 | D26: =SUM(D17:D25) -> 0 | E26: =SUM(E17:E25) -> 0 | F26: =SUM(F17:F25) -> 0 | G26: =SUM(G17:G25) -> 0 | H26: =SUM(C26:G26) -> 0 | K26: Total non-discounted income | L26: =SUM(L17:L25) -> 0 | M26: =SUM(M17:M25) -> 0 | N26: =SUM(N17:N25) -> 0 | O26: 0 | P26: 0 | S26: Bracket 5: 190000 to - | T26: =IF(T$21>'All data points & rules'!$I8,('All data points & rules'!$I8-'All data points & rules'!$H8)*'All data points & rules'!$J8,IF(T$21<'All data points & rules'!$H8,0,(T$21-'All data points & rules'!$H8)*'All data points & rules'!$J8)) -> 0 | U26: =IF(U$21>'All data points & rules'!$I8,('All data points & rules'!$I8-'All data points & rules'!$H8)*'All data points & rules'!$J8,IF(U$21<'All data points & rules'!$H8,0,(U$21-'All data points & rules'!$H8)*'All data points & rules'!$J8)) -> 0 | V26: =IF(V$21>'All data points & rules'!$I8,('All data points & rules'!$I8-'All data points & rules'!$H8)*'All data points & rules'!$J8,IF(V$21<'All data points & rules'!$H8,0,(V$21-'All data points & rules'!$H8)*'All data points & rules'!$J8)) -> 0 | W26: =IF(W$21>'All data points & rules'!$I8,('All data points & rules'!$I8-'All data points & rules'!$H8)*'All data points & rules'!$J8,IF(W$21<'All data points & rules'!$H8,0,(W$21-'All data points & rules'!$H8)*'All data points & rules'!$J8)) -> 0 | X26: =IF(X$21>'All data points & rules'!$I8,('All data points & rules'!$I8-'All data points & rules'!$H8)*'All data points & rules'!$J8,IF(X$21<'All data points & rules'!$H8,0,(X$21-'All data points & rules'!$H8)*'All data points & rules'!$J8)) -> 0
B28: Pre-tax deductions | C28: =SUMIFS(Deductions!$E$7:$E$16,Deductions!$H$7:$H$16,1,Deductions!$J$7:$J$16,"No",Deductions!$I$7:$I$16,"Pre") -> 0 | D28: =SUMIFS(Deductions!$E$7:$E$16,Deductions!$H$7:$H$16,2,Deductions!$J$7:$J$16,"No",Deductions!$I$7:$I$16,"Pre") -> 0 | E28: =SUMIFS(Deductions!$E$7:$E$16,Deductions!$H$7:$H$16,3,Deductions!$J$7:$J$16,"No",Deductions!$I$7:$I$16,"Pre") -> 0 | F28: =SUMIFS(Deductions!$E$7:$E$16,Deductions!$H$7:$H$16,4,Deductions!$J$7:$J$16,"No",Deductions!$I$7:$I$16,"Pre") -> 0 | G28: =SUMIFS(Deductions!$E$7:$E$16,Deductions!$H$7:$H$16,5,Deductions!$J$7:$J$16,"No",Deductions!$I$7:$I$16,"Pre") -> 0 | H28: =SUM(C28:G28) -> 0 | I28: Deductions only included if can't be converted to cash | S28: Tax expense | T28: =SUM(T22:T26) -> 0 | U28: =SUM(U22:U26) -> 0 | V28: 0 | W28: 0 | X28: 0 | Y28: =SUM(T28:X28) -> 0
B29: Negative gearing expense | C29: =SUMPRODUCT('Rental Income'!$N$6:$N$13,'Rental Income'!O6:O13)*12 -> 0 | D29: =SUMPRODUCT('Rental Income'!$N$6:$N$13,'Rental Income'!P6:P13)*12 -> 0 | E29: =SUMPRODUCT('Rental Income'!$N$6:$N$13,'Rental Income'!Q6:Q13)*12 -> 0 | F29: =SUMPRODUCT('Rental Income'!$N$6:$N$13,'Rental Income'!R6:R13)*12 -> 0 | G29: =SUMPRODUCT('Rental Income'!$N$6:$N$13,'Rental Income'!S6:S13)*12 -> 0 | H29: =SUM(C29:G29) -> 0 | I29: Removed as a pre-tax expense. Added back for NMS calc. | S29: Medicare expense | T29: =IF(T21<='All data points & rules'!$I$11,0,IF(T21>'All data points & rules'!$I$12,T21*'All data points & rules'!$I$10,(T21-'All data points & rules'!$I$11)*0.1)) -> 0 | U29: =IF(U21<='All data points & rules'!$I$11,0,IF(U21>'All data points & rules'!$I$12,U21*'All data points & rules'!$I$10,(U21-'All data points & rules'!$I$11)*0.1)) -> 0 | V29: =IF(V21<='All data points & rules'!$I$11,0,IF(V21>'All data points & rules'!$I$12,V21*'All data points & rules'!$I$10,(V21-'All data points & rules'!$I$11)*0.1)) -> 0 | W29: =IF(W21<='All data points & rules'!$I$11,0,IF(W21>'All data points & rules'!$I$12,W21*'All data points & rules'!$I$10,(W21-'All data points & rules'!$I$11)*0.1)) -> 0 | X29: =IF(X21<='All data points & rules'!$I$11,0,IF(X21>'All data points & rules'!$I$12,X21*'All data points & rules'!$I$10,(X21-'All data points & rules'!$I$11)*0.1)) -> 0 | Y29: =SUM(T29:X29) -> 0
B30: Taxable Income | C30: =C26-C28-C29 -> 0 | D30: =D26-D28-D29 -> 0 | E30: =E26-E28-E29 -> 0 | F30: 0 | G30: 0 | H30: =SUM(C30:G30) -> 0 | S30: HECS | T30: =IF(C6=FALSE,0,MIN((T21-C22-C24-C25+C29)*(SUMIFS('All data points & rules'!$J$17:$J$35,'All data points & rules'!$H$17:$H$35,"<="&(T21-C22-C24-C25+C29),'All data points & rules'!$I$17:$I$35,">="&(T21-C22-C24-C25+C29))),'Customer view page'!E61)) -> 0 | U30: =IF(D6=FALSE,0,MIN((U21-D22-D24-D25+D29)*(SUMIFS('All data points & rules'!$J$17:$J$35,'All data points & rules'!$H$17:$H$35,"<="&(U21-D22-D24-D25+D29),'All data points & rules'!$I$17:$I$35,">="&(U21-D22-D24-D25+D29))),'Customer view page'!G61)) -> 0 | V30: =IF(E6=FALSE,0,MIN((V21-E22-E24-E25+E29)*(SUMIFS('All data points & rules'!$J$17:$J$35,'All data points & rules'!$H$17:$H$35,"<="&(V21-E22-E24-E25+E29),'All data points & rules'!$I$17:$I$35,">="&(V21-E22-E24-E25+E29))),'Customer view page'!I61)) -> 0 | W30: =IF(F6=FALSE,0,MIN((W21-F22-F24-F25+F29)*(SUMIFS('All data points & rules'!$J$17:$J$35,'All data points & rules'!$H$17:$H$35,"<="&(W21-F22-F24-F25+F29),'All data points & rules'!$I$17:$I$35,">="&(W21-F22-F24-F25+F29))),'Customer view page'!K61)) -> 0 | X30: =IF(G6=FALSE,0,MIN((X21-G22-G24-G25+G29)*(SUMIFS('All data points & rules'!$J$17:$J$35,'All data points & rules'!$H$17:$H$35,"<="&(X21-G22-G24-G25+G29),'All data points & rules'!$I$17:$I$35,">="&(X21-G22-G24-G25+G29))),'Customer view page'!N61)) -> 0 | Y30: =SUM(T30:X30) -> 0
B32: Income tax | S32: Net income (post-tax, incl. medicare) | T32: =T21-T28-T29-T30 -> 0 | U32: =U21-U28-U29-U30 -> 0 | V32: 0 | W32: 0 | X32: =X21-X28-X29-X30 -> 0 | Y32: =SUM(T32:X32) -> 0
B33: ="Bracket 1: " & 'All data points & rules'!H4 & " to " &'All data points & rules'!I4 -> Bracket 1: 0.01 to 18200 | C33: 0 | D33: 0 | E33: 0 | F33: 0 | G33: 0 | S33: Difference when incl pre-tax deductions | T33: =T32-C45 -> 0 | U33: =U32-D45 -> 0 | V33: =V32-E45 -> 0 | W33: 0 | X33: =X32-G45 -> 0 | Y33: =SUM(T33:X33) -> 0
B34: ="Bracket 2: " & 'All data points & rules'!H5 & " to " &'All data points & rules'!I5 -> Bracket 2: 18200.01 to 45000 | C34: =IF(C$30>'All data points & rules'!$I5,('All data points & rules'!$I5-'All data points & rules'!$H5)*'All data points & rules'!$J5,IF(C$30<'All data points & rules'!$H5,0,(C$30-'All data points & rules'!$H5)*'All data points & rules'!$J5)) -> 0 | D34: =IF(D$30>'All data points & rules'!$I5,('All data points & rules'!$I5-'All data points & rules'!$H5)*'All data points & rules'!$J5,IF(D$30<'All data points & rules'!$H5,0,(D$30-'All data points & rules'!$H5)*'All data points & rules'!$J5)) -> 0 | E34: =IF(E$30>'All data points & rules'!$I5,('All data points & rules'!$I5-'All data points & rules'!$H5)*'All data points & rules'!$J5,IF(E$30<'All data points & rules'!$H5,0,(E$30-'All data points & rules'!$H5)*'All data points & rules'!$J5)) -> 0 | F34: =IF(F$30>'All data points & rules'!$I5,('All data points & rules'!$I5-'All data points & rules'!$H5)*'All data points & rules'!$J5,IF(F$30<'All data points & rules'!$H5,0,(F$30-'All data points & rules'!$H5)*'All data points & rules'!$J5)) -> 0 | G34: =IF(G$30>'All data points & rules'!$I5,('All data points & rules'!$I5-'All data points & rules'!$H5)*'All data points & rules'!$J5,IF(G$30<'All data points & rules'!$H5,0,(G$30-'All data points & rules'!$H5)*'All data points & rules'!$J5)) -> 0 | S34: Pre-tax monthly deductions | T34: =T33/12 -> 0 | U34: =U33/12 -> 0 | V34: 0 | W34: 0 | X34: 0 | Y34: =SUM(T34:X34) -> 0
B35: ="Bracket 3: " & 'All data points & rules'!H6 & " to " &'All data points & rules'!I6 -> Bracket 3: 45000.01 to 135000 | C35: =IF(C$30>'All data points & rules'!$I6,('All data points & rules'!$I6-'All data points & rules'!$H6)*'All data points & rules'!$J6,IF(C$30<'All data points & rules'!$H6,0,(C$30-'All data points & rules'!$H6)*'All data points & rules'!$J6)) -> 0 | D35: =IF(D$30>'All data points & rules'!$I6,('All data points & rules'!$I6-'All data points & rules'!$H6)*'All data points & rules'!$J6,IF(D$30<'All data points & rules'!$H6,0,(D$30-'All data points & rules'!$H6)*'All data points & rules'!$J6)) -> 0 | E35: =IF(E$30>'All data points & rules'!$I6,('All data points & rules'!$I6-'All data points & rules'!$H6)*'All data points & rules'!$J6,IF(E$30<'All data points & rules'!$H6,0,(E$30-'All data points & rules'!$H6)*'All data points & rules'!$J6)) -> 0 | F35: =IF(F$30>'All data points & rules'!$I6,('All data points & rules'!$I6-'All data points & rules'!$H6)*'All data points & rules'!$J6,IF(F$30<'All data points & rules'!$H6,0,(F$30-'All data points & rules'!$H6)*'All data points & rules'!$J6)) -> 0 | G35: =IF(G$30>'All data points & rules'!$I6,('All data points & rules'!$I6-'All data points & rules'!$H6)*'All data points & rules'!$J6,IF(G$30<'All data points & rules'!$H6,0,(G$30-'All data points & rules'!$H6)*'All data points & rules'!$J6)) -> 0 | S35: Total monthly deductions | T35: =T34+T18 -> 0 | U35: =U34+U18 -> 0 | V35: =V34+V18 -> 0 | W35: 0 | X35: 0 | Y35: =SUM(T35:X35) -> 0
B36: ="Bracket 4: " & 'All data points & rules'!H7 & " to " &'All data points & rules'!I7 -> Bracket 4: 135000 to 190000 | C36: =IF(C$30>'All data points & rules'!$I7,('All data points & rules'!$I7-'All data points & rules'!$H7)*'All data points & rules'!$J7,IF(C$30<'All data points & rules'!$H7,0,(C$30-'All data points & rules'!$H7)*'All data points & rules'!$J7)) -> 0 | D36: =IF(D$30>'All data points & rules'!$I7,('All data points & rules'!$I7-'All data points & rules'!$H7)*'All data points & rules'!$J7,IF(D$30<'All data points & rules'!$H7,0,(D$30-'All data points & rules'!$H7)*'All data points & rules'!$J7)) -> 0 | E36: =IF(E$30>'All data points & rules'!$I7,('All data points & rules'!$I7-'All data points & rules'!$H7)*'All data points & rules'!$J7,IF(E$30<'All data points & rules'!$H7,0,(E$30-'All data points & rules'!$H7)*'All data points & rules'!$J7)) -> 0 | F36: =IF(F$30>'All data points & rules'!$I7,('All data points & rules'!$I7-'All data points & rules'!$H7)*'All data points & rules'!$J7,IF(F$30<'All data points & rules'!$H7,0,(F$30-'All data points & rules'!$H7)*'All data points & rules'!$J7)) -> 0 | G36: =IF(G$30>'All data points & rules'!$I7,('All data points & rules'!$I7-'All data points & rules'!$H7)*'All data points & rules'!$J7,IF(G$30<'All data points & rules'!$H7,0,(G$30-'All data points & rules'!$H7)*'All data points & rules'!$J7)) -> 0
B37: ="Bracket 5: " & 'All data points & rules'!H8 & " to " &'All data points & rules'!I8 -> Bracket 5: 190000 to - | C37: =IF(C$30>'All data points & rules'!$I8,('All data points & rules'!$I8-'All data points & rules'!$H8)*'All data points & rules'!$J8,IF(C$30<'All data points & rules'!$H8,0,(C$30-'All data points & rules'!$H8)*'All data points & rules'!$J8)) -> 0 | D37: =IF(D$30>'All data points & rules'!$I8,('All data points & rules'!$I8-'All data points & rules'!$H8)*'All data points & rules'!$J8,IF(D$30<'All data points & rules'!$H8,0,(D$30-'All data points & rules'!$H8)*'All data points & rules'!$J8)) -> 0 | E37: =IF(E$30>'All data points & rules'!$I8,('All data points & rules'!$I8-'All data points & rules'!$H8)*'All data points & rules'!$J8,IF(E$30<'All data points & rules'!$H8,0,(E$30-'All data points & rules'!$H8)*'All data points & rules'!$J8)) -> 0 | F37: =IF(F$30>'All data points & rules'!$I8,('All data points & rules'!$I8-'All data points & rules'!$H8)*'All data points & rules'!$J8,IF(F$30<'All data points & rules'!$H8,0,(F$30-'All data points & rules'!$H8)*'All data points & rules'!$J8)) -> 0 | G37: =IF(G$30>'All data points & rules'!$I8,('All data points & rules'!$I8-'All data points & rules'!$H8)*'All data points & rules'!$J8,IF(G$30<'All data points & rules'!$H8,0,(G$30-'All data points & rules'!$H8)*'All data points & rules'!$J8)) -> 0
B38: Tax expense | C38: =SUM(C33:C37) -> 0 | D38: =SUM(D33:D37) -> 0 | E38: =SUM(E33:E37) -> 0 | F38: =SUM(F33:F37) -> 0 | G38: =SUM(G33:G37) -> 0 | H38: =SUM(C38:G38) -> 0 | I38: Calculated using latest tax income brackets
B40: HECS | C40: =IF(OR(C6=FALSE,ISBLANK(C6)),0,MIN((C30-C22-C24-C25+C29)*(SUMIFS('All data points & rules'!$J$17:$J$35,'All data points & rules'!$H$17:$H$35,"<="&(C30-C22-C24-C25+C29),'All data points & rules'!$I$17:$I$35,">="&(C30-C22-C24-C25+C29))),'Customer view page'!E61)) -> 0 | D40: =IF(OR(D6=FALSE,ISBLANK(D6)),0,MIN((D30-D22-D24-D25+D29)*(SUMIFS('All data points & rules'!$J$17:$J$35,'All data points & rules'!$H$17:$H$35,"<="&(D30-D22-D24-D25+D29),'All data points & rules'!$I$17:$I$35,">="&(D30-D22-D24-D25+D29))),'Customer view page'!G61)) -> 0 | E40: =IF(OR(E6=FALSE,ISBLANK(E6)),0,MIN((E30-E22-E24-E25+E29)*(SUMIFS('All data points & rules'!$J$17:$J$35,'All data points & rules'!$H$17:$H$35,"<="&(E30-E22-E24-E25+E29),'All data points & rules'!$I$17:$I$35,">="&(E30-E22-E24-E25+E29))),'Customer view page'!I61)) -> 0 | F40: =IF(OR(F6=FALSE,ISBLANK(F6)),0,MIN((F30-F22-F24-F25+F29)*(SUMIFS('All data points & rules'!$J$17:$J$35,'All data points & rules'!$H$17:$H$35,"<="&(F30-F22-F24-F25+F29),'All data points & rules'!$I$17:$I$35,">="&(F30-F22-F24-F25+F29))),'Customer view page'!K61)) -> 0 | G40: =IF(OR(G6=FALSE,ISBLANK(G6)),0,MIN((G30-G22-G24-G25+G29)*(SUMIFS('All data points & rules'!$J$17:$J$35,'All data points & rules'!$H$17:$H$35,"<="&(G30-G22-G24-G25+G29),'All data points & rules'!$I$17:$I$35,">="&(G30-G22-G24-G25+G29))),'Customer view page'!N61)) -> 0 | H40: =SUM(C40:G40) -> 0 | I40: Based on PAYG/SE income; uses latest HECS/HELP thresholds
B42: Post-tax income | C42: =C30-C38-C40 -> 0 | D42: =D30-D38-D40 -> 0 | E42: =E30-E38-E40 -> 0 | F42: =F30-F38-F40 -> 0 | G42: =G30-G38-G40 -> 0 | H42: =SUM(C42:G42) -> 0 | I42: Total taxable income less income tax & HECS
B44: Medicare levy | C44: =IF(C30<='All data points & rules'!$I$11,0,IF(C30>'All data points & rules'!$I$12,C30*'All data points & rules'!$I$10,(C30-'All data points & rules'!$I$11)*0.1)) -> 0 | D44: =IF(D30<='All data points & rules'!$I$11,0,IF(D30>'All data points & rules'!$I$12,D30*'All data points & rules'!$I$10,(D30-'All data points & rules'!$I$11)*0.1)) -> 0 | E44: =IF(E30<='All data points & rules'!$I$11,0,IF(E30>'All data points & rules'!$I$12,E30*'All data points & rules'!$I$10,(E30-'All data points & rules'!$I$11)*0.1)) -> 0 | F44: =IF(F30<='All data points & rules'!$I$11,0,IF(F30>'All data points & rules'!$I$12,F30*'All data points & rules'!$I$10,(F30-'All data points & rules'!$I$11)*0.1)) -> 0 | G44: =IF(G30<='All data points & rules'!$I$11,0,IF(G30>'All data points & rules'!$I$12,G30*'All data points & rules'!$I$10,(G30-'All data points & rules'!$I$11)*0.1)) -> 0 | H44: =SUM(C44:G44) -> 0 | I44: Calculated as 2% of post-tax income
B45: Net income (incl Medicare) | C45: =C42-C44 -> 0 | D45: =D42-D44 -> 0 | E45: 0 | F45: 0 | G45: 0 | H45: =SUM(C45:G45) -> 0
B47: Non-taxed income | C47: ='Customer view page'!E25+'Customer view page'!E34 -> 0 | D47: ='Customer view page'!G25+'Customer view page'!G34 -> 0 | E47: ='Customer view page'!I25+'Customer view page'!I34 -> 0 | F47: ='Customer view page'!K25+'Customer view page'!K34 -> 0 | G47: ='Customer view page'!N25+'Customer view page'!N34 -> 0 | H47: =SUM(C47:G47) -> 0
B48: Post-tax deductions | C48: =SUMIFS(Deductions!$E$7:$E$16,Deductions!$H$7:$H$16,1,Deductions!$J$7:$J$16,"No",Deductions!$I$7:$I$16,"Post") -> 0 | D48: =SUMIFS(Deductions!$E$7:$E$16,Deductions!$H$7:$H$16,2,Deductions!$J$7:$J$16,"No",Deductions!$I$7:$I$16,"Post") -> 0 | E48: =SUMIFS(Deductions!$E$7:$E$16,Deductions!$H$7:$H$16,3,Deductions!$J$7:$J$16,"No",Deductions!$I$7:$I$16,"Post") -> 0 | F48: =SUMIFS(Deductions!$E$7:$E$16,Deductions!$H$7:$H$16,4,Deductions!$J$7:$J$16,"No",Deductions!$I$7:$I$16,"Post") -> 0 | G48: =SUMIFS(Deductions!$E$7:$E$16,Deductions!$H$7:$H$16,5,Deductions!$J$7:$J$16,"No",Deductions!$I$7:$I$16,"Post") -> 0 | H48: =SUM(C48:G48) -> 0 | I48: Deductions only included if can't be converted to cash
B49: Total net annual income | C49: =C45+C47-C48 -> 0 | D49: =D45+D47-D48 -> 0 | E49: 0 | F49: 0 | G49: 0 | H49: =SUM(C49:G49) -> 0
B51: Monthly debt commitments
B52: CC commitment | C52: =('Customer view page'!E60*'All data points & rules'!$F$6) -> 0 | D52: =('Customer view page'!F60*'All data points & rules'!$F$6) -> 0 | E52: =('Customer view page'!G60*'All data points & rules'!$F$6) -> 0 | F52: =('Customer view page'!H60*'All data points & rules'!$F$6) -> 0 | G52: =('Customer view page'!I60*'All data points & rules'!$F$6) -> 0 | H52: =SUM(C52:G52) -> 0 | I52: Calculated using an assumed credit card factor rate
B53: HECS | C53: =C40/12 -> 0 | D53: =D40/12 -> 0 | E53: =E40/12 -> 0 | F53: =F40/12 -> 0 | G53: =G40/12 -> 0 | H53: =SUM(C53:G53) -> 0 | I53: This was previously accounted for by reducing net income
B54: Existing debt repayments | H54: =SUM('Existing debt'!H16:H24)+SUM('Existing debt'!H6:H11) -> 0 | I54: Assessed repayments of existing debt (excl CC, HECS)
B55: New loan repayments (with buffer) | H55: =IF(SUM('New loan details & repayments'!F4:F13)=0,0,IF('New loan details & repayments'!C32="No",'New loan details & repayments'!K14,'New loan details & repayments'!M14)+IF('New loan details & repayments'!C16=TRUE,'New loan details & repayments'!F21)) -> 0 | I55: Assessed repayments of the new loan being applied for
B56: Total commitments | H56: =H52+H54+H55 -> 0
B58: Monthly expenses
B59: General living expenses (CDLE) | C59: ='Monthly expenses'!E28 -> 0 | D59: ='Monthly expenses'!F28 -> 0 | E59: ='Monthly expenses'!G28 -> 0 | F59: ='Monthly expenses'!H28 -> 0 | G59: ='Monthly expenses'!I28 -> 0 | H59: =SUM(C59:G59) -> 0 | I59: Expenses declared by borrowers which are comparable to HEM
B60: General living expenses (HEM) | H60: ='HEM tables & calculation'!L35 -> 0 | I60: Total HEM based on borrowers' income and dependents
B61: Higher of CDLE & HEM | H61: =IF(AND(H59=0,H62=0),0,'HEM tables & calculation'!M35) -> 0 | I61: Higher of CDLE & HEM, if CDLE is given
B62: Other living expenses | C62: ='Monthly expenses'!E31 -> 0 | D62: ='Monthly expenses'!F31 -> 0 | E62: ='Monthly expenses'!G31 -> 0 | F62: ='Monthly expenses'!H31 -> 0 | G62: ='Monthly expenses'!I31 -> 0 | H62: =SUM(C62:G62) -> 0 | I62: Additional expenses that are not comparable to HEM
B63: Total expenses | H63: =H61+H62 -> 0
B65: Net monthly surplus | E65: Debt-to-income | I65: Result
B66: Total income | F66: Total debt | I66: ='Customer view page'!$G$109 -> UNFINISHED
B67: =IF(H29>0,"Post-tax income (incl. neg gearing)","Post-tax income") -> Post-tax income | C67: =H49/12+H29/12 -> 0 | E67: New loan (inc. LMI if applicable) | G67: =IF('New loan details & repayments'!C16=TRUE,'New loan details & repayments'!C19,'New loan details & repayments'!C18) -> 0
B68: Total commitments | F68: Existing debt | G68: =SUM('Existing debt'!E16:E24)+SUM('Existing debt'!F6:F10)+SUM('Customer view page'!E61:O61) -> 0 | I68: ='Customer view page'!$G$113 -> 
B69: New loan repayments w/ buffer | C69: =H55 -> 0 | F69: Credit card debt | G69: =SUM('Customer view page'!E60:O60) -> 0
B70: Existing loan commitments | C70: =H52+H54 -> 0 | F70: Total debt | G70: =SUM(G67:G69) -> 0
B71: Total expenses
B72: General expenses | C72: =H61 -> 0 | F72: Total annual income
B73: Other living expenses | C73: =H62 -> 0 | F73: Gross income | G73: =Q17+Q18 -> 0 | I73: Note. This assessment is based on the information inputted by the user. Please ensure all information is correct and acceptable as per AMP Bank's credit policy.
B74: Net monthly surplus | C74: =C67-C69-C70-C72-C73 -> 0 | F74: Bonus | G74: =Q22 -> 0
F75: Investment | G75: =Q23 -> 0
F76: Otime/Comm | G76: =SUM(Q19:Q21) -> 0
F77: Rental | G77: =Q25 -> 0
F78: Foreign | G78: =SUM('Foreign Income'!D5:D9) -> 0
F79: Total income | G79: =SUM(G73:G78) -> 0
F81: DTI | G81: =IFERROR(G70/G79,0) -> 0

Sheet HEM tables & calculation (hidden)
A1: MONTHLY HEM TABLE | D1: ------------------------------------------------------------------------------------------------Income bands----------------------------------------------------------------------------------------------
C2: Min | D2: 0 | E2: =D3+0.01 -> 26000.01 | F2: =E3+0.01 -> 39000.01 | G2: 52000.01 | H2: 65000.01 | I2: 77000.01 | J2: 103000.01 | K2: 129000.01 | L2: 155000.01 | M2: 181000.01 | N2: 207000.01 | O2: 258000.01 | P2: 323000.01 | Q2: 387000.01
C3: Max | D3: 26000 | E3: 39000 | F3: 52000 | G3: 65000 | H3: 77000 | I3: 103000 | J3: 129000 | K3: 155000 | L3: 181000 | M3: 207000 | N3: 258000 | O3: 323000 | P3: 387000 | Q3: 100000000
C6: HEM Q4 2024 | D6: =D2 & " to " & D3 -> 0 to 26000 | E6: =E2 & " to " & E3 -> 26000.01 to 39000 | F6: 39000.01 to 52000 | G6: 52000.01 to 65000 | H6: 65000.01 to 77000 | I6: 77000.01 to 103000 | J6: 103000.01 to 129000 | K6: 129000.01 to 155000 | L6: 155000.01 to 181000 | M6: 181000.01 to 207000 | N6: 207000.01 to 258000 | O6: 258000.01 to 323000 | P6: 323000.01 to 387000 | Q6: 387000.01 to 100000000 | S6: NOTE: only update rows with 0 - 2 dependents (3 kids = formula driven); convert HEM figures to monthly prior to pasting (*52/12) - if not done already. Any cells you don't need to update will be locked. Ensure to check if income bands need to be updated.
A7: Couple | B7: 0 | C7: Couple with 0 | D7: 2576.35 | E7: 2576.35 | F7: 2645.63 | G7: 2758.21 | H7: 2931.41 | I7: 3195.54 | J7: 3576.58 | K7: 3905.66 | L7: 4247.73 | M7: 4468.56 | N7: 4745.68 | O7: 5243.63 | P7: 5988.39 | Q7: 6083.65
A8: Couple | B8: 1 | C8: Couple with 1 | D8: 2576.35 | E8: 2576.35 | F8: 3022.34 | G8: 3130.59 | H8: 3303.79 | I8: 3567.92 | J8: 3948.96 | K8: 4278.04 | L8: 4615.78 | M8: 4840.94 | N8: 5118.06 | O8: 5611.68 | P8: 6356.44 | Q8: 6451.7
A9: Couple | B9: 2 | C9: Couple with 2 | D9: 2576.35 | E9: 2576.35 | F9: 3316.78 | G9: 3425.03 | H9: 3602.56 | I9: 3862.36 | J9: 4247.73 | K9: 4576.81 | L9: 4914.55 | M9: 5135.38 | N9: 5412.5 | O9: 5910.45 | P9: 6655.21 | Q9: 6750.47
A10: Couple | B10: 3 | C10: Couple with 3 | D10: =D9+D11 -> 2576.35 | E10: =E9+E11 -> 2576.35 | F10: 3316.78 | G10: 3774.013628 | H10: 3953.749102 | I10: 4216.848739 | J10: 4607.038775 | K10: 4940.265172 | L10: 5282.268166 | M10: 5505.914224 | N10: 5786.518862 | O10: 6290.718706 | P10: 7044.850149 | Q10: 7141.320726
A11: Couple | B11: Add Dep | C11: Couple Per child | D11: 0 | E11: 0 | F11: 0 | G11: 348.9836281 | H11: 351.1891016 | I11: 354.4887388 | J11: 359.3087752 | K11: 363.4551717 | L11: 367.7181663 | M11: 370.5342245 | N11: 374.0188623 | O11: 380.2687064 | P11: 389.6401492 | Q11: 390.8507257
A12: Single | B12: 0 | C12: Single with 0 | D12: 1337.97 | E12: 1407.25 | F12: 1476.53 | G12: 1584.78 | H12: 1762.31 | I12: 2026.44 | J12: 2411.81 | K12: 2745.22 | L12: 3087.29 | M12: 3312.45 | N12: 3589.57 | O12: 4087.52 | P12: 4840.94 | Q12: 4936.2
A13: Single | B13: 1 | C13: Single with 1 | D13: 1337.97 | E13: 1835.92 | F13: 1905.2 | G13: 2017.78 | H13: 2195.31 | I13: 2459.44 | J13: 2844.81 | K13: 3178.22 | L13: 3520.29 | M13: 3745.45 | N13: 4026.9 | O13: 4529.18 | P13: 5282.6 | Q13: 5377.86
A14: Single | B14: 2 | C14: Single with 2 | D14: 1337.97 | E14: 2351.19 | F14: 2424.8 | G14: 2533.05 | H14: 2714.91 | I14: 2979.04 | J14: 3373.07 | K14: 3706.48 | L14: 4052.88 | M14: 4282.37 | N14: 4563.82 | O14: 5070.43 | P14: 5828.18 | Q14: 5927.77
A15: Single | B15: 3 | C15: Single with 3 | D15: =D14+D16 -> 1337.97 | E15: =E14+E16 -> 2351.19 | F15: 2942.781479 | G15: 3051.965746 | H15: 3235.314029 | I15: 3501.670664 | J15: 3898.953288 | K15: 4235.161326 | L15: 4584.438061 | M15: 4815.828357 | N15: 5099.629832 | O15: 5610.457308 | P15: 6374.531288 | Q15: =Q14+Q16 -> 6474.938221
A16: Single | B16: Add Dep | C16: Single Per child | D16: 0 | E16: 0 | F16: 517.9814795 | G16: 518.9157461 | H16: 520.4040294 | I16: 522.6306641 | J16: 525.8832881 | K16: 528.6813264 | L16: 531.5580608 | M16: 533.4583567 | N16: 535.809832 | O16: 540.0273079 | P16: 546.3512884 | Q16: 547.1682207
M17: NOTE: do not update red figures
C19: Applicant spousal matrix (for HEM)
D20: Couple | J20: Single
D21: Applicant 1 | E21: Applicant 2 | F21: Applicant 3 | G21: Applicant 4 | H21: Applicant 5 | I21: Non-applicant
C22: App 1 | D22: - | E22: =IF(AND('Customer view page'!$E$8=$D$20,'Customer view page'!$E$9=E21),"Y","N/A") -> N/A | F22: =IF(AND('Customer view page'!$E$8=$D$20,'Customer view page'!$E$9=F21),"Y","N/A") -> N/A | G22: =IF(AND('Customer view page'!$E$8=$D$20,'Customer view page'!$E$9=G21),"Y","N/A") -> N/A | H22: =IF(AND('Customer view page'!$E$8=$D$20,'Customer view page'!$E$9=H21),"Y","N/A") -> N/A | I22: =IF(AND('Customer view page'!$E$8=$D$20,'Customer view page'!$E$9=I21),"Y","N/A") -> N/A | J22: =IF('Customer view page'!$E$8=J20,"Y","N/A") -> N/A
C23: App 2 | D23: =IF(AND('Customer view page'!$G$8=$D$20,'Customer view page'!$G$9=D21),"Y","N/A") -> N/A | E23: - | F23: =IF(AND('Customer view page'!$G$8=$D$20,'Customer view page'!$G$9=F21),"Y","N/A") -> N/A | G23: =IF(AND('Customer view page'!$G$8=$D$20,'Customer view page'!$G$9=G21),"Y","N/A") -> N/A | H23: =IF(AND('Customer view page'!$G$8=$D$20,'Customer view page'!$G$9=H21),"Y","N/A") -> N/A | I23: =IF(AND('Customer view page'!$G$8=$D$20,'Customer view page'!$G$9=I21),"Y","N/A") -> N/A | J23: =IF('Customer view page'!$G$8=J20,"Y","N/A") -> N/A
C24: App 3 | D24: =IF(AND('Customer view page'!$I$8=$D$20,'Customer view page'!$I$9=D21),"Y","N/A") -> N/A | E24: =IF(AND('Customer view page'!$I$8=$D$20,'Customer view page'!$I$9=E21),"Y","N/A") -> N/A | F24: - | G24: =IF(AND('Customer view page'!$I$8=$D$20,'Customer view page'!$I$9=G21),"Y","N/A") -> N/A | H24: =IF(AND('Customer view page'!$I$8=$D$20,'Customer view page'!$I$9=H21),"Y","N/A") -> N/A | I24: =IF(AND('Customer view page'!$I$8=$D$20,'Customer view page'!$I$9=I21),"Y","N/A") -> N/A | J24: =IF('Customer view page'!$I$8=J20,"Y","N/A") -> N/A
C25: App 4 | D25: =IF(AND('Customer view page'!$K$8=$D$20,'Customer view page'!$K$9=D21),"Y","N/A") -> N/A | E25: =IF(AND('Customer view page'!$K$8=$D$20,'Customer view page'!$K$9=E21),"Y","N/A") -> N/A | F25: =IF(AND('Customer view page'!$K$8=$D$20,'Customer view page'!$K$9=F21),"Y","N/A") -> N/A | G25: - | H25: =IF(AND('Customer view page'!$K$8=$D$20,'Customer view page'!$K$9=H21),"Y","N/A") -> N/A | I25: =IF(AND('Customer view page'!$K$8=$D$20,'Customer view page'!$K$9=I21),"Y","N/A") -> N/A | J25: =IF('Customer view page'!$K$8=J20,"Y","N/A") -> N/A
C26: App 5 | D26: =IF(AND('Customer view page'!$N$8=$D$20,'Customer view page'!$N$9=D21),"Y","N/A") -> N/A | E26: =IF(AND('Customer view page'!$N$8=$D$20,'Customer view page'!$N$9=E21),"Y","N/A") -> N/A | F26: =IF(AND('Customer view page'!$N$8=$D$20,'Customer view page'!$N$9=F21),"Y","N/A") -> N/A | G26: =IF(AND('Customer view page'!$N$8=$D$20,'Customer view page'!$N$9=G21),"Y","N/A") -> N/A | H26: - | I26: =IF(AND('Customer view page'!$N$8=$D$20,'Customer view page'!$N$9=I21),"Y","N/A") -> N/A | J26: =IF('Customer view page'!$N$8=J20,"Y","N/A") -> N/A
D29: Type | E29: Couple With | F29: Dependents | G29: Income | H29: Closest income | I29: HEM (if couple) | J29: HEM (if single) | K29: CDLE (to compare) | L29: Relevant HEM | M29: HEM or CDLE?
C30: Applicant 1 as lead | D30: =IF(AND('HEM tables & calculation'!E22="N/A",'HEM tables & calculation'!F22="N/A",'HEM tables & calculation'!G22="N/A",'HEM tables & calculation'!H22="N/A",'HEM tables & calculation'!I22="N/A",'HEM tables & calculation'!J22="N/A"),"",IF('HEM tables & calculation'!J22="Y","Single",IF(OR('HEM tables & calculation'!E22="Y",'HEM tables & calculation'!F22="Y",'HEM tables & calculation'!G22="Y",'HEM tables & calculation'!H22="Y",'HEM tables & calculation'!I22="Y"),"Couple","ERROR"))) ->  | E30: =IF(D30="Couple",'Serviceability calculations'!C4,"") ->  | F30: =IFERROR(IF(OR($D30="Single",$E30="Non-applicant"),'Serviceability calculations'!$C$5,'Serviceability calculations'!$C$5+HLOOKUP($E30,'Serviceability calculations'!$C$1:$G$5,5,0)),"") ->  | G30: =IFERROR(IF(OR($D30="Single",$E30="Non-applicant"),$D$46,$D$46+HLOOKUP($E30,$D$40:$H$46,7,0)),0) -> 0 | H30: =MAX(IF('HEM tables & calculation'!$D$2:$Q$2<G30,'HEM tables & calculation'!$D$2:$Q$2)) -> 0 | I30: =IFERROR(INDEX('HEM tables & calculation'!$A$1:$Q$11,MATCH('HEM tables & calculation'!F30,'HEM tables & calculation'!$B$1:$B$11),MATCH(H30,'HEM tables & calculation'!$A$2:$Q$2))+IF(F30>$D$36,INDEX('HEM tables & calculation'!$A$1:$Q$11,MATCH($C$36,'HEM tables & calculation'!$B$1:$B$11),MATCH(H30,'HEM tables & calculation'!$A$2:$Q$2))*(F30-$D$36),0),"") ->  | J30: =IFERROR(INDEX('HEM tables & calculation'!$A$1:$Q$16,MATCH('HEM tables & calculation'!F30,'HEM tables & calculation'!$B$1:$B$10)+5,MATCH(H30,'HEM tables & calculation'!$A$2:$Q$2))+IF(F30>$D$36,INDEX('HEM tables & calculation'!$A$1:$Q$16,MATCH('HEM tables & calculation'!F30,'HEM tables & calculation'!$B$1:$B$10)+6,MATCH(H30,'HEM tables & calculation'!$A$2:$Q$2))*(F30-$D$36),0),"") ->  | K30: =IFERROR(IF(OR($D30="Single",$E30="Non-applicant"),'Serviceability calculations'!$C$59,'Serviceability calculations'!$C$59+HLOOKUP($E30,'Serviceability calculations'!$C$1:$H$61,59,0)),"") ->  | L30: =IF(D30="Couple",I30,IF(D30="Single",J30,"")) ->  | M30: =IF(K30=0,0,MAX(K30:L30)) -> 0
C31: Applicant 2 as lead | D31: =IF('HEM tables & calculation'!D23="Y","",IF(AND('HEM tables & calculation'!D23="N/A",'HEM tables & calculation'!F23="N/A",'HEM tables & calculation'!G23="N/A",'HEM tables & calculation'!H23="N/A",'HEM tables & calculation'!I23="N/A",'HEM tables & calculation'!J23="N/A"),"",IF('HEM tables & calculation'!J23="Y","Single",IF(OR('HEM tables & calculation'!F23="Y",'HEM tables & calculation'!G23="Y",'HEM tables & calculation'!H23="Y",'HEM tables & calculation'!I23="Y"),"Couple","ERROR")))) ->  | E31: =IF(D31="Couple",'Serviceability calculations'!D4,"") ->  | F31: =IFERROR(IF(OR($D31="Single",$E31="Non-applicant"),'Serviceability calculations'!$D$5,'Serviceability calculations'!$D$5+HLOOKUP($E31,'Serviceability calculations'!$C$1:$G$5,5,0)),"") ->  | G31: =IFERROR(IF(OR($D31="Single",$E31="Non-applicant"),$E$46,$E$46+HLOOKUP($E31,$D$40:$H$46,7,0)),0) -> 0 | H31: =MAX(IF('HEM tables & calculation'!$D$2:$Q$2<G31,'HEM tables & calculation'!$D$2:$Q$2)) -> 0 | I31: =IFERROR(INDEX('HEM tables & calculation'!$A$1:$Q$11,MATCH('HEM tables & calculation'!F31,'HEM tables & calculation'!$B$1:$B$11),MATCH(H31,'HEM tables & calculation'!$A$2:$Q$2))+IF(F31>$D$36,INDEX('HEM tables & calculation'!$A$1:$Q$11,MATCH($C$36,'HEM tables & calculation'!$B$1:$B$11),MATCH(H31,'HEM tables & calculation'!$A$2:$Q$2))*(F31-$D$36),0),"") ->  | J31: =IFERROR(INDEX('HEM tables & calculation'!$A$1:$Q$16,MATCH('HEM tables & calculation'!F31,'HEM tables & calculation'!$B$1:$B$10)+5,MATCH(H31,'HEM tables & calculation'!$A$2:$Q$2))+IF(F31>$D$36,INDEX('HEM tables & calculation'!$A$1:$Q$16,MATCH('HEM tables & calculation'!F31,'HEM tables & calculation'!$B$1:$B$10)+6,MATCH(H31,'HEM tables & calculation'!$A$2:$Q$2))*(F31-$D$36),0),"") ->  | K31: =IFERROR(IF(OR($D31="Single",$E31="Non-applicant"),'Serviceability calculations'!$D$59,'Serviceability calculations'!$D$59+HLOOKUP($E31,'Serviceability calculations'!$C$1:$H$61,59,0)),"") ->  | L31: =IF(D31="Couple",I31,IF(D31="Single",J31,"")) ->  | M31: =IF(K31=0,0,MAX(K31:L31)) -> 0
C32: Applicant 3 as lead | D32: =IF(OR('HEM tables & calculation'!D24="Y",'HEM tables & calculation'!E24="Y"),"",IF(AND('HEM tables & calculation'!D24="N/A",'HEM tables & calculation'!E24="N/A",'HEM tables & calculation'!G24="N/A",'HEM tables & calculation'!H24="N/A",'HEM tables & calculation'!I24="N/A",'HEM tables & calculation'!J24="N/A"),"",IF('HEM tables & calculation'!J24="Y","Single",IF(OR('HEM tables & calculation'!G24="Y",'HEM tables & calculation'!H24="Y",'HEM tables & calculation'!I24="Y"),"Couple","ERROR")))) ->  | E32: =IF(D32="Couple",'Serviceability calculations'!E4,"") ->  | F32: =IFERROR(IF(OR($D32="Single",$E32="Non-applicant"),'Serviceability calculations'!$E$5,'Serviceability calculations'!$E$5+HLOOKUP($E32,'Serviceability calculations'!$C$1:$G$5,5,0)),"") ->  | G32: =IFERROR(IF(OR($D32="Single",$E32="Non-applicant"),$F$46,$F$46+HLOOKUP($E32,$D$40:$H$46,7,0)),0) -> 0 | H32: =MAX(IF('HEM tables & calculation'!$D$2:$Q$2<G32,'HEM tables & calculation'!$D$2:$Q$2)) -> 0 | I32: =IFERROR(INDEX('HEM tables & calculation'!$A$1:$Q$11,MATCH('HEM tables & calculation'!F32,'HEM tables & calculation'!$B$1:$B$11),MATCH(H32,'HEM tables & calculation'!$A$2:$Q$2))+IF(F32>$D$36,INDEX('HEM tables & calculation'!$A$1:$Q$11,MATCH($C$36,'HEM tables & calculation'!$B$1:$B$11),MATCH(H32,'HEM tables & calculation'!$A$2:$Q$2))*(F32-$D$36),0),"") ->  | J32: =IFERROR(INDEX('HEM tables & calculation'!$A$1:$Q$16,MATCH('HEM tables & calculation'!F32,'HEM tables & calculation'!$B$1:$B$10)+5,MATCH(H32,'HEM tables & calculation'!$A$2:$Q$2))+IF(F32>$D$36,INDEX('HEM tables & calculation'!$A$1:$Q$16,MATCH('HEM tables & calculation'!F32,'HEM tables & calculation'!$B$1:$B$10)+6,MATCH(H32,'HEM tables & calculation'!$A$2:$Q$2))*(F32-$D$36),0),"") ->  | K32: =IFERROR(IF(OR($D32="Single",$E32="Non-applicant"),'Serviceability calculations'!$E$59,'Serviceability calculations'!$E$59+HLOOKUP($E32,'Serviceability calculations'!$C$1:$H$61,59,0)),"") ->  | L32: =IF(D32="Couple",I32,IF(D32="Single",J32,"")) ->  | M32: 0
C33: Applicant 4 as lead | D33: =IF(OR('HEM tables & calculation'!D25="Y",'HEM tables & calculation'!E25="Y",'HEM tables & calculation'!F25="Y"),"",IF(AND('HEM tables & calculation'!D25="N/A",'HEM tables & calculation'!E25="N/A",'HEM tables & calculation'!F25="N/A",'HEM tables & calculation'!H25="N/A",'HEM tables & calculation'!I25="N/A",'HEM tables & calculation'!J25="N/A"),"",IF('HEM tables & calculation'!J25="Y","Single",IF(OR('HEM tables & calculation'!H25="Y",'HEM tables & calculation'!I25="Y"),"Couple","ERROR")))) ->  | E33: =IF(D33="Couple",'Serviceability calculations'!F4,"") ->  | F33: =IFERROR(IF(OR($D33="Single",$E33="Non-applicant"),'Serviceability calculations'!$F$5,'Serviceability calculations'!$F$5+HLOOKUP($E33,'Serviceability calculations'!$C$1:$G$5,5,0)),"") ->  | G33: =IFERROR(IF(OR($D33="Single",$E33="Non-applicant"),$G$46,$G$46+HLOOKUP($E33,$D$40:$H$46,7,0)),0) -> 0 | H33: =MAX(IF('HEM tables & calculation'!$D$2:$Q$2<G33,'HEM tables & calculation'!$D$2:$Q$2)) -> 0 | I33: =IFERROR(INDEX('HEM tables & calculation'!$A$1:$Q$11,MATCH('HEM tables & calculation'!F33,'HEM tables & calculation'!$B$1:$B$11),MATCH(H33,'HEM tables & calculation'!$A$2:$Q$2))+IF(F33>$D$36,INDEX('HEM tables & calculation'!$A$1:$Q$11,MATCH($C$36,'HEM tables & calculation'!$B$1:$B$11),MATCH(H33,'HEM tables & calculation'!$A$2:$Q$2))*(F33-$D$36),0),"") ->  | J33: =IFERROR(INDEX('HEM tables & calculation'!$A$1:$Q$16,MATCH('HEM tables & calculation'!F33,'HEM tables & calculation'!$B$1:$B$10)+5,MATCH(H33,'HEM tables & calculation'!$A$2:$Q$2))+IF(F33>$D$36,INDEX('HEM tables & calculation'!$A$1:$Q$16,MATCH('HEM tables & calculation'!F33,'HEM tables & calculation'!$B$1:$B$10)+6,MATCH(H33,'HEM tables & calculation'!$A$2:$Q$2))*(F33-$D$36),0),"") ->  | K33: =IFERROR(IF(OR($D33="Single",$E33="Non-applicant"),'Serviceability calculations'!$F$59,'Serviceability calculations'!$F$59+HLOOKUP($E33,'Serviceability calculations'!$C$1:$H$61,59,0)),"") ->  | L33: =IF(D33="Couple",I33,IF(D33="Single",J33,"")) ->  | M33: 0
C34: Applicant 5 as lead | D34: =IF(OR('HEM tables & calculation'!D26="Y",'HEM tables & calculation'!E26="Y",'HEM tables & calculation'!F26="Y"),"",IF(AND('HEM tables & calculation'!D26="N/A",'HEM tables & calculation'!E26="N/A",'HEM tables & calculation'!F26="N/A",'HEM tables & calculation'!G26="N/A",'HEM tables & calculation'!I26="N/A",'HEM tables & calculation'!J26="N/A"),"",IF('HEM tables & calculation'!J26="Y","Single",IF(OR('HEM tables & calculation'!H26="Y",'HEM tables & calculation'!I26="Y"),"Couple","ERROR")))) ->  | E34: =IF(D34="Couple",'Serviceability calculations'!G4,"") ->  | F34: =IFERROR(IF(OR($D34="Single",$E34="Non-applicant"),'Serviceability calculations'!$G$5,'Serviceability calculations'!$G$5+HLOOKUP($E34,'Serviceability calculations'!$C$1:$G$5,5,0)),"") ->  | G34: =IFERROR(IF(OR($D34="Single",$E34="Non-applicant"),$H$46,$H$46+HLOOKUP($E34,$D$40:$H$46,7,0)),0) -> 0 | H34: =MAX(IF('HEM tables & calculation'!$D$2:$Q$2<G34,'HEM tables & calculation'!$D$2:$Q$2)) -> 0 | I34: =IFERROR(INDEX('HEM tables & calculation'!$A$1:$Q$11,MATCH('HEM tables & calculation'!F34,'HEM tables & calculation'!$B$1:$B$11),MATCH(H34,'HEM tables & calculation'!$A$2:$Q$2))+IF(F34>$D$36,INDEX('HEM tables & calculation'!$A$1:$Q$11,MATCH($C$36,'HEM tables & calculation'!$B$1:$B$11),MATCH(H34,'HEM tables & calculation'!$A$2:$Q$2))*(F34-$D$36),0),"") ->  | J34: =IFERROR(INDEX('HEM tables & calculation'!$A$1:$Q$16,MATCH('HEM tables & calculation'!F34,'HEM tables & calculation'!$B$1:$B$10)+5,MATCH(H34,'HEM tables & calculation'!$A$2:$Q$2))+IF(F34>$D$36,INDEX('HEM tables & calculation'!$A$1:$Q$16,MATCH('HEM tables & calculation'!F34,'HEM tables & calculation'!$B$1:$B$10)+6,MATCH(H34,'HEM tables & calculation'!$A$2:$Q$2))*(F34-$D$36),0),"") ->  | K34: =IFERROR(IF(OR($D34="Single",$E34="Non-applicant"),'Serviceability calculations'!$G$59,'Serviceability calculations'!$G$59+HLOOKUP($E34,'Serviceability calculations'!$C$1:$H$61,59,0)),"") ->  | L34: =IF(D34="Couple",I34,IF(D34="Single",J34,"")) ->  | M34: 0
K35: =SUM(K30:K34) -> 0 | L35: =SUM(L30:L34) -> 0 | M35: =SUM(M30:M34) -> 0 | N35: Now looks at individual level CDLE vs HEM and summing up
C36: Add dep | D36: 3
D39: Non-shaved income (for HEM purposes)
D40: Applicant 1 | E40: Applicant 2 | F40: Applicant 3 | G40: Applicant 4 | H40: Applicant 5
C41: Gross salary | D41: ='Serviceability calculations'!L17+'Serviceability calculations'!L18 -> 0 | E41: ='Serviceability calculations'!M17+'Serviceability calculations'!M18 -> 0 | F41: ='Serviceability calculations'!N17+'Serviceability calculations'!N18 -> 0 | G41: ='Serviceability calculations'!O17+'Serviceability calculations'!O18 -> 0 | H41: ='Serviceability calculations'!P17+'Serviceability calculations'!P18 -> 0
C42: Comm/Otime | D42: =SUM('Serviceability calculations'!L19:L21) -> 0 | E42: =SUM('Serviceability calculations'!M19:M21) -> 0 | F42: =SUM('Serviceability calculations'!N19:N21) -> 0 | G42: =SUM('Serviceability calculations'!O19:O21) -> 0 | H42: =SUM('Serviceability calculations'!P19:P21) -> 0
C43: Bonus | D43: ='Serviceability calculations'!L22 -> 0 | E43: ='Serviceability calculations'!M22 -> 0 | F43: ='Serviceability calculations'!N22 -> 0 | G43: ='Serviceability calculations'!O22 -> 0 | H43: ='Serviceability calculations'!P22 -> 0
C44: Investment | D44: ='Serviceability calculations'!L23 -> 0 | E44: ='Serviceability calculations'!M23 -> 0 | F44: ='Serviceability calculations'!N23 -> 0 | G44: ='Serviceability calculations'!O23 -> 0 | H44: ='Serviceability calculations'!P23 -> 0
C45: Foreign | D45: ='Serviceability calculations'!L24 -> 0 | E45: ='Serviceability calculations'!M24 -> 0 | F45: ='Serviceability calculations'!N24 -> 0 | G45: ='Serviceability calculations'!O24 -> 0 | H45: ='Serviceability calculations'!P24 -> 0
D46: =SUM(D41:D45) -> 0 | E46: =SUM(E41:E45) -> 0 | F46: =SUM(F41:F45) -> 0 | G46: 0 | H46: 0

Sheet Summary (NTBS)
B1: Monthly figures for NTBS
C2: Borrower 1 | D2: Borrower 2 | E2: Borrower 3 | F2: Borrower 4 | G2: Borrower 5 | H2: TOTAL
B3: I - Gross Salary/Wages | C3: =('Serviceability calculations'!C26-'Serviceability calculations'!C24-'Serviceability calculations'!C25)/12 -> 0 | D3: =('Serviceability calculations'!D26-'Serviceability calculations'!D24-'Serviceability calculations'!D25)/12 -> 0 | E3: =('Serviceability calculations'!E26-'Serviceability calculations'!E24-'Serviceability calculations'!E25)/12 -> 0 | F3: =('Serviceability calculations'!F26-'Serviceability calculations'!F24-'Serviceability calculations'!F25)/12 -> 0 | G3: =('Serviceability calculations'!G26-'Serviceability calculations'!G24-'Serviceability calculations'!G25)/12 -> 0 | H3: =SUM(C3:G3) -> 0
B5: Non-taxed income (added post-tax) | C5: ='Serviceability calculations'!C47/12 -> 0 | D5: ='Serviceability calculations'!D47/12 -> 0 | E5: ='Serviceability calculations'!E47/12 -> 0 | F5: ='Serviceability calculations'!F47/12 -> 0 | G5: ='Serviceability calculations'!G47/12 -> 0 | H5: =SUM(C5:G5) -> 0
B7: =IF('Rental Income'!H6="","","Rental Income (Property 1) @ " & RIGHT('Rental Income'!E6,5)) ->  | C7: =IF($B7="","",'Rental Income'!$J6*'Rental Income'!O6*(52/12)) ->  | D7: =IF($B7="","",'Rental Income'!$J6*'Rental Income'!P6*(52/12)) ->  | E7: =IF($B7="","",'Rental Income'!$J6*'Rental Income'!Q6*(52/12)) ->  | F7: =IF($B7="","",'Rental Income'!$J6*'Rental Income'!R6*(52/12)) ->  | G7: =IF($B7="","",'Rental Income'!$J6*'Rental Income'!S6*(52/12)) ->  | H7: =SUM(C7:G7) -> 0
B8: =IF('Rental Income'!H7="","","Rental Income (Property 2) @ " & RIGHT('Rental Income'!E7,5)) ->  | C8: =IF($B8="","",'Rental Income'!$J7*'Rental Income'!O7*(52/12)) ->  | D8: =IF($B8="","",'Rental Income'!$J7*'Rental Income'!P7*(52/12)) ->  | E8: =IF($B8="","",'Rental Income'!$J7*'Rental Income'!Q7*(52/12)) ->  | F8: =IF($B8="","",'Rental Income'!$J7*'Rental Income'!R7*(52/12)) ->  | G8: =IF($B8="","",'Rental Income'!$J7*'Rental Income'!S7*(52/12)) ->  | H8: 0
B9: =IF('Rental Income'!H8="","","Rental Income (Property 3) @ " & RIGHT('Rental Income'!E8,5)) ->  | C9: =IF($B9="","",'Rental Income'!$J8*'Rental Income'!O8*(52/12)) ->  | D9: =IF($B9="","",'Rental Income'!$J8*'Rental Income'!P8*(52/12)) ->  | E9: =IF($B9="","",'Rental Income'!$J8*'Rental Income'!Q8*(52/12)) ->  | F9: =IF($B9="","",'Rental Income'!$J8*'Rental Income'!R8*(52/12)) ->  | G9: =IF($B9="","",'Rental Income'!$J8*'Rental Income'!S8*(52/12)) ->  | H9: 0
B10: =IF('Rental Income'!H9="","","Rental Income (Property 4) @ " & RIGHT('Rental Income'!E9,5)) ->  | C10: =IF($B10="","",'Rental Income'!$J9*'Rental Income'!O9*(52/12)) ->  | D10: =IF($B10="","",'Rental Income'!$J9*'Rental Income'!P9*(52/12)) ->  | E10: =IF($B10="","",'Rental Income'!$J9*'Rental Income'!Q9*(52/12)) ->  | F10: =IF($B10="","",'Rental Income'!$J9*'Rental Income'!R9*(52/12)) ->  | G10: =IF($B10="","",'Rental Income'!$J9*'Rental Income'!S9*(52/12)) ->  | H10: 0
B11: =IF('Rental Income'!H10="","","Rental Income (Property 5) @ " & RIGHT('Rental Income'!E10,5)) ->  | C11: =IF($B11="","",'Rental Income'!$J10*'Rental Income'!O10*(52/12)) ->  | D11: =IF($B11="","",'Rental Income'!$J10*'Rental Income'!P10*(52/12)) ->  | E11: =IF($B11="","",'Rental Income'!$J10*'Rental Income'!Q10*(52/12)) ->  | F11: =IF($B11="","",'Rental Income'!$J10*'Rental Income'!R10*(52/12)) ->  | G11: =IF($B11="","",'Rental Income'!$J10*'Rental Income'!S10*(52/12)) ->  | H11: 0
B12: =IF('Rental Income'!H11="","","Rental Income (Property 6) @ " & RIGHT('Rental Income'!E11,5)) ->  | C12: =IF($B12="","",'Rental Income'!$J11*'Rental Income'!O11*(52/12)) ->  | D12: =IF($B12="","",'Rental Income'!$J11*'Rental Income'!P11*(52/12)) ->  | E12: =IF($B12="","",'Rental Income'!$J11*'Rental Income'!Q11*(52/12)) ->  | F12: =IF($B12="","",'Rental Income'!$J11*'Rental Income'!R11*(52/12)) ->  | G12: =IF($B12="","",'Rental Income'!$J11*'Rental Income'!S11*(52/12)) ->  | H12: 0
B13: =IF('Rental Income'!H12="","","Rental Income (Property 7) @ " & RIGHT('Rental Income'!E12,5)) ->  | C13: =IF($B13="","",'Rental Income'!$J12*'Rental Income'!O12*(52/12)) ->  | D13: =IF($B13="","",'Rental Income'!$J12*'Rental Income'!P12*(52/12)) ->  | E13: =IF($B13="","",'Rental Income'!$J12*'Rental Income'!Q12*(52/12)) ->  | F13: =IF($B13="","",'Rental Income'!$J12*'Rental Income'!R12*(52/12)) ->  | G13: =IF($B13="","",'Rental Income'!$J12*'Rental Income'!S12*(52/12)) ->  | H13: 0
B14: =IF('Rental Income'!H13="","","Rental Income (Property 8) @ " & RIGHT('Rental Income'!E13,5)) ->  | C14: =IF($B14="","",'Rental Income'!$J13*'Rental Income'!O13*(52/12)) ->  | D14: =IF($B14="","",'Rental Income'!$J13*'Rental Income'!P13*(52/12)) ->  | E14: =IF($B14="","",'Rental Income'!$J13*'Rental Income'!Q13*(52/12)) ->  | F14: =IF($B14="","",'Rental Income'!$J13*'Rental Income'!R13*(52/12)) ->  | G14: =IF($B14="","",'Rental Income'!$J13*'Rental Income'!S13*(52/12)) ->  | H14: 0
B16: I - Overseas income @ 80% | C16: ='Foreign Income'!D5/12 -> 0 | D16: ='Foreign Income'!D6/12 -> 0 | E16: ='Foreign Income'!D7/12 -> 0 | F16: ='Foreign Income'!D8/12 -> 0 | G16: ='Foreign Income'!D9/12 -> 0 | H16: =SUM(C16:G16) -> 0
B18: Gross income | C18: =C3+SUM(C7:C16) -> 0 | D18: =D3+SUM(D7:D16) -> 0 | E18: =E3+SUM(E7:E16) -> 0 | F18: 0 | G18: 0 | H18: =SUM(C18:G18) -> 0
B20: I-Tax Free Inc (Neg Gear) | C20: ='Serviceability calculations'!C29/12 -> 0 | D20: ='Serviceability calculations'!D29/12 -> 0 | E20: ='Serviceability calculations'!E29/12 -> 0 | F20: ='Serviceability calculations'!F29/12 -> 0 | G20: ='Serviceability calculations'!G29/12 -> 0 | H20: =SUM(C20:G20) -> 0
C21: NOTE: if negative gearing applies, change the 'I - Gross Salary/Wages' figure to deduct the negative gearing amount
B22: Pre-tax deductions | C22: ='Serviceability calculations'!T34 -> 0 | D22: ='Serviceability calculations'!U34 -> 0 | E22: ='Serviceability calculations'!V34 -> 0 | F22: ='Serviceability calculations'!W34 -> 0 | G22: ='Serviceability calculations'!X34 -> 0 | H22: =SUM(C22:G22) -> 0
B23: Taxable income | C23: =C18-C20-C22 -> 0 | D23: =D18-D20-D22 -> 0 | E23: 0 | F23: 0 | G23: 0 | H23: 0
B25: Tax expense | C25: ='Serviceability calculations'!C38/12 -> 0 | D25: ='Serviceability calculations'!D38/12 -> 0 | E25: ='Serviceability calculations'!E38/12 -> 0 | F25: ='Serviceability calculations'!F38/12 -> 0 | G25: ='Serviceability calculations'!G38/12 -> 0 | H25: 0
B26: Medicare levy | C26: ='Serviceability calculations'!C44/12 -> 0 | D26: ='Serviceability calculations'!D44/12 -> 0 | E26: ='Serviceability calculations'!E44/12 -> 0 | F26: ='Serviceability calculations'!F44/12 -> 0 | G26: ='Serviceability calculations'!G44/12 -> 0 | H26: =SUM(C26:G26) -> 0
B27: HECS | C27: ='Serviceability calculations'!C40/12 -> 0 | D27: ='Serviceability calculations'!D40/12 -> 0 | E27: ='Serviceability calculations'!E40/12 -> 0 | F27: ='Serviceability calculations'!F40/12 -> 0 | G27: ='Serviceability calculations'!G40/12 -> 0 | H27: 0
B28: Post-tax deductions | C28: ='Serviceability calculations'!T18 -> 0 | D28: ='Serviceability calculations'!U18 -> 0 | E28: ='Serviceability calculations'!V18 -> 0 | F28: ='Serviceability calculations'!W18 -> 0 | G28: ='Serviceability calculations'!X18 -> 0 | H28: 0
B30: Net income | C30: =C23-SUM(C25:C28)+C5 -> 0 | D30: =D23-SUM(D25:D28)+D5 -> 0 | E30: 0 | F30: 0 | G30: 0 | H30: 0
C32: All applicants | G32: NMS
B33: Household living expense (max of CDLE & HEM) | C33: ='Serviceability calculations'!H61 -> 0 | F33: Net income | G33: ='Serviceability calculations'!H49/12 -> 0
F34: Neg. gearing add back | G34: ='Serviceability calculations'!H29/12 -> 0
B35: E-Additional Declared Living Exenses | C35: ='Serviceability calculations'!H62 -> 0 | G35: =(G33+G34) -> 0
B36: Credit card commitments | C36: ='Serviceability calculations'!H52 -> 0 | F36: New loan factored | G36: =D43 -> 0
B37: Existing loan commitments | C37: ='Serviceability calculations'!H54 -> 0 | F37: Existing debt | G37: =C37+C36 -> 0
B38: Total commitments | C38: =SUM(C35:C37) -> 0
F39: CDLE (versus HEM) | G39: =C33 -> 0
B40: Total monthly deductions | C40: =H28+H22 -> 0 | F40: General expenses | G40: =C35 -> 0
F41: NMS | G41: =G33+G34-G36-G37-G39-G40 -> 0
B42: New loan commitment | C42: XX% | D42: =IF('New loan details & repayments'!C32="Yes",'New loan details & repayments'!L14,'New loan details & repayments'!J14) -> 0
B43: New loan commitment (w/ buffer) | C43: YY% | D43: ='Serviceability calculations'!H55 -> 0

Sheet New loan details & repayments (hidden)
B2: New loan details | L2: If Master Limit
C3: Amount | D3: Type | E3: If IO, IO term | F3: Rate | G3: Rate w/ buffer | H3: Assessment rate | I3: Highest rate | J3: Repayment | K3: Repayment (w/ buffer) | L3: Repayment | M3: Repayment (w/ std buffer) | N3: Repayment (w/ ML factor) | O3: Purpose | P3: OO/INV | Q3: Purchase/refinance
B4: Split 1 | C4: ='Customer view page'!E73 -> 0 | D4: ='Customer view page'!L73 -> 0 | E4: =IF(D4="IO",'Customer view page'!M73,0) -> 0 | F4: ='Customer view page'!N73 -> 0 | G4: =IF(C4=0,0,F4+'All data points & rules'!$F$3) -> 0 | H4: =IF(C4=0,0,'All data points & rules'!$F$2) -> 0 | I4: =MAX(G4:H4) -> 0 | J4: =IF(OR($C$23=0,F4=0),0,ROUND(PMT($F4/12,($C$23-E4)*12,$C4)*(-1),2)) -> 0 | K4: =IF($C$23=0,0,ROUND(PMT($I4/12,($C$23-E4)*12,$C4)*(-1),2)) -> 0 | L4: =IF(OR($C$23=0,F4=0),0,ROUND(PMT($F4/12,$C$34*12,$C4)*(-1),2)) -> 0 | M4: =IF($C$23=0,0,ROUND(PMT($I4/12,$C$34*12,$C4)*(-1),2)) -> 0 | N4: =IF($C$23=0,0,ROUND(PMT($C$35/12,$C$34*12,$C4)*(-1),2)) -> 0 | O4: =IF(C4>0,'Customer view page'!G73,"") ->  | P4: =IF(OR(O4="",O4=0),0,IF(OR(O4=Lists!$H$2,O4=Lists!$H$3,O4=Lists!$H$6),"OO","INV")) -> 0 | Q4: =IF(OR(O4="",O4=0),0,IF(OR(O4=Lists!$H$2,O4=Lists!$H$4),"Purchase",IF(OR(O4=Lists!$H$3,O4=Lists!$H$5),"Refinance","Other"))) -> 0
B5: Split 2 | C5: ='Customer view page'!E74 -> 0 | D5: ='Customer view page'!L74 -> 0 | E5: =IF(D5="IO",'Customer view page'!M74,0) -> 0 | F5: ='Customer view page'!N74 -> 0 | G5: =IF(C5=0,0,F5+'All data points & rules'!$F$3) -> 0 | H5: =IF(C5=0,0,'All data points & rules'!$F$2) -> 0 | I5: 0 | J5: =IF(OR($C$23=0,F5=0),0,ROUND(PMT($F5/12,($C$23-E5)*12,$C5)*(-1),2)) -> 0 | K5: =IF($C$23=0,0,ROUND(PMT($I5/12,($C$23-E5)*12,$C5)*(-1),2)) -> 0 | L5: =IF(OR($C$23=0,F5=0),0,ROUND(PMT($F5/12,$C$34*12,$C5)*(-1),2)) -> 0 | M5: =IF($C$23=0,0,ROUND(PMT($I5/12,$C$34*12,$C5)*(-1),2)) -> 0 | N5: =IF($C$23=0,0,ROUND(PMT($C$35/12,$C$34*12,$C5)*(-1),2)) -> 0 | O5: =IF(C5>0,'Customer view page'!G74,"") ->  | P5: =IF(OR(O5="",O5=0),0,IF(OR(O5=Lists!$H$2,O5=Lists!$H$3,O5=Lists!$H$6),"OO","INV")) -> 0 | Q5: =IF(OR(O5="",O5=0),0,IF(OR(O5=Lists!$H$2,O5=Lists!$H$4),"Purchase",IF(OR(O5=Lists!$H$3,O5=Lists!$H$5),"Refinance","Other"))) -> 0
B6: Split 3 | C6: ='Customer view page'!E75 -> 0 | D6: ='Customer view page'!L75 -> 0 | E6: =IF(D6="IO",'Customer view page'!M75,0) -> 0 | F6: ='Customer view page'!N75 -> 0 | G6: =IF(C6=0,0,F6+'All data points & rules'!$F$3) -> 0 | H6: =IF(C6=0,0,'All data points & rules'!$F$2) -> 0 | I6: 0 | J6: =IF(OR($C$23=0,F6=0),0,ROUND(PMT($F6/12,($C$23-E6)*12,$C6)*(-1),2)) -> 0 | K6: 0 | L6: =IF(OR($C$23=0,F6=0),0,ROUND(PMT($F6/12,$C$34*12,$C6)*(-1),2)) -> 0 | M6: =IF($C$23=0,0,ROUND(PMT($I6/12,$C$34*12,$C6)*(-1),2)) -> 0 | N6: =IF($C$23=0,0,ROUND(PMT($C$35/12,$C$34*12,$C6)*(-1),2)) -> 0 | O6: =IF(C6>0,'Customer view page'!G75,"") ->  | P6: =IF(OR(O6="",O6=0),0,IF(OR(O6=Lists!$H$2,O6=Lists!$H$3,O6=Lists!$H$6),"OO","INV")) -> 0 | Q6: =IF(OR(O6="",O6=0),0,IF(OR(O6=Lists!$H$2,O6=Lists!$H$4),"Purchase",IF(OR(O6=Lists!$H$3,O6=Lists!$H$5),"Refinance","Other"))) -> 0
B7: Split 4 | C7: ='Customer view page'!E76 -> 0 | D7: ='Customer view page'!L76 -> 0 | E7: =IF(D7="IO",'Customer view page'!M76,0) -> 0 | F7: ='Customer view page'!N76 -> 0 | G7: =IF(C7=0,0,F7+'All data points & rules'!$F$3) -> 0 | H7: =IF(C7=0,0,'All data points & rules'!$F$2) -> 0 | I7: 0 | J7: 0 | K7: 0 | L7: 0 | M7: 0 | N7: 0 | O7: =IF(C7>0,'Customer view page'!G76,"") ->  | P7: =IF(OR(O7="",O7=0),0,IF(OR(O7=Lists!$H$2,O7=Lists!$H$3,O7=Lists!$H$6),"OO","INV")) -> 0 | Q7: =IF(OR(O7="",O7=0),0,IF(OR(O7=Lists!$H$2,O7=Lists!$H$4),"Purchase",IF(OR(O7=Lists!$H$3,O7=Lists!$H$5),"Refinance","Other"))) -> 0
B8: Split 5 | C8: ='Customer view page'!E77 -> 0 | D8: ='Customer view page'!L77 -> 0 | E8: =IF(D8="IO",'Customer view page'!M77,0) -> 0 | F8: ='Customer view page'!N77 -> 0 | G8: =IF(C8=0,0,F8+'All data points & rules'!$F$3) -> 0 | H8: =IF(C8=0,0,'All data points & rules'!$F$2) -> 0 | I8: 0 | J8: 0 | K8: 0 | L8: 0 | M8: 0 | N8: 0 | O8: =IF(C8>0,'Customer view page'!G77,"") ->  | P8: =IF(OR(O8="",O8=0),0,IF(OR(O8=Lists!$H$2,O8=Lists!$H$3,O8=Lists!$H$6),"OO","INV")) -> 0 | Q8: =IF(OR(O8="",O8=0),0,IF(OR(O8=Lists!$H$2,O8=Lists!$H$4),"Purchase",IF(OR(O8=Lists!$H$3,O8=Lists!$H$5),"Refinance","Other"))) -> 0
B9: Split 6 | C9: ='Customer view page'!E78 -> 0 | D9: ='Customer view page'!L78 -> 0 | E9: =IF(D9="IO",'Customer view page'!M78,0) -> 0 | F9: ='Customer view page'!N78 -> 0 | G9: =IF(C9=0,0,F9+'All data points & rules'!$F$3) -> 0 | H9: =IF(C9=0,0,'All data points & rules'!$F$2) -> 0 | I9: 0 | J9: 0 | K9: 0 | L9: 0 | M9: 0 | N9: 0 | O9: =IF(C9>0,'Customer view page'!G78,"") ->  | P9: =IF(OR(O9="",O9=0),0,IF(OR(O9=Lists!$H$2,O9=Lists!$H$3,O9=Lists!$H$6),"OO","INV")) -> 0 | Q9: =IF(OR(O9="",O9=0),0,IF(OR(O9=Lists!$H$2,O9=Lists!$H$4),"Purchase",IF(OR(O9=Lists!$H$3,O9=Lists!$H$5),"Refinance","Other"))) -> 0
B10: Split 7 | C10: ='Customer view page'!E79 -> 0 | D10: ='Customer view page'!L79 -> 0 | E10: =IF(D10="IO",'Customer view page'!M79,0) -> 0 | F10: ='Customer view page'!N79 -> 0 | G10: =IF(C10=0,0,F10+'All data points & rules'!$F$3) -> 0 | H10: =IF(C10=0,0,'All data points & rules'!$F$2) -> 0 | I10: 0 | J10: 0 | K10: 0 | L10: 0 | M10: 0 | N10: 0 | O10: =IF(C10>0,'Customer view page'!G79,"") ->  | P10: =IF(OR(O10="",O10=0),0,IF(OR(O10=Lists!$H$2,O10=Lists!$H$3,O10=Lists!$H$6),"OO","INV")) -> 0 | Q10: =IF(OR(O10="",O10=0),0,IF(OR(O10=Lists!$H$2,O10=Lists!$H$4),"Purchase",IF(OR(O10=Lists!$H$3,O10=Lists!$H$5),"Refinance","Other"))) -> 0
B11: Split 8 | C11: ='Customer view page'!E80 -> 0 | D11: ='Customer view page'!L80 -> 0 | E11: =IF(D11="IO",'Customer view page'!M80,0) -> 0 | F11: ='Customer view page'!N80 -> 0 | G11: =IF(C11=0,0,F11+'All data points & rules'!$F$3) -> 0 | H11: =IF(C11=0,0,'All data points & rules'!$F$2) -> 0 | I11: 0 | J11: 0 | K11: 0 | L11: 0 | M11: 0 | N11: 0 | O11: =IF(C11>0,'Customer view page'!G80,"") ->  | P11: =IF(OR(O11="",O11=0),0,IF(OR(O11=Lists!$H$2,O11=Lists!$H$3,O11=Lists!$H$6),"OO","INV")) -> 0 | Q11: =IF(OR(O11="",O11=0),0,IF(OR(O11=Lists!$H$2,O11=Lists!$H$4),"Purchase",IF(OR(O11=Lists!$H$3,O11=Lists!$H$5),"Refinance","Other"))) -> 0
B12: Split 9 | C12: ='Customer view page'!E81 -> 0 | D12: ='Customer view page'!L81 -> 0 | E12: =IF(D12="IO",'Customer view page'!M81,0) -> 0 | F12: ='Customer view page'!N81 -> 0 | G12: =IF(C12=0,0,F12+'All data points & rules'!$F$3) -> 0 | H12: =IF(C12=0,0,'All data points & rules'!$F$2) -> 0 | I12: 0 | J12: 0 | K12: 0 | L12: 0 | M12: 0 | N12: 0 | O12: =IF(C12>0,'Customer view page'!G81,"") ->  | P12: =IF(OR(O12="",O12=0),0,IF(OR(O12=Lists!$H$2,O12=Lists!$H$3,O12=Lists!$H$6),"OO","INV")) -> 0 | Q12: =IF(OR(O12="",O12=0),0,IF(OR(O12=Lists!$H$2,O12=Lists!$H$4),"Purchase",IF(OR(O12=Lists!$H$3,O12=Lists!$H$5),"Refinance","Other"))) -> 0
B13: Split 10 | C13: ='Customer view page'!E82 -> 0 | D13: ='Customer view page'!L82 -> 0 | E13: =IF(D13="IO",'Customer view page'!M82,0) -> 0 | F13: ='Customer view page'!N82 -> 0 | G13: =IF(C13=0,0,F13+'All data points & rules'!$F$3) -> 0 | H13: =IF(C13=0,0,'All data points & rules'!$F$2) -> 0 | I13: 0 | J13: =IF(OR($C$23=0,F13=0),0,ROUND(PMT($F13/12,($C$23-E13)*12,$C13)*(-1),2)) -> 0 | K13: 0 | L13: 0 | M13: 0 | N13: 0 | O13: =IF(C13>0,'Customer view page'!G82,"") ->  | P13: =IF(OR(O13="",O13=0),0,IF(OR(O13=Lists!$H$2,O13=Lists!$H$3,O13=Lists!$H$6),"OO","INV")) -> 0 | Q13: =IF(OR(O13="",O13=0),0,IF(OR(O13=Lists!$H$2,O13=Lists!$H$4),"Purchase",IF(OR(O13=Lists!$H$3,O13=Lists!$H$5),"Refinance","Other"))) -> 0
B14: Total | C14: =SUM(C4:C13) -> 0 | J14: =SUM(J4:J13) -> 0 | K14: =SUM(K4:K13) -> 0 | L14: =SUM(L4:L13) -> 0 | M14: =SUM(M4:M13) -> 0 | N14: =SUM(N4:N13) -> 0
N15: Do not need
B16: LMI capitalised? | C16: FALSE | E16: LMI repayment amount | H16: Max loan amount (based on LVR)
B17: LMI amount | C17: =IF(OR(C24>'All data points & rules'!$B$2,C28="Other"),0,LMI!C35) -> 0 | E17: Non-factored rate | F17: =SUMPRODUCT(C4:C13,F4:F13)/SUMPRODUCT(C4:C13) ->  | H17: Max LVR | I17: 0.9
B18: Loan amount | C18: =C14 -> 0 | E18: Factored rate | F18: =SUMPRODUCT(C4:C13,I4:I13)/SUMPRODUCT(C4:C13) ->  | H18: Total sec value | I18: =C21 -> 0
B19: Loan amount with LMI | C19: =IF(C16=TRUE,C18+C17) -> FALSE | E19: Assumed term | F19: =MIN(C23-E4,C23-E5,C23-E6,C23-E7,C23-E8,C23-E9,C23-E10,C23-E11,C23-E12,C23-E13) -> 0 | H19: Max loan | I19: =I17*I18 -> 0
E20: Repayment | F20: =-ROUND(PMT(F17/12,F19*12,C17),2) -> 
B21: Security amount | C21: =SUM('Customer view page'!E94:E99) -> 0 | E21: Factored repayment | F21: =-ROUND(PMT(F18/12,F19*12,C17),2) ->  | H21: Max loan amount (based on NMS)
H22: Minimum NMS | I22: 0
B23: Loan term | C23: ='Customer view page'!D70 -> 0 | H23: Factored rate | I23: =F18 -> 
B24: LVR | C24: =IFERROR(C18/C21,0) -> 0 | H24: Assumed term | I24: =F19 -> 0
B25: LVR with LMI | C25: =IF(C16=TRUE,C19/C21) -> FALSE | H25: Max mth repay | I25: ='Serviceability calculations'!C67-'Serviceability calculations'!C70-'Serviceability calculations'!C72-'Serviceability calculations'!C73 -> 0
H26: Max loan | I26: =-PV(I23/12,I24*12,I25) -> 
B27: Primary purpose (OO/INV) | C27: =IF(COUNTIFS(P4:P13,0)=10,"",IFERROR(IF(SUMIFS(C4:C13,P4:P13,"OO")/C18>0.5,"OO","INV"),"")) -> 
B28: Primary purpose | C28: =IF(COUNTIFS(Q4:Q13,"Other")>0,"Other",IF(COUNTIFS(Q4:Q13,0)=10,"",IFERROR(IF(SUMIFS(C4:C13,Q4:Q13,"Purchase")/C18>0.5,"Purchase","Refi"),""))) ->  | H28: Max loan amount (based on DTI 6)
B29: Does loan have IO portion? | C29: =IF(SUMIF('Customer view page'!L73:L82,"IO",'Customer view page'!E73:E82)>0,"Y","N") -> N | H29: Max DTI | I29: 5.99
B30: Does loan have construction? | C30: =IF(SUMIFS('Customer view page'!E73:E82,'Customer view page'!I73:I82,"Construction",'Customer view page'!L73:L82,"IO")>0,"Y","N") -> N | H30: Pre-loan debt | I30: ='Serviceability calculations'!G68+'Serviceability calculations'!G69 -> 0
H31: Income | I31: ='Serviceability calculations'!G79 -> 0
B32: Master limit | C32: =IF(AND('Customer view page'!F70="ProPack",OR('Customer view page'!H70="Yes (5 yrs)",'Customer view page'!H70="Yes (10 yrs)")),"Yes","No") -> No | H32: Max loan | I32: =I29*I31-I30 -> 0
B33: Years | C33: =IF(AND(C32="Yes",'Customer view page'!H70="Yes (5 yrs)"),IF('Customer view page'!M73>0,'Customer view page'!M73,5),IF(AND(C32="Yes",'Customer view page'!H70="Yes (10 yrs)"),IF('Customer view page'!M73>0,'Customer view page'!M73,10),"")) -> 
B34: Assumed term post ML | C34: =C23-C33 ->  | H34: Max loan amount (based on DTI 8)
B35: Factored ML rate | C35: =I4 -> 0 | H35: Max DTI | I35: 7.99
H36: Pre-loan debt | I36: ='Serviceability calculations'!G68+'Serviceability calculations'!G69 -> 0
B37: First home buyer | H37: Income | I37: ='Serviceability calculations'!G79 -> 0
H38: Max loan | I38: =I35*I37-I36 -> 0

Sheet Income assessor
B1: PAYG income assessor | H1: PLEASE NOTE: two consecutive payslips must be provided to support these figures. However, we only need base/YTD pay of the most recent payslip for this calculator | AB1: Internal use only
H2: Most recent payslip* | N2: Previous payslip* | Q2: Other annual income | U2: Supporting calculations | AE2: Calculations for non-base income
C4: Employment type | D4: Pay cycle | E4: Essential services | F4: Financial year start | H4: Pay period date (latest payslip period end date)* | I4: Base salary for this pay (inc. regular allowances)* | J4: YTD income received* | K4: Overtime amount | L4: Commisson amount | N4: Overtime amount | O4: Commisson amount | Q4: Annual non-taxed income | R4: Annual bonus (paid in last 12 months) | S4: Annual investment (incl dividends) | U4: Number of payslips this financial year | W4: YTD base | X4: YTD non-base | Y4: [If <3 mths] Previous year's non-base | AA4: Annualised base | AB4: Total YTD annualised | AC4: Assessed base | AE4: [A] Quoted non-base per pay (last two payslips) | AF4: [B] Quoted non-base per pay, discounted (last two payslips) | AH4: [C] Calculated non-base per pay (based on YTD) | AI4: [If <3 mths] [D] Calculated non-base per pay (based on last year) | AJ4: [E] Calculated non-base per pay, discounted (if D exists, uses D. Otherwise C) | AL4: Anualised non-base acceptable (lower of quoted & calc'd) | AN4: Gross income (base, comm, o/time) used (incl discount if applic.) | AP4: No. of days | AQ4: Ann. Based * 90% | AR4: YTD ann * 110% | AT4: Annual base salary | AU4: Annual bonus (@ 80%) | AV4: Annual bonus (@ 50%) | AW4: Annual commission | AX4: Annual overtime (non-essential services) | AY4: Annual overtime (essential services) | AZ4: Annual investment
B5: ='Customer view page'!E14 -> Applicant 1 | C5: ='Customer view page'!E15 -> 0 | D5: ='Customer view page'!E17 -> 0 | E5: =IF('Customer view page'!E16="Yes","Yes","No") -> No | G5: =IF(SUM('Customer view page'!$E$30:$E$36)>0,"Y","N") -> N | U5: =IF(AND(ISBLANK(F5)=FALSE,H5=F5),1,IFERROR(IF(OR(D5="Monthly"),VLOOKUP(MONTH(H5),'Pay periods'!$F$2:$R$14,MONTH(F5)+1,0),ROUNDUP((H5-F5+1)/VLOOKUP(D5,'All data points & rules'!$L$31:$N$36,3,0),0)),"")) ->  | W5: =IFERROR(I5*U5,0) -> 0 | X5: =J5-W5 -> 0 | Y5: =IF(H16="","",H16-H15) ->  | AA5: =IFERROR(I5*VLOOKUP(D5,'All data points & rules'!$L$31:$N$36,2,0),0) -> 0 | AB5: =IFERROR((J5/U5)*VLOOKUP(D5,'All data points & rules'!$L$31:$N$36,2,0),0) -> 0 | AC5: =IFERROR(IF(AB5<AQ5,AB5,IF(AA5>AR5,AB5,AA5))*VLOOKUP(C5,'All data points & rules'!$L$38:$M$42,2,0),0) -> 0 | AE5: =(K5+L5+N5+O5)/2 -> 0 | AF5: =IFERROR(IF(E5="Yes",(K5+N5)/2*'All data points & rules'!$M$25+(O5+L5)/2*'All data points & rules'!$M$22,(K5+N5)/2*'All data points & rules'!$M$24+(O5+L5)/2*'All data points & rules'!$M$22),0) -> 0 | AH5: =IFERROR(X5/U5,0) -> 0 | AI5: =IFERROR(IF($H$16="","",Y5/VLOOKUP(D5,'All data points & rules'!$L$31:$N$36,2,0)),0) ->  | AJ5: =IFERROR(IF($H$16="",IF(E5="Yes",AH5*'All data points & rules'!$M$25,AH5*'All data points & rules'!$M$24),IF(E5="Yes",AI5*'All data points & rules'!$M$25,AI5*'All data points & rules'!$M$24)),0) -> 0 | AL5: =IFERROR(IF(MIN(AF5,AJ5)*VLOOKUP(D5,'All data points & rules'!$L$31:$N$36,2,0)<0,0,MIN(AF5,AJ5)*VLOOKUP(D5,'All data points & rules'!$L$31:$N$36,2,0))*VLOOKUP(C5,'All data points & rules'!$L$38:$M$42,2,0),0) -> 0 | AN5: =AC5+AL5 -> 0 | AP5: =H5-F5 -> 0 | AQ5: =AA5*0.9 -> 0 | AR5: =AB5*1.1 -> 0 | AT5: =AC5 -> 0 | AU5: =IF(R5<='All data points & rules'!$M$27,R5,'All data points & rules'!$M$27) -> 0 | AV5: =IF(R5>'All data points & rules'!$M$27,R5-'All data points & rules'!$M$27,0) -> 0 | AW5: =IFERROR(IF(AJ5<AF5,0,((L5+O5)/2)*VLOOKUP(D5,'All data points & rules'!$L$31:$N$36,2,0))*VLOOKUP(C5,'All data points & rules'!$L$38:$M$42,2,0),0) -> 0 | AX5: =MAX(IFERROR(IF(E5="Yes",0,IF(AF5<=AJ5,((K5+N5)/2)*VLOOKUP(D5,'All data points & rules'!$L$31:$N$36,2,0),IF($H$16="",AH5*VLOOKUP(D5,'All data points & rules'!$L$31:$N$36,2,0),AI5*VLOOKUP(D5,'All data points & rules'!$L$31:$N$36,2,0))))*VLOOKUP(C5,'All data points & rules'!$L$38:$M$42,2,0),0),0) -> 0 | AY5: =MAX(IFERROR(IF(E5="No",0,IF(AF5<=AJ5,((K5+N5)/2)*VLOOKUP(D5,'All data points & rules'!$L$31:$N$36,2,0),IF($H$16="",AH5*VLOOKUP(D5,'All data points & rules'!$L$31:$N$36,2,0),AI5*VLOOKUP(D5,'All data points & rules'!$L$31:$N$36,2,0))))*VLOOKUP(C5,'All data points & rules'!$L$38:$M$42,2,0),0),0) -> 0 | AZ5: =S5 -> 0
B6: ='Customer view page'!G14 -> N/A | C6: ='Customer view page'!G15 -> 0 | D6: ='Customer view page'!G17 -> 0 | E6: =IF('Customer view page'!G16="Yes","Yes","No") -> No | G6: =IF(SUM('Customer view page'!$G$30:$G$36)>0,"Y","N") -> N | U6: =IF(AND(ISBLANK(F6)=FALSE,H6=F6),1,IFERROR(IF(OR(D6="Monthly"),VLOOKUP(MONTH(H6),'Pay periods'!$F$2:$R$14,MONTH(F6)+1,0),ROUNDUP((H6-F6+1)/VLOOKUP(D6,'All data points & rules'!$L$31:$N$36,3,0),0)),"")) ->  | W6: =IFERROR(I6*U6,0) -> 0 | X6: =J6-W6 -> 0 | Y6: =IF(I16="","",I16-I15) ->  | AA6: =IFERROR(I6*VLOOKUP(D6,'All data points & rules'!$L$31:$N$36,2,0),0) -> 0 | AB6: =IFERROR((J6/U6)*VLOOKUP(D6,'All data points & rules'!$L$31:$N$36,2,0),0) -> 0 | AC6: =IFERROR(IF(AB6<AQ6,AB6,IF(AA6>AR6,AB6,AA6))*VLOOKUP(C6,'All data points & rules'!$L$38:$M$42,2,0),0) -> 0 | AE6: =(K6+L6+N6+O6)/2 -> 0 | AF6: =IFERROR(IF(E6="Yes",(K6+N6)/2*'All data points & rules'!$M$25+(O6+L6)/2*'All data points & rules'!$M$22,(K6+N6)/2*'All data points & rules'!M24+(O6+L6)/2*'All data points & rules'!$M$22),0) -> 0 | AH6: =IFERROR(X6/U6,0) -> 0 | AI6: =IFERROR(IF($I$16="","",Y6/VLOOKUP(D6,'All data points & rules'!$L$31:$N$36,2,0)),0) ->  | AJ6: =IFERROR(IF($I$16="",IF(E6="Yes",AH6*'All data points & rules'!$M$25,AH6*'All data points & rules'!$M$24),IF(E6="Yes",AI6*'All data points & rules'!$M$25,AI6*'All data points & rules'!$M$24)),0) -> 0 | AL6: =IFERROR(IF(MIN(AF6,AJ6)*VLOOKUP(D6,'All data points & rules'!$L$31:$N$36,2,0)<0,0,MIN(AF6,AJ6)*VLOOKUP(D6,'All data points & rules'!$L$31:$N$36,2,0))*VLOOKUP(C6,'All data points & rules'!$L$38:$M$42,2,0),0) -> 0 | AN6: =AC6+AL6 -> 0 | AP6: =H6-F6 -> 0 | AQ6: =AA6*0.9 -> 0 | AR6: =AB6*1.1 -> 0 | AT6: =AC6 -> 0 | AU6: =IF(R6<='All data points & rules'!$M$27,R6,'All data points & rules'!$M$27) -> 0 | AV6: =IF(R6>'All data points & rules'!$M$27,R6-'All data points & rules'!$M$27,0) -> 0 | AW6: =IFERROR(IF(AJ6<AF6,0,((L6+O6)/2)*VLOOKUP(D6,'All data points & rules'!$L$31:$N$36,2,0))*VLOOKUP(C6,'All data points & rules'!$L$38:$M$42,2,0),0) -> 0 | AX6: =MAX(IFERROR(IF(E6="Yes",0,IF(AF6<=AJ6,((K6+N6)/2)*VLOOKUP(D6,'All data points & rules'!$L$31:$N$36,2,0),IF($I$16="",AH6*VLOOKUP(D6,'All data points & rules'!$L$31:$N$36,2,0),AI6*VLOOKUP(D6,'All data points & rules'!$L$31:$N$36,2,0))))*VLOOKUP(C6,'All data points & rules'!$L$38:$M$42,2,0),0),0) -> 0 | AY6: =MAX(IFERROR(IF(E6="No",0,IF(AF6<=AJ6,((K6+N6)/2)*VLOOKUP(D6,'All data points & rules'!$L$31:$N$36,2,0),IF($I$16="",AH6*VLOOKUP(D6,'All data points & rules'!$L$31:$N$36,2,0),AI6*VLOOKUP(D6,'All data points & rules'!$L$31:$N$36,2,0))))*VLOOKUP(C6,'All data points & rules'!$L$38:$M$42,2,0),0),0) -> 0 | AZ6: =S6 -> 0
B7: ='Customer view page'!I14 -> N/A | C7: ='Customer view page'!I15 -> 0 | D7: ='Customer view page'!I17 -> 0 | E7: =IF('Customer view page'!I16="Yes","Yes","No") -> No | G7: =IF(SUM('Customer view page'!$I$30:$I$36)>0,"Y","N") -> N | U7: =IF(AND(ISBLANK(F7)=FALSE,H7=F7),1,IFERROR(IF(OR(D7="Monthly"),VLOOKUP(MONTH(H7),'Pay periods'!$F$2:$R$14,MONTH(F7)+1,0),ROUNDUP((H7-F7+1)/VLOOKUP(D7,'All data points & rules'!$L$31:$N$36,3,0),0)),"")) ->  | W7: =IFERROR(I7*U7,0) -> 0 | X7: =J7-W7 -> 0 | Y7: =IF(J16="","",J16-J15) ->  | AA7: =IFERROR(I7*VLOOKUP(D7,'All data points & rules'!$L$31:$N$36,2,0),0) -> 0 | AB7: =IFERROR((J7/U7)*VLOOKUP(D7,'All data points & rules'!$L$31:$N$36,2,0),0) -> 0 | AC7: =IFERROR(IF(AB7<AQ7,AB7,IF(AA7>AR7,AB7,AA7))*VLOOKUP(C7,'All data points & rules'!$L$38:$M$42,2,0),0) -> 0 | AE7: =(K7+L7+N7+O7)/2 -> 0 | AF7: =IFERROR(IF(E7="Yes",(K7+N7)/2*'All data points & rules'!$M$25+(O7+L7)/2*'All data points & rules'!$M$22,(K7+N7)/2*'All data points & rules'!M24+(O7+L7)/2*'All data points & rules'!$M$22),0) -> 0 | AH7: 0 | AI7: =IFERROR(IF($J$16="","",Y7/VLOOKUP(D7,'All data points & rules'!$L$31:$N$36,2,0)),0) ->  | AJ7: =IFERROR(IF($J$16="",IF(E7="Yes",AH7*'All data points & rules'!$M$25,AH7*'All data points & rules'!$M$24),IF(E7="Yes",AI7*'All data points & rules'!$M$25,AI7*'All data points & rules'!$M$24)),0) -> 0 | AL7: =IFERROR(IF(MIN(AF7,AJ7)*VLOOKUP(D7,'All data points & rules'!$L$31:$N$36,2,0)<0,0,MIN(AF7,AJ7)*VLOOKUP(D7,'All data points & rules'!$L$31:$N$36,2,0))*VLOOKUP(C7,'All data points & rules'!$L$38:$M$42,2,0),0) -> 0 | AN7: =AC7+AL7 -> 0 | AP7: =H7-F7 -> 0 | AQ7: =AA7*0.9 -> 0 | AR7: 0 | AT7: 0 | AU7: =IF(R7<='All data points & rules'!$M$27,R7,'All data points & rules'!$M$27) -> 0 | AV7: =IF(R7>'All data points & rules'!$M$27,R7-'All data points & rules'!$M$27,0) -> 0 | AW7: =IFERROR(IF(AJ7<AF7,0,((L7+O7)/2)*VLOOKUP(D7,'All data points & rules'!$L$31:$N$36,2,0))*VLOOKUP(C7,'All data points & rules'!$L$38:$M$42,2,0),0) -> 0 | AX7: =MAX(IFERROR(IF(E7="Yes",0,IF(AF7<=AJ7,((K7+N7)/2)*VLOOKUP(D7,'All data points & rules'!$L$31:$N$36,2,0),IF($J$16="",AH7*VLOOKUP(D7,'All data points & rules'!$L$31:$N$36,2,0),AI7*VLOOKUP(D7,'All data points & rules'!$L$31:$N$36,2,0))))*VLOOKUP(C7,'All data points & rules'!$L$38:$M$42,2,0),0),0) -> 0 | AY7: =MAX(IFERROR(IF(E7="No",0,IF(AF7<=AJ7,((K7+N7)/2)*VLOOKUP(D7,'All data points & rules'!$L$31:$N$36,2,0),IF($J$16="",AH7*VLOOKUP(D7,'All data points & rules'!$L$31:$N$36,2,0),AI7*VLOOKUP(D7,'All data points & rules'!$L$31:$N$36,2,0))))*VLOOKUP(C7,'All data points & rules'!$L$38:$M$42,2,0),0),0) -> 0 | AZ7: 0
B8: ='Customer view page'!K14 -> N/A | C8: ='Customer view page'!K15 -> 0 | D8: ='Customer view page'!K17 -> 0 | E8: =IF('Customer view page'!K16="Yes","Yes","No") -> No | G8: =IF(SUM('Customer view page'!$K$30:$K$36)>0,"Y","N") -> N | U8: =IF(AND(ISBLANK(F8)=FALSE,H8=F8),1,IFERROR(IF(OR(D8="Monthly"),VLOOKUP(MONTH(H8),'Pay periods'!$F$2:$R$14,MONTH(F8)+1,0),ROUNDUP((H8-F8+1)/VLOOKUP(D8,'All data points & rules'!$L$31:$N$36,3,0),0)),"")) ->  | W8: =IFERROR(I8*U8,0) -> 0 | X8: =J8-W8 -> 0 | Y8: =IF(K16="","",K16-K15) ->  | AA8: =IFERROR(I8*VLOOKUP(D8,'All data points & rules'!$L$31:$N$36,2,0),0) -> 0 | AB8: =IFERROR((J8/U8)*VLOOKUP(D8,'All data points & rules'!$L$31:$N$36,2,0),0) -> 0 | AC8: =IFERROR(IF(AB8<AQ8,AB8,IF(AA8>AR8,AB8,AA8))*VLOOKUP(C8,'All data points & rules'!$L$38:$M$42,2,0),0) -> 0 | AE8: =(K8+L8+N8+O8)/2 -> 0 | AF8: =IFERROR(IF(E8="Yes",(K8+N8)/2*'All data points & rules'!$M$25+(O8+L8)/2*'All data points & rules'!$M$22,(K8+N8)/2*'All data points & rules'!M24+(O8+L8)/2*'All data points & rules'!$M$22),0) -> 0 | AH8: 0 | AI8: =IFERROR(IF($K$16="","",Y8/VLOOKUP(D8,'All data points & rules'!$L$31:$N$36,2,0)),0) ->  | AJ8: =IFERROR(IF($K$16="",IF(E8="Yes",AH8*'All data points & rules'!$M$25,AH8*'All data points & rules'!$M$24),IF(E8="Yes",AI8*'All data points & rules'!$M$25,AI8*'All data points & rules'!$M$24)),0) -> 0 | AL8: =IFERROR(IF(MIN(AF8,AJ8)*VLOOKUP(D8,'All data points & rules'!$L$31:$N$36,2,0)<0,0,MIN(AF8,AJ8)*VLOOKUP(D8,'All data points & rules'!$L$31:$N$36,2,0))*VLOOKUP(C8,'All data points & rules'!$L$38:$M$42,2,0),0) -> 0 | AN8: =AC8+AL8 -> 0 | AP8: =H8-F8 -> 0 | AQ8: 0 | AR8: 0 | AT8: 0 | AU8: =IF(R8<='All data points & rules'!$M$27,R8,'All data points & rules'!$M$27) -> 0 | AV8: =IF(R8>'All data points & rules'!$M$27,R8-'All data points & rules'!$M$27,0) -> 0 | AW8: =IFERROR(IF(AJ8<AF8,0,((L8+O8)/2)*VLOOKUP(D8,'All data points & rules'!$L$31:$N$36,2,0))*VLOOKUP(C8,'All data points & rules'!$L$38:$M$42,2,0),0) -> 0 | AX8: =MAX(IFERROR(IF(E8="Yes",0,IF(AF8<=AJ8,((K8+N8)/2)*VLOOKUP(D8,'All data points & rules'!$L$31:$N$36,2,0),IF($K$16="",AH8*VLOOKUP(D8,'All data points & rules'!$L$31:$N$36,2,0),AI8*VLOOKUP(D8,'All data points & rules'!$L$31:$N$36,2,0))))*VLOOKUP(C8,'All data points & rules'!$L$38:$M$42,2,0),0),0) -> 0 | AY8: =MAX(IFERROR(IF(E8="No",0,IF(AF8<=AJ8,((K8+N8)/2)*VLOOKUP(D8,'All data points & rules'!$L$31:$N$36,2,0),IF($K$16="",AH8*VLOOKUP(D8,'All data points & rules'!$L$31:$N$36,2,0),AI8*VLOOKUP(D8,'All data points & rules'!$L$31:$N$36,2,0))))*VLOOKUP(C8,'All data points & rules'!$L$38:$M$42,2,0),0),0) -> 0 | AZ8: 0
B9: ='Customer view page'!N14 -> N/A | C9: ='Customer view page'!N15 -> 0 | D9: ='Customer view page'!N17 -> 0 | E9: =IF('Customer view page'!N16="Yes","Yes","No") -> No | G9: =IF(SUM('Customer view page'!$N$30:$N$36)>0,"Y","N") -> N | U9: =IF(AND(ISBLANK(F9)=FALSE,H9=F9),1,IFERROR(IF(OR(D9="Monthly"),VLOOKUP(MONTH(H9),'Pay periods'!$F$2:$R$14,MONTH(F9)+1,0),ROUNDUP((H9-F9+1)/VLOOKUP(D9,'All data points & rules'!$L$31:$N$36,3,0),0)),"")) ->  | W9: =IFERROR(I9*U9,0) -> 0 | X9: =J9-W9 -> 0 | Y9: =IF(L16="","",L16-L15) ->  | AA9: =IFERROR(I9*VLOOKUP(D9,'All data points & rules'!$L$31:$N$36,2,0),0) -> 0 | AB9: =IFERROR((J9/U9)*VLOOKUP(D9,'All data points & rules'!$L$31:$N$36,2,0),0) -> 0 | AC9: =IFERROR(IF(AB9<AQ9,AB9,IF(AA9>AR9,AB9,AA9))*VLOOKUP(C9,'All data points & rules'!$L$38:$M$42,2,0),0) -> 0 | AE9: =(K9+L9+N9+O9)/2 -> 0 | AF9: =IFERROR(IF(E9="Yes",(K9+N9)/2*'All data points & rules'!$M$25+(O9+L9)/2*'All data points & rules'!$M$22,(K9+N9)/2*'All data points & rules'!M24+(O9+L9)/2*'All data points & rules'!$M$22),0) -> 0 | AH9: 0 | AI9: =IFERROR(IF($L$16="","",Y9/VLOOKUP(D9,'All data points & rules'!$L$31:$N$36,2,0)),0) ->  | AJ9: =IFERROR(IF($L$16="",IF(E9="Yes",AH9*'All data points & rules'!$M$25,AH9*'All data points & rules'!$M$24),IF(E9="Yes",AI9*'All data points & rules'!$M$25,AI9*'All data points & rules'!$M$24)),0) -> 0 | AL9: =IFERROR(IF(MIN(AF9,AJ9)*VLOOKUP(D9,'All data points & rules'!$L$31:$N$36,2,0)<0,0,MIN(AF9,AJ9)*VLOOKUP(D9,'All data points & rules'!$L$31:$N$36,2,0))*VLOOKUP(C9,'All data points & rules'!$L$38:$M$42,2,0),0) -> 0 | AN9: =AC9+AL9 -> 0 | AP9: =H9-F9 -> 0 | AQ9: 0 | AR9: 0 | AT9: 0 | AU9: =IF(R9<='All data points & rules'!$M$27,R9,'All data points & rules'!$M$27) -> 0 | AV9: =IF(R9>'All data points & rules'!$M$27,R9-'All data points & rules'!$M$27,0) -> 0 | AW9: =IFERROR(IF(AJ9<AF9,0,((L9+O9)/2)*VLOOKUP(D9,'All data points & rules'!$L$31:$N$36,2,0))*VLOOKUP(C9,'All data points & rules'!$L$38:$M$42,2,0),0) -> 0 | AX9: =MAX(IFERROR(IF(E9="Yes",0,IF(AF9<=AJ9,((K9+N9)/2)*VLOOKUP(D9,'All data points & rules'!$L$31:$N$36,2,0),IF($L$16="",AH9*VLOOKUP(D9,'All data points & rules'!$L$31:$N$36,2,0),AI9*VLOOKUP(D9,'All data points & rules'!$L$31:$N$36,2,0))))*VLOOKUP(C9,'All data points & rules'!$L$38:$M$42,2,0),0),0) -> 0 | AY9: =MAX(IFERROR(IF(E9="No",0,IF(AF9<=AJ9,((K9+N9)/2)*VLOOKUP(D9,'All data points & rules'!$L$31:$N$36,2,0),IF($L$16="",AH9*VLOOKUP(D9,'All data points & rules'!$L$31:$N$36,2,0),AI9*VLOOKUP(D9,'All data points & rules'!$L$31:$N$36,2,0))))*VLOOKUP(C9,'All data points & rules'!$L$38:$M$42,2,0),0),0) -> 0 | AZ9: 0
H10: NOTE: once inputted, all income for serviceability will appear in the main screen, including applicable 'haircutting'. Apply Online data entry is at the bottom of the main screen.
G12: =IF(OR(AND(AP5<90,AP5>=0,H5<>""),AND(AP6<90,AP6>=0,H6<>""),AND(AP7<90,AP7>=0,H7<>""),AND(AP8<90,AP8>=0,H8<>""),AND(AP9<90,AP9>=0,H9<>"")),"NOTE! More information needed for below borrowers with <3 months of income","") ->  | O12: =IF(OR(AB5<AA5,AB6<AA6,AB7<AA7,AB8<AA8,AB9<AA9),"WARNING - please check","") -> 
O13: =IF(O12<>"","For 1 or more borrowers, the YTD income does not support the declared base amount. This may occur if the borrower has recently increased their salary or working days per week.","") -> 
H14: =IF(AND($G$12<>"",$AP$5<90,$AP$5>=0,ISBLANK($H$5)=FALSE),B5,"") ->  | I14: =IF(AND($G$12<>"",$AP$6<90,$AP$6>=0,ISBLANK($H$6)=FALSE),B6,"") ->  | J14: =IF(AND($G$12<>"",$AP$7<90,$AP$7>=0,ISBLANK($H$7)=FALSE),B7,"") ->  | K14: =IF(AND($G$12<>"",$AP$8<90,$AP$8>=0,ISBLANK($H$8)=FALSE),B8,"") ->  | L14: =IF(AND($G$12<>"",$AP$9<90,$AP$9>=0,ISBLANK($H$9)=FALSE),B9,"") -> 
E15: =IF(G12="","","Previous year's base salary") -> 
B16: Internal use only | E16: =IF(G12="","","Previous year's total income") -> 
H19: Apply Online data entry
H20: ='Customer view page'!E123 -> Applicant 1 | I20: ='Customer view page'!G123 -> N/A | J20: ='Customer view page'!I123 -> N/A | K20: ='Customer view page'!K123 -> N/A | L20: ='Customer view page'!N123 -> N/A
E21: Annual base salary | H21: ='Customer view page'!E124 -> 0 | I21: ='Customer view page'!G124 -> 0 | J21: ='Customer view page'!I124 -> 0 | K21: ='Customer view page'!K124 -> 0 | L21: ='Customer view page'!N124 -> 0
E22: Annual bonus | H22: ='Customer view page'!E126 -> 0 | I22: ='Customer view page'!G126 -> 0 | J22: ='Customer view page'!I126 -> 0 | K22: ='Customer view page'!K126 -> 0 | L22: ='Customer view page'!N126 -> 0
E23: Annual commission | H23: ='Customer view page'!E127 -> 0 | I23: ='Customer view page'!G127 -> 0 | J23: ='Customer view page'!I127 -> 0 | K23: ='Customer view page'!K127 -> 0 | L23: ='Customer view page'!N127 -> 0
E24: Annual overtime (non-essential services) | H24: ='Customer view page'!E128 -> 0 | I24: ='Customer view page'!G128 -> 0 | J24: ='Customer view page'!I128 -> 0 | K24: ='Customer view page'!K128 -> 0 | L24: ='Customer view page'!N128 -> 0
E25: Annual overtime (essential services) | H25: ='Customer view page'!E129 -> 0 | I25: ='Customer view page'!G129 -> 0 | J25: ='Customer view page'!I129 -> 0 | K25: ='Customer view page'!K129 -> 0 | L25: ='Customer view page'!N129 -> 0
E26: Annual investment | H26: ='Customer view page'!E130 -> 0 | I26: ='Customer view page'!G130 -> 0 | J26: ='Customer view page'!I130 -> 0 | K26: ='Customer view page'!K130 -> 0 | L26: ='Customer view page'!N130 -> 0
E27: Foreign income | H27: ='Customer view page'!E131 -> 0 | I27: ='Customer view page'!G131 -> 0 | J27: ='Customer view page'!I131 -> 0 | K27: ='Customer view page'!K131 -> 0 | L27: ='Customer view page'!N131 -> 0
E28: Non-taxed income (enter as annuity) | H28: ='Customer view page'!E132 -> 0 | I28: ='Customer view page'!G132 -> 0 | J28: ='Customer view page'!I132 -> 0 | K28: ='Customer view page'!K132 -> 0 | L28: ='Customer view page'!N132 -> 0

Sheet Income assessor (2)
B1: PAYG income assessor (2nd job) | H1: PLEASE NOTE: two consecutive payslips must be provided to support these figures. However, we only need base/YTD pay of most recent payslip for this calculator | AB1: Internal use only
H2: Most recent payslip of 2nd job* | N2: Previous payslip* | Q2: Other annual income of 2nd job | U2: Supporting calculations | AE2: Calculations for non-base income
C4: Employment type for 2nd job | D4: Pay cycle of 2nd job | E4: Essential services | F4: Financial year start | H4: Pay period date* (latest payslip period end date)* | I4: Base salary for this pay (inc. regular allowances)* | J4: YTD income received* | K4: Overtime amount | L4: Commisson amount | N4: Overtime amount | O4: Commisson amount | Q4: Annual non-taxed income | R4: Annual bonus (paid in last 12 months) | S4: Annual investment (incl dividends) | U4: Number of payslips this financial year | W4: YTD base | X4: YTD non-base | Y4: [If <3 mths] Previous year's non-base | AA4: Annualised base | AB4: Total YTD annualised | AC4: Assessed base | AE4: [A] Quoted non-base per pay (last two payslips) | AF4: [B] Quoted non-base per pay, discounted (last two payslips) | AH4: [C] Calculated non-base per pay (based on YTD) | AI4: [If <3 mths] [D] Calculated non-base per pay (based on last year) | AJ4: [E] Calculated non-base per pay, discounted (if D exists, uses D. Otherwise C) | AL4: Anualised non-base acceptable (lower of quoted & calc'd) | AN4: Gross income (base, comm, o/time) used (incl discount if applic.) | AP4: No. of days | AQ4: Ann. Based * 90% | AR4: YTD ann * 110% | AT4: Annual base salary | AU4: Annual bonus (@ 80%) | AV4: Annual bonus (@ 50%) | AW4: Annual commission | AX4: Annual overtime (non-essential services) | AY4: Annual overtime (essential services) | AZ4: Annual investment
B5: ='Income assessor'!B5 -> Applicant 1 | G5: =IF(SUM('Customer view page'!$E$30:$E$36)>0,"Y","N") -> N | U5: =IF(AND(ISBLANK(F5)=FALSE,H5=F5),1,IFERROR(IF(OR(D5="Monthly"),VLOOKUP(MONTH(H5),'Pay periods'!$F$2:$R$14,MONTH(F5)+1,0),ROUNDUP((H5-F5+1)/VLOOKUP(D5,'All data points & rules'!$L$31:$N$36,3,0),0)),"")) ->  | W5: =IFERROR(I5*U5,0) -> 0 | X5: =J5-W5 -> 0 | Y5: =IF(H16="","",H16-H15) ->  | AA5: =IFERROR(I5*VLOOKUP(D5,'All data points & rules'!$L$31:$N$36,2,0),0) -> 0 | AB5: =IFERROR((J5/U5)*VLOOKUP(D5,'All data points & rules'!$L$31:$N$36,2,0),0) -> 0 | AC5: =IFERROR(IF(AB5<AQ5,AB5,IF(AA5>AR5,AB5,AA5))*VLOOKUP(C5,'All data points & rules'!$L$38:$M$42,2,0),0) -> 0 | AE5: =(K5+L5+N5+O5)/2 -> 0 | AF5: =IFERROR(IF(E5="Yes",(K5+N5)/2*'All data points & rules'!$M$25+(O5+L5)/2*'All data points & rules'!$M$22,(K5+N5)/2*'All data points & rules'!$M$24+(O5+L5)/2*'All data points & rules'!$M$22),0) -> 0 | AH5: =IFERROR(X5/U5,0) -> 0 | AI5: =IFERROR(IF($H$16="","",Y5/VLOOKUP(D5,'All data points & rules'!$L$31:$N$36,2,0)),0) ->  | AJ5: =IFERROR(IF($H$16="",IF(E5="Yes",AH5*'All data points & rules'!$M$25,AH5*'All data points & rules'!$M$24),IF(E5="Yes",AI5*'All data points & rules'!$M$25,AI5*'All data points & rules'!$M$24)),0) -> 0 | AL5: =IFERROR(IF(MIN(AF5,AJ5)*VLOOKUP(D5,'All data points & rules'!$L$31:$N$36,2,0)<0,0,MIN(AF5,AJ5)*VLOOKUP(D5,'All data points & rules'!$L$31:$N$36,2,0))*VLOOKUP(C5,'All data points & rules'!$L$38:$M$42,2,0),0) -> 0 | AN5: =AC5+AL5 -> 0 | AP5: =H5-F5 -> 0 | AQ5: =AA5*0.9 -> 0 | AR5: =AB5*1.1 -> 0 | AT5: =AC5 -> 0 | AU5: =IF(R5<='All data points & rules'!$M$27,R5,'All data points & rules'!$M$27) -> 0 | AV5: =IF(R5>'All data points & rules'!$M$27,R5-'All data points & rules'!$M$27,0) -> 0 | AW5: =IFERROR(IF(AJ5<AF5,0,((L5+O5)/2)*VLOOKUP(D5,'All data points & rules'!$L$31:$N$36,2,0))*VLOOKUP(C5,'All data points & rules'!$L$38:$M$42,2,0),0) -> 0 | AX5: =MAX(IFERROR(IF(E5="Yes",0,IF(AF5<=AJ5,((K5+N5)/2)*VLOOKUP(D5,'All data points & rules'!$L$31:$N$36,2,0),IF($H$16="",AH5*VLOOKUP(D5,'All data points & rules'!$L$31:$N$36,2,0),AI5*VLOOKUP(D5,'All data points & rules'!$L$31:$N$36,2,0))))*VLOOKUP(C5,'All data points & rules'!$L$38:$M$42,2,0),0),0) -> 0 | AY5: =MAX(IFERROR(IF(E5="No",0,IF(AF5<=AJ5,((K5+N5)/2)*VLOOKUP(D5,'All data points & rules'!$L$31:$N$36,2,0),IF($H$16="",AH5*VLOOKUP(D5,'All data points & rules'!$L$31:$N$36,2,0),AI5*VLOOKUP(D5,'All data points & rules'!$L$31:$N$36,2,0))))*VLOOKUP(C5,'All data points & rules'!$L$38:$M$42,2,0),0),0) -> 0 | AZ5: =S5 -> 0
B6: ='Income assessor'!B6 -> N/A | G6: =IF(SUM('Customer view page'!$G$30:$G$36)>0,"Y","N") -> N | U6: =IF(AND(ISBLANK(F6)=FALSE,H6=F6),1,IFERROR(IF(OR(D6="Monthly"),VLOOKUP(MONTH(H6),'Pay periods'!$F$2:$R$14,MONTH(F6)+1,0),ROUNDUP((H6-F6+1)/VLOOKUP(D6,'All data points & rules'!$L$31:$N$36,3,0),0)),"")) ->  | W6: =IFERROR(I6*U6,0) -> 0 | X6: =J6-W6 -> 0 | Y6: =IF(I16="","",I16-I15) ->  | AA6: =IFERROR(I6*VLOOKUP(D6,'All data points & rules'!$L$31:$N$36,2,0),0) -> 0 | AB6: =IFERROR((J6/U6)*VLOOKUP(D6,'All data points & rules'!$L$31:$N$36,2,0),0) -> 0 | AC6: =IFERROR(IF(AB6<AQ6,AB6,IF(AA6>AR6,AB6,AA6))*VLOOKUP(C6,'All data points & rules'!$L$38:$M$42,2,0),0) -> 0 | AE6: =(K6+L6+N6+O6)/2 -> 0 | AF6: =IFERROR(IF(E6="Yes",(K6+N6)/2*'All data points & rules'!$M$25+(O6+L6)/2*'All data points & rules'!$M$22,(K6+N6)/2*'All data points & rules'!M24+(O6+L6)/2*'All data points & rules'!$M$22),0) -> 0 | AH6: =IFERROR(X6/U6,0) -> 0 | AI6: =IFERROR(IF($I$16="","",Y6/VLOOKUP(D6,'All data points & rules'!$L$31:$N$36,2,0)),0) ->  | AJ6: =IFERROR(IF($I$16="",IF(E6="Yes",AH6*'All data points & rules'!$M$25,AH6*'All data points & rules'!$M$24),IF(E6="Yes",AI6*'All data points & rules'!$M$25,AI6*'All data points & rules'!$M$24)),0) -> 0 | AL6: =IFERROR(IF(MIN(AF6,AJ6)*VLOOKUP(D6,'All data points & rules'!$L$31:$N$36,2,0)<0,0,MIN(AF6,AJ6)*VLOOKUP(D6,'All data points & rules'!$L$31:$N$36,2,0))*VLOOKUP(C6,'All data points & rules'!$L$38:$M$42,2,0),0) -> 0 | AN6: =AC6+AL6 -> 0 | AP6: =H6-F6 -> 0 | AQ6: =AA6*0.9 -> 0 | AR6: =AB6*1.1 -> 0 | AT6: =AC6 -> 0 | AU6: =IF(R6<='All data points & rules'!$M$27,R6,'All data points & rules'!$M$27) -> 0 | AV6: =IF(R6>'All data points & rules'!$M$27,R6-'All data points & rules'!$M$27,0) -> 0 | AW6: =IFERROR(IF(AJ6<AF6,0,((L6+O6)/2)*VLOOKUP(D6,'All data points & rules'!$L$31:$N$36,2,0))*VLOOKUP(C6,'All data points & rules'!$L$38:$M$42,2,0),0) -> 0 | AX6: =MAX(IFERROR(IF(E6="Yes",0,IF(AF6<=AJ6,((K6+N6)/2)*VLOOKUP(D6,'All data points & rules'!$L$31:$N$36,2,0),IF($I$16="",AH6*VLOOKUP(D6,'All data points & rules'!$L$31:$N$36,2,0),AI6*VLOOKUP(D6,'All data points & rules'!$L$31:$N$36,2,0))))*VLOOKUP(C6,'All data points & rules'!$L$38:$M$42,2,0),0),0) -> 0 | AY6: =MAX(IFERROR(IF(E6="No",0,IF(AF6<=AJ6,((K6+N6)/2)*VLOOKUP(D6,'All data points & rules'!$L$31:$N$36,2,0),IF($I$16="",AH6*VLOOKUP(D6,'All data points & rules'!$L$31:$N$36,2,0),AI6*VLOOKUP(D6,'All data points & rules'!$L$31:$N$36,2,0))))*VLOOKUP(C6,'All data points & rules'!$L$38:$M$42,2,0),0),0) -> 0 | AZ6: =S6 -> 0
B7: ='Income assessor'!B7 -> N/A | G7: =IF(SUM('Customer view page'!$I$30:$I$36)>0,"Y","N") -> N | U7: =IF(AND(ISBLANK(F7)=FALSE,H7=F7),1,IFERROR(IF(OR(D7="Monthly"),VLOOKUP(MONTH(H7),'Pay periods'!$F$2:$R$14,MONTH(F7)+1,0),ROUNDUP((H7-F7+1)/VLOOKUP(D7,'All data points & rules'!$L$31:$N$36,3,0),0)),"")) ->  | W7: =IFERROR(I7*U7,0) -> 0 | X7: =J7-W7 -> 0 | Y7: =IF(J16="","",J16-J15) ->  | AA7: =IFERROR(I7*VLOOKUP(D7,'All data points & rules'!$L$31:$N$36,2,0),0) -> 0 | AB7: =IFERROR((J7/U7)*VLOOKUP(D7,'All data points & rules'!$L$31:$N$36,2,0),0) -> 0 | AC7: =IFERROR(IF(AB7<AQ7,AB7,IF(AA7>AR7,AB7,AA7))*VLOOKUP(C7,'All data points & rules'!$L$38:$M$42,2,0),0) -> 0 | AE7: =(K7+L7+N7+O7)/2 -> 0 | AF7: =IFERROR(IF(E7="Yes",(K7+N7)/2*'All data points & rules'!$M$25+(O7+L7)/2*'All data points & rules'!$M$22,(K7+N7)/2*'All data points & rules'!M24+(O7+L7)/2*'All data points & rules'!$M$22),0) -> 0 | AH7: =IFERROR(X7/U7,0) -> 0 | AI7: =IFERROR(IF($J$16="","",Y7/VLOOKUP(D7,'All data points & rules'!$L$31:$N$36,2,0)),0) ->  | AJ7: =IFERROR(IF($J$16="",IF(E7="Yes",AH7*'All data points & rules'!$M$25,AH7*'All data points & rules'!$M$24),IF(E7="Yes",AI7*'All data points & rules'!$M$25,AI7*'All data points & rules'!$M$24)),0) -> 0 | AL7: =IFERROR(IF(MIN(AF7,AJ7)*VLOOKUP(D7,'All data points & rules'!$L$31:$N$36,2,0)<0,0,MIN(AF7,AJ7)*VLOOKUP(D7,'All data points & rules'!$L$31:$N$36,2,0))*VLOOKUP(C7,'All data points & rules'!$L$38:$M$42,2,0),0) -> 0 | AN7: =AC7+AL7 -> 0 | AP7: =H7-F7 -> 0 | AQ7: =AA7*0.9 -> 0 | AR7: 0 | AT7: 0 | AU7: =IF(R7<='All data points & rules'!$M$27,R7,'All data points & rules'!$M$27) -> 0 | AV7: =IF(R7>'All data points & rules'!$M$27,R7-'All data points & rules'!$M$27,0) -> 0 | AW7: =IFERROR(IF(AJ7<AF7,0,((L7+O7)/2)*VLOOKUP(D7,'All data points & rules'!$L$31:$N$36,2,0))*VLOOKUP(C7,'All data points & rules'!$L$38:$M$42,2,0),0) -> 0 | AX7: =MAX(IFERROR(IF(E7="Yes",0,IF(AF7<=AJ7,((K7+N7)/2)*VLOOKUP(D7,'All data points & rules'!$L$31:$N$36,2,0),IF($J$16="",AH7*VLOOKUP(D7,'All data points & rules'!$L$31:$N$36,2,0),AI7*VLOOKUP(D7,'All data points & rules'!$L$31:$N$36,2,0))))*VLOOKUP(C7,'All data points & rules'!$L$38:$M$42,2,0),0),0) -> 0 | AY7: =MAX(IFERROR(IF(E7="No",0,IF(AF7<=AJ7,((K7+N7)/2)*VLOOKUP(D7,'All data points & rules'!$L$31:$N$36,2,0),IF($J$16="",AH7*VLOOKUP(D7,'All data points & rules'!$L$31:$N$36,2,0),AI7*VLOOKUP(D7,'All data points & rules'!$L$31:$N$36,2,0))))*VLOOKUP(C7,'All data points & rules'!$L$38:$M$42,2,0),0),0) -> 0 | AZ7: 0
B8: ='Income assessor'!B8 -> N/A | G8: =IF(SUM('Customer view page'!$K$30:$K$36)>0,"Y","N") -> N | U8: =IF(AND(ISBLANK(F8)=FALSE,H8=F8),1,IFERROR(IF(OR(D8="Monthly"),VLOOKUP(MONTH(H8),'Pay periods'!$F$2:$R$14,MONTH(F8)+1,0),ROUNDUP((H8-F8+1)/VLOOKUP(D8,'All data points & rules'!$L$31:$N$36,3,0),0)),"")) ->  | W8: =IFERROR(I8*U8,0) -> 0 | X8: =J8-W8 -> 0 | Y8: =IF(K16="","",K16-K15) ->  | AA8: =IFERROR(I8*VLOOKUP(D8,'All data points & rules'!$L$31:$N$36,2,0),0) -> 0 | AB8: =IFERROR((J8/U8)*VLOOKUP(D8,'All data points & rules'!$L$31:$N$36,2,0),0) -> 0 | AC8: =IFERROR(IF(AB8<AQ8,AB8,IF(AA8>AR8,AB8,AA8))*VLOOKUP(C8,'All data points & rules'!$L$38:$M$42,2,0),0) -> 0 | AE8: =(K8+L8+N8+O8)/2 -> 0 | AF8: =IFERROR(IF(E8="Yes",(K8+N8)/2*'All data points & rules'!$M$25+(O8+L8)/2*'All data points & rules'!$M$22,(K8+N8)/2*'All data points & rules'!M24+(O8+L8)/2*'All data points & rules'!$M$22),0) -> 0 | AH8: =IFERROR(X8/U8,0) -> 0 | AI8: =IFERROR(IF($K$16="","",Y8/VLOOKUP(D8,'All data points & rules'!$L$31:$N$36,2,0)),0) ->  | AJ8: =IFERROR(IF($K$16="",IF(E8="Yes",AH8*'All data points & rules'!$M$25,AH8*'All data points & rules'!$M$24),IF(E8="Yes",AI8*'All data points & rules'!$M$25,AI8*'All data points & rules'!$M$24)),0) -> 0 | AL8: =IFERROR(IF(MIN(AF8,AJ8)*VLOOKUP(D8,'All data points & rules'!$L$31:$N$36,2,0)<0,0,MIN(AF8,AJ8)*VLOOKUP(D8,'All data points & rules'!$L$31:$N$36,2,0))*VLOOKUP(C8,'All data points & rules'!$L$38:$M$42,2,0),0) -> 0 | AN8: =AC8+AL8 -> 0 | AP8: =H8-F8 -> 0 | AQ8: 0 | AR8: 0 | AT8: 0 | AU8: =IF(R8<='All data points & rules'!$M$27,R8,'All data points & rules'!$M$27) -> 0 | AV8: =IF(R8>'All data points & rules'!$M$27,R8-'All data points & rules'!$M$27,0) -> 0 | AW8: =IFERROR(IF(AJ8<AF8,0,((L8+O8)/2)*VLOOKUP(D8,'All data points & rules'!$L$31:$N$36,2,0))*VLOOKUP(C8,'All data points & rules'!$L$38:$M$42,2,0),0) -> 0 | AX8: =MAX(IFERROR(IF(E8="Yes",0,IF(AF8<=AJ8,((K8+N8)/2)*VLOOKUP(D8,'All data points & rules'!$L$31:$N$36,2,0),IF($K$16="",AH8*VLOOKUP(D8,'All data points & rules'!$L$31:$N$36,2,0),AI8*VLOOKUP(D8,'All data points & rules'!$L$31:$N$36,2,0))))*VLOOKUP(C8,'All data points & rules'!$L$38:$M$42,2,0),0),0) -> 0 | AY8: =MAX(IFERROR(IF(E8="No",0,IF(AF8<=AJ8,((K8+N8)/2)*VLOOKUP(D8,'All data points & rules'!$L$31:$N$36,2,0),IF($K$16="",AH8*VLOOKUP(D8,'All data points & rules'!$L$31:$N$36,2,0),AI8*VLOOKUP(D8,'All data points & rules'!$L$31:$N$36,2,0))))*VLOOKUP(C8,'All data points & rules'!$L$38:$M$42,2,0),0),0) -> 0 | AZ8: 0
B9: ='Income assessor'!B9 -> N/A | G9: =IF(SUM('Customer view page'!$N$30:$N$36)>0,"Y","N") -> N | U9: =IF(AND(ISBLANK(F9)=FALSE,H9=F9),1,IFERROR(IF(OR(D9="Monthly"),VLOOKUP(MONTH(H9),'Pay periods'!$F$2:$R$14,MONTH(F9)+1,0),ROUNDUP((H9-F9+1)/VLOOKUP(D9,'All data points & rules'!$L$31:$N$36,3,0),0)),"")) ->  | W9: =IFERROR(I9*U9,0) -> 0 | X9: =J9-W9 -> 0 | Y9: =IF(L16="","",L16-L15) ->  | AA9: =IFERROR(I9*VLOOKUP(D9,'All data points & rules'!$L$31:$N$36,2,0),0) -> 0 | AB9: =IFERROR((J9/U9)*VLOOKUP(D9,'All data points & rules'!$L$31:$N$36,2,0),0) -> 0 | AC9: =IFERROR(IF(AB9<AQ9,AB9,IF(AA9>AR9,AB9,AA9))*VLOOKUP(C9,'All data points & rules'!$L$38:$M$42,2,0),0) -> 0 | AE9: =(K9+L9+N9+O9)/2 -> 0 | AF9: =IFERROR(IF(E9="Yes",(K9+N9)/2*'All data points & rules'!$M$25+(O9+L9)/2*'All data points & rules'!$M$22,(K9+N9)/2*'All data points & rules'!M24+(O9+L9)/2*'All data points & rules'!$M$22),0) -> 0 | AH9: =IFERROR(X9/U9,0) -> 0 | AI9: =IFERROR(IF($L$16="","",Y9/VLOOKUP(D9,'All data points & rules'!$L$31:$N$36,2,0)),0) ->  | AJ9: =IFERROR(IF($L$16="",IF(E9="Yes",AH9*'All data points & rules'!$M$25,AH9*'All data points & rules'!$M$24),IF(E9="Yes",AI9*'All data points & rules'!$M$25,AI9*'All data points & rules'!$M$24)),0) -> 0 | AL9: =IFERROR(IF(MIN(AF9,AJ9)*VLOOKUP(D9,'All data points & rules'!$L$31:$N$36,2,0)<0,0,MIN(AF9,AJ9)*VLOOKUP(D9,'All data points & rules'!$L$31:$N$36,2,0))*VLOOKUP(C9,'All data points & rules'!$L$38:$M$42,2,0),0) -> 0 | AN9: =AC9+AL9 -> 0 | AP9: =H9-F9 -> 0 | AQ9: 0 | AR9: 0 | AT9: 0 | AU9: =IF(R9<='All data points & rules'!$M$27,R9,'All data points & rules'!$M$27) -> 0 | AV9: =IF(R9>'All data points & rules'!$M$27,R9-'All data points & rules'!$M$27,0) -> 0 | AW9: =IFERROR(IF(AJ9<AF9,0,((L9+O9)/2)*VLOOKUP(D9,'All data points & rules'!$L$31:$N$36,2,0))*VLOOKUP(C9,'All data points & rules'!$L$38:$M$42,2,0),0) -> 0 | AX9: =MAX(IFERROR(IF(E9="Yes",0,IF(AF9<=AJ9,((K9+N9)/2)*VLOOKUP(D9,'All data points & rules'!$L$31:$N$36,2,0),IF($L$16="",AH9*VLOOKUP(D9,'All data points & rules'!$L$31:$N$36,2,0),AI9*VLOOKUP(D9,'All data points & rules'!$L$31:$N$36,2,0))))*VLOOKUP(C9,'All data points & rules'!$L$38:$M$42,2,0),0),0) -> 0 | AY9: =MAX(IFERROR(IF(E9="No",0,IF(AF9<=AJ9,((K9+N9)/2)*VLOOKUP(D9,'All data points & rules'!$L$31:$N$36,2,0),IF($L$16="",AH9*VLOOKUP(D9,'All data points & rules'!$L$31:$N$36,2,0),AI9*VLOOKUP(D9,'All data points & rules'!$L$31:$N$36,2,0))))*VLOOKUP(C9,'All data points & rules'!$L$38:$M$42,2,0),0),0) -> 0 | AZ9: 0
H10: NOTE: once inputted, all income for serviceability will appear in the main screen, including applicable 'haircutting'. Apply Online data entry is at the bottom of the main screen.
G12: =IF(OR(AND(AP5<90,AP5>=0,H5<>""),AND(AP6<90,AP6>=0,H6<>""),AND(AP7<90,AP7>=0,H7<>""),AND(AP8<90,AP8>=0,H8<>""),AND(AP9<90,AP9>=0,H9<>"")),"NOTE! More information needed for below borrowers with <3 months of income","") ->  | O12: =IF(OR(AB5<AA5,AB6<AA6,AB7<AA7,AB8<AA8,AB9<AA9),"WARNING - please check","") -> 
O13: =IF(O12<>"","For 1 or more borrowers, the YTD income does not support the declared base amount. This may occur if the borrower has recently increased their salary or working days per week.","") -> 
H14: =IF(AND($G$12<>"",$AP$5<90,$AP$5>=0,ISBLANK($H$5)=FALSE),B5,"") ->  | I14: =IF(AND($G$12<>"",$AP$6<90,$AP$6>=0,ISBLANK($H$6)=FALSE),B6,"") ->  | J14: =IF(AND($G$12<>"",$AP$7<90,$AP$7>=0,ISBLANK($H$7)=FALSE),B7,"") ->  | K14: =IF(AND($G$12<>"",$AP$8<90,$AP$8>=0,ISBLANK($H$8)=FALSE),B8,"") ->  | L14: =IF(AND($G$12<>"",$AP$9<90,$AP$9>=0,ISBLANK($H$9)=FALSE),B9,"") -> 
E15: =IF(G12="","","Previous year's base salary") -> 
B16: Internal use only | E16: =IF(G12="","","Previous year's total income") -> 
H19: Apply Online data entry
H20: ='Customer view page'!E123 -> Applicant 1 | I20: ='Customer view page'!G123 -> N/A | J20: ='Customer view page'!I123 -> N/A | K20: ='Customer view page'!K123 -> N/A | L20: ='Customer view page'!N123 -> N/A
E21: Annual base salary | H21: ='Customer view page'!E124 -> 0 | I21: ='Customer view page'!G124 -> 0 | J21: ='Customer view page'!I124 -> 0 | K21: ='Customer view page'!K124 -> 0 | L21: ='Customer view page'!N124 -> 0
E22: Annual bonus (@ 80%) | H22: ='Customer view page'!E126 -> 0 | I22: ='Customer view page'!G126 -> 0 | J22: ='Customer view page'!I126 -> 0 | K22: ='Customer view page'!K126 -> 0 | L22: ='Customer view page'!N126 -> 0
E23: Annual commission | H23: ='Customer view page'!E127 -> 0 | I23: ='Customer view page'!G127 -> 0 | J23: ='Customer view page'!I127 -> 0 | K23: ='Customer view page'!K127 -> 0 | L23: ='Customer view page'!N127 -> 0
E24: Annual overtime (non-essential services) | H24: ='Customer view page'!E128 -> 0 | I24: ='Customer view page'!G128 -> 0 | J24: ='Customer view page'!I128 -> 0 | K24: ='Customer view page'!K128 -> 0 | L24: ='Customer view page'!N128 -> 0
E25: Annual overtime (essential services) | H25: ='Customer view page'!E129 -> 0 | I25: ='Customer view page'!G129 -> 0 | J25: ='Customer view page'!I129 -> 0 | K25: ='Customer view page'!K129 -> 0 | L25: ='Customer view page'!N129 -> 0
E26: Annual investment | H26: ='Customer view page'!E130 -> 0 | I26: ='Customer view page'!G130 -> 0 | J26: ='Customer view page'!I130 -> 0 | K26: ='Customer view page'!K130 -> 0 | L26: ='Customer view page'!N130 -> 0
E27: Foreign income | H27: ='Customer view page'!E131 -> 0 | I27: ='Customer view page'!G131 -> 0 | J27: ='Customer view page'!I131 -> 0 | K27: ='Customer view page'!K131 -> 0 | L27: ='Customer view page'!N131 -> 0
E28: Non-taxed income (enter as annuity) | H28: ='Customer view page'!E132 -> 0 | I28: ='Customer view page'!G132 -> 0 | J28: ='Customer view page'!I132 -> 0 | K28: ='Customer view page'!K132 -> 0 | L28: ='Customer view page'!N132 -> 0

Sheet Self-employed Income
B2: Income assessment for self-employed borrowers
K3: Click arrow above to add more S/E income
B4: Customer details | R4: Company applicant + trading ent. | S4: =AND(D6="Company",D8="Company") -> FALSE
R5: Company, sole applicant | S5: =AND(S4=TRUE,D16=1) -> FALSE
C6: Applicant type | R6: Company, not sole applicant | S6: =AND(S4=TRUE,S5=FALSE) -> FALSE
R7: Trust applicant + tranding ent. | S7: =AND(D6="Trust",D8="Trust") -> FALSE
C8: Type of trading entity | R8: Trust, not sole applicant | S8: =AND(S7=TRUE,D16=1) -> FALSE
C9: (for income being assessed) | R9: Trust, sole applicant | S9: =AND(S7=TRUE,S8=FALSE) -> FALSE
C11: =IF(ISBLANK(D8),"Name of entity", "Name of " & D8) -> Name of entity
C12: (for income being assessed) | R12: Income rule being applied (1-3) | S12: 1
C14: Latest financials available (year) | D14: 2023 | H14: More than 1 year financials provided? | I14: No
C16: No. of loan applicants | D16: ='Customer view page'!C7 -> 1
C18: Level of ownership | D18: ='Customer view page'!E14 -> Applicant 1 | F18: =IF(D16>1,'Customer view page'!G14,"") ->  | H18: =IF(D16>2,'Customer view page'!I14,"") ->  | J18: =IF(D16>3,'Customer view page'!K14,"") ->  | L18: =IF(D16>4,'Customer view page'!N14,"") ->  | N18: Total
C19: (leave blank if applicant has no ownership) | N19: =D19+F19+H19+J19+L19 -> 0
B23: Financial information | R23: Previous Year Income | S23: =G27+G47+G67 -> 0
R24: Current Year Income | S24: =D30+D47+D67 -> 0
D25: =IF(D14="","",D14) -> 2023 | G25: =IF(I14="No","",IF(D25="","",D25-1)) ->  | R25: Variance from Year 1-2 | S25: =S24-S23 -> 0 | T25: =IF(OR(S23=0,S24=0),"N/A",S25/S23) -> N/A
C27: Operating net profit | J27: =IF(S12=3,"Using Single (Latest) Year Income Only",IF(S12=2,"2 Year Average",IF(S31=TRUE,"Latest Year Only (Downward Trend)",IF(S32=TRUE,"Previous Year + 20% (Upward Trend > 20%)",IF(S33=TRUE,"Latest Year Only (Upward Trend < 20%)",IF(S27=TRUE,"Latest Year Only (No Change in Income)","")))))) ->  | R27: Nil Variance? | S27: =AND(S23=S24,S28=FALSE) -> FALSE
C28: (before tax) | D28: =IF(D8="Trust","NOTE: operating net profit is not applicable for Trusts",IF(D8="Partnership","NOTE: operating net profit is not applicable for Partnerships","")) ->  | R28: Nil Income? | S28: =AND(S23=0,S24=0) -> TRUE
R29: Variance more than +/-20%? | S29: =IF(AND(OR(T25>20%,T25<-20%),ISNUMBER(T25)),TRUE,FALSE) -> FALSE
C30: Adjusted Profit | D30: =D27 -> 0 | G30: =G27 -> 0 | J30: =IF(S12=2,(D30+G30)/2,IF(S12=3,D30,IF(S28=TRUE,(D30+G30)/2,IF(S27=TRUE,(D30+G30)/2,IF(S38=TRUE,G30*0.8,IF(S31=TRUE,D30,IF(S33=TRUE,D30,IF(S32=TRUE,G30*1.2,0)))))))) -> 0 | R30: Upward Trend? | S30: =IF(S24>S23,TRUE,FALSE) -> FALSE
R31: Downward Trend? | S31: =IF(S24<S23,TRUE,FALSE) -> FALSE
C32: Addbacks | R32: Upward Trend > 20%? | S32: =AND(S30=TRUE,S29=TRUE) -> FALSE
C33: Interest (if applicable) | R33: Upward Trend < 20%? | S33: =AND(S30=TRUE,S29=FALSE) -> FALSE
C35: Depreciation | R35: Previous Year Loss? | S35: =IF(G27<0,TRUE,FALSE) -> FALSE
D36: =D35/2 -> 0 | G36: =G35/2 -> 0 | R36: Prev Yr Loss & Up Trend >20%? | S36: =AND(S35=TRUE,S32=TRUE) -> FALSE
C38: Amortisation of Goodwill | J38: Expense type | R38: Prev Neg Inc & Up Trend >20% | S38: =AND(G30<0,S32=TRUE) -> FALSE
C40: One-off expenses
C44: Excess Superannuation | D44: =IF(D25="","",D71-(D69*VLOOKUP(D25,'All data points & rules'!$H$41:$I$47,2,FALSE))) -> 0 | G44: =IF(G25="","",G71-(G69*VLOOKUP(G25,'All data points & rules'!$H$41:$I$47,2,FALSE))) -> 
C47: Total addbacks | D47: =D33+D36+SUM(D38:E44) -> 0 | G47: =G33+G36+SUM(G38:H44) -> 0 | J47: =IF(S12=2,(D47+G47)/2,IF(S12=3,D47,IF(S28=TRUE,(D47+G47)/2,IF(S27=TRUE,(D47+G47)/2,IF(S31=TRUE,D47,IF(S33=TRUE,D47,IF(S32=TRUE,G47*1.2,0))))))) -> 0
I50: Total Business Income (Adj. Profit + Addbacks) | J50: =J47+J30 -> 0
C52: Wages/salary | D52: (attributable to each borrower)
D54: =D25 -> 2023 | G54: =G25 ->  | J54: Select payment type
C56: =$D$18 -> Applicant 1
N57: =IF($S$12=2,SUM(D56,G56,D57,G57)/2,IF($S$12=3,SUM(D56,D57),IF($S$27=TRUE,SUM(D56,G56,D57,G57)/2,IF($S$31=TRUE,SUM(D56,D57),IF($S$33=TRUE,SUM(D56,D57),IF($S$32=TRUE,SUM(G56,G57)*1.2,0)))))) -> 0
C58: =$F$18 -> 
N59: =IF($S$12=2,SUM(D58,G58,D59,G59)/2,IF($S$12=3,SUM(D58,D59),IF($S$27=TRUE,SUM(D58,G58,D59,G59)/2,IF($S$31=TRUE,SUM(D58,D59),IF($S$33=TRUE,SUM(D58,D59),IF($S$32=TRUE,SUM(G58,G59)*1.2,0)))))) -> 0
C60: =$H$18 -> 
N61: =IF($S$12=2,SUM(D60,G60,D61,G61)/2,IF($S$12=3,SUM(D60,D61),IF($S$27=TRUE,SUM(D60,G60,D61,G61)/2,IF($S$31=TRUE,SUM(D60,D61),IF($S$33=TRUE,SUM(D60,D61),IF($S$32=TRUE,SUM(G60,G61)*1.2,0)))))) -> 0
C62: =$J$18 -> 
N63: =IF($S$12=2,SUM(D62,G62,D63,G63)/2,IF($S$12=3,SUM(D62,D63),IF($S$27=TRUE,SUM(D62,G62,D63,G63)/2,IF($S$31=TRUE,SUM(D62,D63),IF($S$33=TRUE,SUM(D62,D63),IF($S$32=TRUE,SUM(G62,G63)*1.2,0)))))) -> 0
C64: =$L$18 -> 
N65: =IF($S$12=2,SUM(D64,G64,D65,G65)/2,IF($S$12=3,SUM(D64,D65),IF($S$27=TRUE,SUM(D64,G64,D65,G65)/2,IF($S$31=TRUE,SUM(D64,D65),IF($S$33=TRUE,SUM(D64,D65),IF($S$32=TRUE,SUM(G64,G65)*1.2,0)))))) -> 0
B66: Total wages + other allowable payments received from this business | J66: (NOTE: if not allowing payment type selection, ensure entity type is selected at top of page)
D67: =SUM(D56:E65) -> 0 | G67: =SUM(G56:H65) -> 0 | J67: =SUM(N57:N65) -> 0
C69: Total employee wages
C71: Total Super contributions
D74: Total wages + other allowable payments received from this business | G74: Share of profit + addbacks | J74: Gross income (will flow through to main screen)
C75: =$D$18 -> Applicant 1 | D75: =N57 -> 0 | G75: =IF(N19>1,"",J50*D19) -> 0 | J75: =D75+G75 -> 0
C77: =$F$18 ->  | D77: =N59 -> 0 | G77: =IF(N19>1,"",J50*F19) -> 0 | J77: =D77+G77 -> 0
C79: =$H$18 ->  | D79: =N61 -> 0 | G79: =IF(N19>1,"",J50*H19) -> 0 | J79: =D79+G79 -> 0
C81: =$J$18 ->  | D81: =N63 -> 0 | G81: =IF(N19>1,"",J50*J19) -> 0 | J81: =D81+G81 -> 0
C83: =$L$18 ->  | D83: =N65 -> 0 | G83: =IF(N19>1,"",J50*L19) -> 0 | J83: =D83+G83 -> 0

Sheet Self-employed Income (2)
B2: Income assessment for self-employed borrowers (2nd)
K3: Toggle arrows above to add more S/E income
B4: Customer details | R4: Company applicant + trading ent. | S4: =AND(D6="Company",D8="Company") -> FALSE
R5: Company, sole applicant | S5: =AND(S4=TRUE,D16=1) -> FALSE
C6: Applicant type | R6: Company, not sole applicant | S6: =AND(S4=TRUE,S5=FALSE) -> FALSE
R7: Trust applicant + tranding ent. | S7: =AND(D6="Trust",D8="Trust") -> FALSE
C8: Type of trading entity | R8: Trust, not sole applicant | S8: =AND(S7=TRUE,D16=1) -> FALSE
C9: (for income being assessed) | R9: Trust, sole applicant | S9: =AND(S7=TRUE,S8=FALSE) -> FALSE
C11: =IF(ISBLANK(D8),"Name of entity", "Name of " & D8) -> Name of entity
C12: (for income being assessed) | R12: Income rule being applied (1-3) | S12: 1
C14: Latest financials available (year) | H14: More than 1 year financials provided? | I14: No
C16: No. of loan applicants | D16: ='Customer view page'!C7 -> 1
C18: Level of ownership | D18: ='Self-employed Income'!D18 -> Applicant 1 | F18: ='Self-employed Income'!F18 ->  | H18: ='Self-employed Income'!H18 ->  | J18: ='Self-employed Income'!J18 ->  | L18: ='Self-employed Income'!L18 ->  | N18: Total
C19: (leave blank if applicant has no ownership) | N19: =D19+F19+H19+J19+L19 -> 0
B23: Financial information | R23: Previous Year Income | S23: =G27+G47+G67 -> 0
R24: Current Year Income | S24: =D30+D47+D67 -> 0
D25: =IF(D14="","",D14) ->  | G25: =IF(D25="","",D25-1) ->  | R25: Variance from Year 1-2 | S25: =S24-S23 -> 0 | T25: =IF(OR(S23=0,S24=0),"N/A",S25/S23) -> N/A
C27: Operating net profit | J27: =IF(S12=3,"Using Single (Latest) Year Income Only",IF(S12=2,"2 Year Average",IF(S31=TRUE,"Latest Year Only (Downward Trend)",IF(S32=TRUE,"Previous Year + 20% (Upward Trend > 20%)",IF(S33=TRUE,"Latest Year Only (Upward Trend < 20%)",IF(S27=TRUE,"Latest Year Only (No Change in Income)","")))))) ->  | R27: Nil Variance? | S27: =AND(S23=S24,S28=FALSE) -> FALSE
C28: (before tax) | D28: =IF(D8="Trust","NOTE: operating net profit is not applicable for Trusts",IF(D8="Partnership","NOTE: operating net profit is not applicable for Partnerships","")) ->  | R28: Nil Income? | S28: =AND(S23=0,S24=0) -> TRUE
R29: Variance more than +/-20%? | S29: =IF(AND(OR(T25>20%,T25<-20%),ISNUMBER(T25)),TRUE,FALSE) -> FALSE
C30: Adjusted Profit | D30: =D27 -> 0 | G30: =G27 -> 0 | J30: =IF(S12=2,(D30+G30)/2,IF(S12=3,D30,IF(S28=TRUE,(D30+G30)/2,IF(S27=TRUE,(D30+G30)/2,IF(S38=TRUE,G30*0.8,IF(S31=TRUE,D30,IF(S33=TRUE,D30,IF(S32=TRUE,G30*1.2,0)))))))) -> 0 | R30: Upward Trend? | S30: =IF(S24>S23,TRUE,FALSE) -> FALSE
R31: Downward Trend? | S31: =IF(S24<S23,TRUE,FALSE) -> FALSE
C32: Addbacks | R32: Upward Trend > 20%? | S32: =AND(S30=TRUE,S29=TRUE) -> FALSE
C33: Interest (if applicable) | R33: Upward Trend < 20%? | S33: =AND(S30=TRUE,S29=FALSE) -> FALSE
C35: Depreciation | R35: Previous Year Loss? | S35: =IF(G27<0,TRUE,FALSE) -> FALSE
D36: =D35/2 -> 0 | G36: =G35/2 -> 0 | R36: Prev Yr Loss & Up Trend >20%? | S36: =AND(S35=TRUE,S32=TRUE) -> FALSE
C38: Amortisation of Goodwill | J38: Expense type | R38: Prev Neg Inc & Up Trend >20% | S38: =AND(G30<0,S32=TRUE) -> FALSE
C40: One-off expenses
C44: Excess Superannuation | D44: =IF(D25="","",D71-(D69*VLOOKUP(D25,'All data points & rules'!$H$41:$I$47,2,FALSE))) ->  | G44: =IF(G25="","",G71-(G69*VLOOKUP(G25,'All data points & rules'!$H$41:$I$47,2,FALSE))) -> 
C47: Total addbacks | D47: =D33+D36+SUM(D38:E44) -> 0 | G47: =G33+G36+SUM(G38:H44) -> 0 | J47: =IF(S12=2,(D47+G47)/2,IF(S12=3,D47,IF(S28=TRUE,(D47+G47)/2,IF(S27=TRUE,(D47+G47)/2,IF(S31=TRUE,D47,IF(S33=TRUE,D47,IF(S32=TRUE,G47*1.2,0))))))) -> 0
I50: Total Business Income (Adj. Profit + Addbacks) | J50: =J47+J30 -> 0
C52: Wages/salary | D52: (attributable to each borrower)
D54: =D25 ->  | G54: =G25 ->  | J54: Select payment type
C56: =$D$18 -> Applicant 1
N57: =IF($S$12=2,SUM(D56,G56,D57,G57)/2,IF($S$12=3,SUM(D56,D57),IF($S$27=TRUE,SUM(D56,G56,D57,G57)/2,IF($S$31=TRUE,SUM(D56,D57),IF($S$33=TRUE,SUM(D56,D57),IF($S$32=TRUE,SUM(G56,G57)*1.2,0)))))) -> 0
C58: =$F$18 -> 
N59: =IF($S$12=2,SUM(D58,G58,D59,G59)/2,IF($S$12=3,SUM(D58,D59),IF($S$27=TRUE,SUM(D58,G58,D59,G59)/2,IF($S$31=TRUE,SUM(D58,D59),IF($S$33=TRUE,SUM(D58,D59),IF($S$32=TRUE,SUM(G58,G59)*1.2,0)))))) -> 0
C60: =$H$18 -> 
N61: =IF($S$12=2,SUM(D60,G60,D61,G61)/2,IF($S$12=3,SUM(D60,D61),IF($S$27=TRUE,SUM(D60,G60,D61,G61)/2,IF($S$31=TRUE,SUM(D60,D61),IF($S$33=TRUE,SUM(D60,D61),IF($S$32=TRUE,SUM(G60,G61)*1.2,0)))))) -> 0
C62: =$J$18 -> 
N63: =IF($S$12=2,SUM(D62,G62,D63,G63)/2,IF($S$12=3,SUM(D62,D63),IF($S$27=TRUE,SUM(D62,G62,D63,G63)/2,IF($S$31=TRUE,SUM(D62,D63),IF($S$33=TRUE,SUM(D62,D63),IF($S$32=TRUE,SUM(G62,G63)*1.2,0)))))) -> 0
C64: =$L$18 -> 
N65: =IF($S$12=2,SUM(D64,G64,D65,G65)/2,IF($S$12=3,SUM(D64,D65),IF($S$27=TRUE,SUM(D64,G64,D65,G65)/2,IF($S$31=TRUE,SUM(D64,D65),IF($S$33=TRUE,SUM(D64,D65),IF($S$32=TRUE,SUM(G64,G65)*1.2,0)))))) -> 0
B66: Total wages + other allowable payments received from this business | J66: (NOTE: if not allowing payment type selection, ensure entity type is selected at top of page)
D67: =SUM(D56:E65) -> 0 | G67: =SUM(G56:H65) -> 0 | J67: =SUM(N57:N65) -> 0
C69: Total employee wages
C71: Total Super contributions
D74: Total wages + other allowable payments received from this business | G74: Share of profit + addbacks | J74: Gross income (will flow through to main screen)
C75: =$D$18 -> Applicant 1 | D75: =N57 -> 0 | G75: =IF(N19>1,"",J50*D19) -> 0 | J75: =D75+G75 -> 0
C77: =$F$18 ->  | D77: =N59 -> 0 | G77: =IF(N19>1,"",J50*F19) -> 0 | J77: =D77+G77 -> 0
C79: =$H$18 ->  | D79: =N61 -> 0 | G79: =IF(N19>1,"",J50*H19) -> 0 | J79: =D79+G79 -> 0
C81: =$J$18 ->  | D81: =N63 -> 0 | G81: =IF(N19>1,"",J50*J19) -> 0 | J81: =D81+G81 -> 0
C83: =$L$18 ->  | D83: =N65 -> 0 | G83: =IF(N19>1,"",J50*L19) -> 0 | J83: =D83+G83 -> 0

Sheet Self-employed Income (3)
B2: Income assessment for self-employed borrowers (3rd)
K3: Toggle arrows above to add more S/E income
B4: Customer details | R4: Company applicant + trading ent. | S4: =AND(D6="Company",D8="Company") -> FALSE
R5: Company, sole applicant | S5: =AND(S4=TRUE,D16=1) -> FALSE
C6: Applicant type | R6: Company, not sole applicant | S6: =AND(S4=TRUE,S5=FALSE) -> FALSE
R7: Trust applicant + tranding ent. | S7: =AND(D6="Trust",D8="Trust") -> FALSE
C8: Type of trading entity | R8: Trust, not sole applicant | S8: =AND(S7=TRUE,D16=1) -> FALSE
C9: (for income being assessed) | R9: Trust, sole applicant | S9: =AND(S7=TRUE,S8=FALSE) -> FALSE
C11: =IF(ISBLANK(D8),"Name of entity", "Name of " & D8) -> Name of entity
C12: (for income being assessed) | R12: Income rule being applied (1-3) | S12: 1
C14: Latest financials available (year) | H14: More than 1 year financials provided? | I14: No
C16: No. of loan applicants | D16: ='Customer view page'!C7 -> 1
C18: Level of ownership | D18: ='Self-employed Income'!D18 -> Applicant 1 | F18: ='Self-employed Income'!F18 ->  | H18: ='Self-employed Income'!H18 ->  | J18: ='Self-employed Income'!J18 ->  | L18: ='Self-employed Income'!L18 ->  | N18: Total
C19: (leave blank if applicant has no ownership) | N19: =D19+F19+H19+J19+L19 -> 0
B23: Financial information | R23: Previous Year Income | S23: =G27+G47+G67 -> 0
R24: Current Year Income | S24: =D30+D47+D67 -> 0
D25: =IF(D14="","",D14) ->  | G25: =IF(D25="","",D25-1) ->  | R25: Variance from Year 1-2 | S25: =S24-S23 -> 0 | T25: =IF(OR(S23=0,S24=0),"N/A",S25/S23) -> N/A
C27: Operating net profit | J27: =IF(S12=3,"Using Single (Latest) Year Income Only",IF(S12=2,"2 Year Average",IF(S31=TRUE,"Latest Year Only (Downward Trend)",IF(S32=TRUE,"Previous Year + 20% (Upward Trend > 20%)",IF(S33=TRUE,"Latest Year Only (Upward Trend < 20%)",IF(S27=TRUE,"Latest Year Only (No Change in Income)","")))))) ->  | R27: Nil Variance? | S27: =AND(S23=S24,S28=FALSE) -> FALSE
C28: (before tax) | D28: =IF(D8="Trust","NOTE: operating net profit is not applicable for Trusts",IF(D8="Partnership","NOTE: operating net profit is not applicable for Partnerships","")) ->  | R28: Nil Income? | S28: =AND(S23=0,S24=0) -> TRUE
R29: Variance more than +/-20%? | S29: =IF(AND(OR(T25>20%,T25<-20%),ISNUMBER(T25)),TRUE,FALSE) -> FALSE
C30: Adjusted Profit | D30: =D27 -> 0 | G30: =G27 -> 0 | J30: =IF(S12=2,(D30+G30)/2,IF(S12=3,D30,IF(S28=TRUE,(D30+G30)/2,IF(S27=TRUE,(D30+G30)/2,IF(S38=TRUE,G30*0.8,IF(S31=TRUE,D30,IF(S33=TRUE,D30,IF(S32=TRUE,G30*1.2,0)))))))) -> 0 | R30: Upward Trend? | S30: =IF(S24>S23,TRUE,FALSE) -> FALSE
R31: Downward Trend? | S31: =IF(S24<S23,TRUE,FALSE) -> FALSE
C32: Addbacks | R32: Upward Trend > 20%? | S32: =AND(S30=TRUE,S29=TRUE) -> FALSE
C33: Interest (if applicable) | R33: Upward Trend < 20%? | S33: =AND(S30=TRUE,S29=FALSE) -> FALSE
C35: Depreciation | R35: Previous Year Loss? | S35: =IF(G27<0,TRUE,FALSE) -> FALSE
D36: =D35/2 -> 0 | G36: =G35/2 -> 0 | R36: Prev Yr Loss & Up Trend >20%? | S36: =AND(S35=TRUE,S32=TRUE) -> FALSE
C38: Amortisation of Goodwill | J38: Expense type | R38: Prev Neg Inc & Up Trend >20% | S38: =AND(G30<0,S32=TRUE) -> FALSE
C40: One-off expenses
C44: Excess Superannuation | D44: =IF(D25="","",D71-(D69*VLOOKUP(D25,'All data points & rules'!$H$41:$I$47,2,FALSE))) ->  | G44: =IF(G25="","",G71-(G69*VLOOKUP(G25,'All data points & rules'!$H$41:$I$47,2,FALSE))) -> 
C47: Total addbacks | D47: =D33+D36+SUM(D38:E44) -> 0 | G47: =G33+G36+SUM(G38:H44) -> 0 | J47: =IF(S12=2,(D47+G47)/2,IF(S12=3,D47,IF(S28=TRUE,(D47+G47)/2,IF(S27=TRUE,(D47+G47)/2,IF(S31=TRUE,D47,IF(S33=TRUE,D47,IF(S32=TRUE,G47*1.2,0))))))) -> 0
I50: Total Business Income (Adj. Profit + Addbacks) | J50: =J47+J30 -> 0
C52: Wages/salary | D52: (attributable to each borrower)
D54: =D25 ->  | G54: =G25 ->  | J54: Select payment type
C56: =$D$18 -> Applicant 1
N57: =IF($S$12=2,SUM(D56,G56,D57,G57)/2,IF($S$12=3,SUM(D56,D57),IF($S$27=TRUE,SUM(D56,G56,D57,G57)/2,IF($S$31=TRUE,SUM(D56,D57),IF($S$33=TRUE,SUM(D56,D57),IF($S$32=TRUE,SUM(G56,G57)*1.2,0)))))) -> 0
C58: =$F$18 -> 
N59: =IF($S$12=2,SUM(D58,G58,D59,G59)/2,IF($S$12=3,SUM(D58,D59),IF($S$27=TRUE,SUM(D58,G58,D59,G59)/2,IF($S$31=TRUE,SUM(D58,D59),IF($S$33=TRUE,SUM(D58,D59),IF($S$32=TRUE,SUM(G58,G59)*1.2,0)))))) -> 0
C60: =$H$18 -> 
N61: =IF($S$12=2,SUM(D60,G60,D61,G61)/2,IF($S$12=3,SUM(D60,D61),IF($S$27=TRUE,SUM(D60,G60,D61,G61)/2,IF($S$31=TRUE,SUM(D60,D61),IF($S$33=TRUE,SUM(D60,D61),IF($S$32=TRUE,SUM(G60,G61)*1.2,0)))))) -> 0
C62: =$J$18 -> 
N63: =IF($S$12=2,SUM(D62,G62,D63,G63)/2,IF($S$12=3,SUM(D62,D63),IF($S$27=TRUE,SUM(D62,G62,D63,G63)/2,IF($S$31=TRUE,SUM(D62,D63),IF($S$33=TRUE,SUM(D62,D63),IF($S$32=TRUE,SUM(G62,G63)*1.2,0)))))) -> 0
C64: =$L$18 -> 
N65: =IF($S$12=2,SUM(D64,G64,D65,G65)/2,IF($S$12=3,SUM(D64,D65),IF($S$27=TRUE,SUM(D64,G64,D65,G65)/2,IF($S$31=TRUE,SUM(D64,D65),IF($S$33=TRUE,SUM(D64,D65),IF($S$32=TRUE,SUM(G64,G65)*1.2,0)))))) -> 0
B66: Total wages + other allowable payments received from this business | J66: (NOTE: if not allowing payment type selection, ensure entity type is selected at top of page)
D67: =SUM(D56:E65) -> 0 | G67: =SUM(G56:H65) -> 0 | J67: =SUM(N57:N65) -> 0
C69: Total employee wages
C71: Total Super contributions
D74: Total wages + other allowable payments received from this business | G74: Share of profit + addbacks | J74: Gross income (will flow through to main screen)
C75: =$D$18 -> Applicant 1 | D75: =N57 -> 0 | G75: =IF(N19>1,"",J50*D19) -> 0 | J75: =D75+G75 -> 0
C77: =$F$18 ->  | D77: =N59 -> 0 | G77: =IF(N19>1,"",J50*F19) -> 0 | J77: =D77+G77 -> 0
C79: =$H$18 ->  | D79: =N61 -> 0 | G79: =IF(N19>1,"",J50*H19) -> 0 | J79: =D79+G79 -> 0
C81: =$J$18 ->  | D81: =N63 -> 0 | G81: =IF(N19>1,"",J50*J19) -> 0 | J81: =D81+G81 -> 0
C83: =$L$18 ->  | D83: =N65 -> 0 | G83: =IF(N19>1,"",J50*L19) -> 0 | J83: =D83+G83 -> 0

Sheet Self-employed Income (4)
B2: Income assessment for self-employed borrowers (4th)
K3: Toggle arrows above to add more S/E income
B4: Customer details | R4: Company applicant + trading ent. | S4: =AND(D6="Company",D8="Company") -> FALSE
R5: Company, sole applicant | S5: =AND(S4=TRUE,D16=1) -> FALSE
C6: Applicant type | R6: Company, not sole applicant | S6: =AND(S4=TRUE,S5=FALSE) -> FALSE
R7: Trust applicant + tranding ent. | S7: =AND(D6="Trust",D8="Trust") -> FALSE
C8: Type of trading entity | R8: Trust, not sole applicant | S8: =AND(S7=TRUE,D16=1) -> FALSE
C9: (for income being assessed) | R9: Trust, sole applicant | S9: =AND(S7=TRUE,S8=FALSE) -> FALSE
C11: =IF(ISBLANK(D8),"Name of entity", "Name of " & D8) -> Name of entity
C12: (for income being assessed) | R12: Income rule being applied (1-3) | S12: 1
C14: Latest financials available (year) | H14: More than 1 year financials provided? | I14: No
C16: No. of loan applicants | D16: ='Customer view page'!C7 -> 1
C18: Level of ownership | D18: ='Self-employed Income'!D18 -> Applicant 1 | F18: ='Self-employed Income'!F18 ->  | H18: ='Self-employed Income'!H18 ->  | J18: ='Self-employed Income'!J18 ->  | L18: ='Self-employed Income'!L18 ->  | N18: Total
C19: (leave blank if applicant has no ownership) | N19: =D19+F19+H19+J19+L19 -> 0
B23: Financial information | R23: Previous Year Income | S23: =G27+G47+G67 -> 0
R24: Current Year Income | S24: =D30+D47+D67 -> 0
D25: =IF(D14="","",D14) ->  | G25: =IF(D25="","",D25-1) ->  | R25: Variance from Year 1-2 | S25: =S24-S23 -> 0 | T25: =IF(OR(S23=0,S24=0),"N/A",S25/S23) -> N/A
C27: Operating net profit | J27: =IF(S12=3,"Using Single (Latest) Year Income Only",IF(S12=2,"2 Year Average",IF(S31=TRUE,"Latest Year Only (Downward Trend)",IF(S32=TRUE,"Previous Year + 20% (Upward Trend > 20%)",IF(S33=TRUE,"Latest Year Only (Upward Trend < 20%)",IF(S27=TRUE,"Latest Year Only (No Change in Income)","")))))) ->  | R27: Nil Variance? | S27: =AND(S23=S24,S28=FALSE) -> FALSE
C28: (before tax) | D28: =IF(D8="Trust","NOTE: operating net profit is not applicable for Trusts",IF(D8="Partnership","NOTE: operating net profit is not applicable for Partnerships","")) ->  | R28: Nil Income? | S28: =AND(S23=0,S24=0) -> TRUE
R29: Variance more than +/-20%? | S29: =IF(AND(OR(T25>20%,T25<-20%),ISNUMBER(T25)),TRUE,FALSE) -> FALSE
C30: Adjusted Profit | D30: =D27 -> 0 | G30: =G27 -> 0 | J30: =IF(S12=2,(D30+G30)/2,IF(S12=3,D30,IF(S28=TRUE,(D30+G30)/2,IF(S27=TRUE,(D30+G30)/2,IF(S38=TRUE,G30*0.8,IF(S31=TRUE,D30,IF(S33=TRUE,D30,IF(S32=TRUE,G30*1.2,0)))))))) -> 0 | R30: Upward Trend? | S30: =IF(S24>S23,TRUE,FALSE) -> FALSE
R31: Downward Trend? | S31: =IF(S24<S23,TRUE,FALSE) -> FALSE
C32: Addbacks | R32: Upward Trend > 20%? | S32: =AND(S30=TRUE,S29=TRUE) -> FALSE
C33: Interest (if applicable) | R33: Upward Trend < 20%? | S33: =AND(S30=TRUE,S29=FALSE) -> FALSE
C35: Depreciation | R35: Previous Year Loss? | S35: =IF(G27<0,TRUE,FALSE) -> FALSE
D36: =D35/2 -> 0 | G36: =G35/2 -> 0 | R36: Prev Yr Loss & Up Trend >20%? | S36: =AND(S35=TRUE,S32=TRUE) -> FALSE
C38: Amortisation of Goodwill | J38: Expense type | R38: Prev Neg Inc & Up Trend >20% | S38: =AND(G30<0,S32=TRUE) -> FALSE
C40: One-off expenses
C44: Excess Superannuation | D44: =IF(D25="","",D71-(D69*VLOOKUP(D25,'All data points & rules'!$H$41:$I$47,2,FALSE))) ->  | G44: =IF(G25="","",G71-(G69*VLOOKUP(G25,'All data points & rules'!$H$41:$I$47,2,FALSE))) -> 
C47: Total addbacks | D47: =D33+D36+SUM(D38:E44) -> 0 | G47: =G33+G36+SUM(G38:H44) -> 0 | J47: =IF(S12=2,(D47+G47)/2,IF(S12=3,D47,IF(S28=TRUE,(D47+G47)/2,IF(S27=TRUE,(D47+G47)/2,IF(S31=TRUE,D47,IF(S33=TRUE,D47,IF(S32=TRUE,G47*1.2,0))))))) -> 0
I50: Total Business Income (Adj. Profit + Addbacks) | J50: =J47+J30 -> 0
C52: Wages/salary | D52: (attributable to each borrower)
D54: =D25 ->  | G54: =G25 ->  | J54: Select payment type
C56: =$D$18 -> Applicant 1
N57: =IF($S$12=2,SUM(D56,G56,D57,G57)/2,IF($S$12=3,SUM(D56,D57),IF($S$27=TRUE,SUM(D56,G56,D57,G57)/2,IF($S$31=TRUE,SUM(D56,D57),IF($S$33=TRUE,SUM(D56,D57),IF($S$32=TRUE,SUM(G56,G57)*1.2,0)))))) -> 0
C58: =$F$18 -> 
N59: =IF($S$12=2,SUM(D58,G58,D59,G59)/2,IF($S$12=3,SUM(D58,D59),IF($S$27=TRUE,SUM(D58,G58,D59,G59)/2,IF($S$31=TRUE,SUM(D58,D59),IF($S$33=TRUE,SUM(D58,D59),IF($S$32=TRUE,SUM(G58,G59)*1.2,0)))))) -> 0
C60: =$H$18 -> 
N61: =IF($S$12=2,SUM(D60,G60,D61,G61)/2,IF($S$12=3,SUM(D60,D61),IF($S$27=TRUE,SUM(D60,G60,D61,G61)/2,IF($S$31=TRUE,SUM(D60,D61),IF($S$33=TRUE,SUM(D60,D61),IF($S$32=TRUE,SUM(G60,G61)*1.2,0)))))) -> 0
C62: =$J$18 -> 
N63: =IF($S$12=2,SUM(D62,G62,D63,G63)/2,IF($S$12=3,SUM(D62,D63),IF($S$27=TRUE,SUM(D62,G62,D63,G63)/2,IF($S$31=TRUE,SUM(D62,D63),IF($S$33=TRUE,SUM(D62,D63),IF($S$32=TRUE,SUM(G62,G63)*1.2,0)))))) -> 0
C64: =$L$18 -> 
N65: =IF($S$12=2,SUM(D64,G64,D65,G65)/2,IF($S$12=3,SUM(D64,D65),IF($S$27=TRUE,SUM(D64,G64,D65,G65)/2,IF($S$31=TRUE,SUM(D64,D65),IF($S$33=TRUE,SUM(D64,D65),IF($S$32=TRUE,SUM(G64,G65)*1.2,0)))))) -> 0
B66: Total wages + other allowable payments received from this business | J66: (NOTE: if not allowing payment type selection, ensure entity type is selected at top of page)
D67: =SUM(D56:E65) -> 0 | G67: =SUM(G56:H65) -> 0 | J67: =SUM(N57:N65) -> 0
C69: Total employee wages
C71: Total Super contributions
D74: Total wages + other allowable payments received from this business | G74: Share of profit + addbacks | J74: Gross income (will flow through to main screen)
C75: =$D$18 -> Applicant 1 | D75: =N57 -> 0 | G75: =IF(N19>1,"",J50*D19) -> 0 | J75: =D75+G75 -> 0
C77: =$F$18 ->  | D77: =N59 -> 0 | G77: =IF(N19>1,"",J50*F19) -> 0 | J77: =D77+G77 -> 0
C79: =$H$18 ->  | D79: =N61 -> 0 | G79: =IF(N19>1,"",J50*H19) -> 0 | J79: =D79+G79 -> 0
C81: =$J$18 ->  | D81: =N63 -> 0 | G81: =IF(N19>1,"",J50*J19) -> 0 | J81: =D81+G81 -> 0
C83: =$L$18 ->  | D83: =N65 -> 0 | G83: =IF(N19>1,"",J50*L19) -> 0 | J83: =D83+G83 -> 0

Sheet Self-employed Income (5)
B2: Income assessment for self-employed borrowers (5th)
B4: Customer details | R4: Company applicant + trading ent. | S4: =AND(D6="Company",D8="Company") -> FALSE
R5: Company, sole applicant | S5: =AND(S4=TRUE,D16=1) -> FALSE
C6: Applicant type | R6: Company, not sole applicant | S6: =AND(S4=TRUE,S5=FALSE) -> FALSE
R7: Trust applicant + tranding ent. | S7: =AND(D6="Trust",D8="Trust") -> FALSE
C8: Type of trading entity | R8: Trust, not sole applicant | S8: =AND(S7=TRUE,D16=1) -> FALSE
C9: (for income being assessed) | R9: Trust, sole applicant | S9: =AND(S7=TRUE,S8=FALSE) -> FALSE
C11: =IF(ISBLANK(D8),"Name of entity", "Name of " & D8) -> Name of entity
C12: (for income being assessed) | R12: Income rule being applied (1-3) | S12: 1
C14: Latest financials available (year) | H14: More than 1 year financials provided? | I14: No
C16: No. of loan applicants | D16: ='Customer view page'!C7 -> 1
C18: Level of ownership | D18: ='Self-employed Income'!D18 -> Applicant 1 | F18: ='Self-employed Income'!F18 ->  | H18: ='Self-employed Income'!H18 ->  | J18: ='Self-employed Income'!J18 ->  | L18: ='Self-employed Income'!L18 ->  | N18: Total
C19: (leave blank if applicant has no ownership) | N19: =D19+F19+H19+J19+L19 -> 0
B23: Financial information | R23: Previous Year Income | S23: =G27+G47+G67 -> 0
R24: Current Year Income | S24: =D30+D47+D67 -> 0
D25: =IF(D14="","",D14) ->  | G25: =IF(D25="","",D25-1) ->  | R25: Variance from Year 1-2 | S25: =S24-S23 -> 0 | T25: =IF(OR(S23=0,S24=0),"N/A",S25/S23) -> N/A
C27: Operating net profit | J27: =IF(S12=3,"Using Single (Latest) Year Income Only",IF(S12=2,"2 Year Average",IF(S31=TRUE,"Latest Year Only (Downward Trend)",IF(S32=TRUE,"Previous Year + 20% (Upward Trend > 20%)",IF(S33=TRUE,"Latest Year Only (Upward Trend < 20%)",IF(S27=TRUE,"Latest Year Only (No Change in Income)","")))))) ->  | R27: Nil Variance? | S27: =AND(S23=S24,S28=FALSE) -> FALSE
C28: (before tax) | D28: =IF(D8="Trust","NOTE: operating net profit is not applicable for Trusts",IF(D8="Partnership","NOTE: operating net profit is not applicable for Partnerships","")) ->  | R28: Nil Income? | S28: =AND(S23=0,S24=0) -> TRUE
R29: Variance more than +/-20%? | S29: =IF(AND(OR(T25>20%,T25<-20%),ISNUMBER(T25)),TRUE,FALSE) -> FALSE
C30: Adjusted Profit | D30: =D27 -> 0 | G30: =G27 -> 0 | J30: =IF(S12=2,(D30+G30)/2,IF(S12=3,D30,IF(S28=TRUE,(D30+G30)/2,IF(S27=TRUE,(D30+G30)/2,IF(S38=TRUE,G30*0.8,IF(S31=TRUE,D30,IF(S33=TRUE,D30,IF(S32=TRUE,G30*1.2,0)))))))) -> 0 | R30: Upward Trend? | S30: =IF(S24>S23,TRUE,FALSE) -> FALSE
R31: Downward Trend? | S31: =IF(S24<S23,TRUE,FALSE) -> FALSE
C32: Addbacks | R32: Upward Trend > 20%? | S32: =AND(S30=TRUE,S29=TRUE) -> FALSE
C33: Interest (if applicable) | R33: Upward Trend < 20%? | S33: =AND(S30=TRUE,S29=FALSE) -> FALSE
C35: Depreciation | R35: Previous Year Loss? | S35: =IF(G27<0,TRUE,FALSE) -> FALSE
D36: =D35/2 -> 0 | G36: =G35/2 -> 0 | R36: Prev Yr Loss & Up Trend >20%? | S36: =AND(S35=TRUE,S32=TRUE) -> FALSE
C38: Amortisation of Goodwill | J38: Expense type | R38: Prev Neg Inc & Up Trend >20% | S38: =AND(G30<0,S32=TRUE) -> FALSE
C40: One-off expenses
C44: Excess Superannuation | D44: =IF(D25="","",D71-(D69*VLOOKUP(D25,'All data points & rules'!$H$41:$I$47,2,FALSE))) ->  | G44: =IF(G25="","",G71-(G69*VLOOKUP(G25,'All data points & rules'!$H$41:$I$47,2,FALSE))) -> 
C47: Total addbacks | D47: =D33+D36+SUM(D38:E44) -> 0 | G47: =G33+G36+SUM(G38:H44) -> 0 | J47: =IF(S12=2,(D47+G47)/2,IF(S12=3,D47,IF(S28=TRUE,(D47+G47)/2,IF(S27=TRUE,(D47+G47)/2,IF(S31=TRUE,D47,IF(S33=TRUE,D47,IF(S32=TRUE,G47*1.2,0))))))) -> 0
I50: Total Business Income (Adj. Profit + Addbacks) | J50: =J47+J30 -> 0
C52: Wages/salary | D52: (attributable to each borrower)
D54: =D25 ->  | G54: =G25 ->  | J54: Select payment type
C56: =$D$18 -> Applicant 1
N57: =IF($S$12=2,SUM(D56,G56,D57,G57)/2,IF($S$12=3,SUM(D56,D57),IF($S$27=TRUE,SUM(D56,G56,D57,G57)/2,IF($S$31=TRUE,SUM(D56,D57),IF($S$33=TRUE,SUM(D56,D57),IF($S$32=TRUE,SUM(G56,G57)*1.2,0)))))) -> 0
C58: =$F$18 -> 
N59: =IF($S$12=2,SUM(D58,G58,D59,G59)/2,IF($S$12=3,SUM(D58,D59),IF($S$27=TRUE,SUM(D58,G58,D59,G59)/2,IF($S$31=TRUE,SUM(D58,D59),IF($S$33=TRUE,SUM(D58,D59),IF($S$32=TRUE,SUM(G58,G59)*1.2,0)))))) -> 0
C60: =$H$18 -> 
N61: =IF($S$12=2,SUM(D60,G60,D61,G61)/2,IF($S$12=3,SUM(D60,D61),IF($S$27=TRUE,SUM(D60,G60,D61,G61)/2,IF($S$31=TRUE,SUM(D60,D61),IF($S$33=TRUE,SUM(D60,D61),IF($S$32=TRUE,SUM(G60,G61)*1.2,0)))))) -> 0
C62: =$J$18 -> 
N63: =IF($S$12=2,SUM(D62,G62,D63,G63)/2,IF($S$12=3,SUM(D62,D63),IF($S$27=TRUE,SUM(D62,G62,D63,G63)/2,IF($S$31=TRUE,SUM(D62,D63),IF($S$33=TRUE,SUM(D62,D63),IF($S$32=TRUE,SUM(G62,G63)*1.2,0)))))) -> 0
C64: =$L$18 -> 
N65: =IF($S$12=2,SUM(D64,G64,D65,G65)/2,IF($S$12=3,SUM(D64,D65),IF($S$27=TRUE,SUM(D64,G64,D65,G65)/2,IF($S$31=TRUE,SUM(D64,D65),IF($S$33=TRUE,SUM(D64,D65),IF($S$32=TRUE,SUM(G64,G65)*1.2,0)))))) -> 0
B66: Total wages + other allowable payments received from this business | J66: (NOTE: if not allowing payment type selection, ensure entity type is selected at top of page)
D67: =SUM(D56:E65) -> 0 | G67: =SUM(G56:H65) -> 0 | J67: =SUM(N57:N65) -> 0
C69: Total employee wages
C71: Total Super contributions
D74: Total wages + other allowable payments received from this business | G74: Share of profit + addbacks | J74: Gross income (will flow through to main screen)
C75: =$D$18 -> Applicant 1 | D75: =N57 -> 0 | G75: =IF(N19>1,"",J50*D19) -> 0 | J75: =D75+G75 -> 0
C77: =$F$18 ->  | D77: =N59 -> 0 | G77: =IF(N19>1,"",J50*F19) -> 0 | J77: =D77+G77 -> 0
C79: =$H$18 ->  | D79: =N61 -> 0 | G79: =IF(N19>1,"",J50*H19) -> 0 | J79: =D79+G79 -> 0
C81: =$J$18 ->  | D81: =N63 -> 0 | G81: =IF(N19>1,"",J50*J19) -> 0 | J81: =D81+G81 -> 0
C83: =$L$18 ->  | D83: =N65 -> 0 | G83: =IF(N19>1,"",J50*L19) -> 0 | J83: =D83+G83 -> 0

Sheet Foreign Income
B2: Applicable Foreign Income (annual)
B3: Tier 1 currencies (80% acceptable in serviceability): Canadian Dollars (CAD) / Euro (EUR) / British Pound (GBP) / Hong Kong Dollars (HKD) / Japanese yen (JPY) / New Zealand Dollar (NZD) / Singapore Dollars (SGD) / U.S. Dollars (USD) Tier 2 currencies (50% acceptable in serviceability): Chinese Yuan New to bank clients must be living and working in Australia. Lending to existing AMP Bank clients living and working overseas (ex-pats) may continue subject to current policy and procedure parameters Applicants with overseas income: ▪Maximum 70% LVR for Tier 1 currencies ▪Maximum 50% LVR for Tier 2 currencies See Credit Policy for more information
C4: Currency Tier | D4: Total Foreign Gross Annual Income ($AUD) | E4: Allowable
B5: ='Customer view page'!E$14 -> Applicant 1 | E5: =IF(C5="Tier 1",D5*'All data points & rules'!$M$20,IF(C5="Tier 2",D5*'All data points & rules'!$M$21,"")) -> 
B6: ='Customer view page'!G$14 -> N/A | E6: =IF(C6="Tier 1",D6*'All data points & rules'!$M$20,IF(C6="Tier 2",D6*'All data points & rules'!$M$21,"")) -> 
B7: ='Customer view page'!I$14 -> N/A | E7: =IF(C7="Tier 1",D7*'All data points & rules'!$M$20,IF(C7="Tier 2",D7*'All data points & rules'!$M$21,"")) -> 
B8: ='Customer view page'!K$14 -> N/A | E8: =IF(C8="Tier 1",D8*'All data points & rules'!$M$20,IF(C8="Tier 2",D8*'All data points & rules'!$M$21,"")) -> 
B9: ='Customer view page'!N$14 -> N/A | E9: =IF(C9="Tier 1",D9*'All data points & rules'!$M$20,IF(C9="Tier 2",D9*'All data points & rules'!$M$21,"")) -> 
B11: NOTE: any foreign rental income should be entered as rental income

Sheet Rental Income
B1: Rental income calculator | E1: NOTE: all properties listed here will appear in 'existing debt' sheet; there, you will need to fill out repayment and loan information. If the rental income is for the new loan you're applying for with AMP Bank, debt details should instead be provided on the main page | O1: =IF(SUM(O6:S13)=0,"IMPORTANT! Ensure to apply ownership by applicant","") -> 
E4: Calculation of Rental Income | L4: Calculation of Interest Expense (for negative gearing) | O4: % Allocation of Property Rent/Expense to Applicants* (NOTE: include each applicant's spouse, even if not an applicant themselves)
B5: Property | C5: Property Address/Identifier | D5: Is this the loan being applied for? | E5: Property Type Discount | F5: Location Discount | G5: Value of Property | H5: Weekly Rent Received | I5: Rental Return | J5: Assessment Rent Allowed | K5: Property Type Discount | L5: Outstanding (or new) Loan Amount | M5: Interest rate (pa) | N5: Monthly Interest Expense | O5: ='Customer view page'!E14 -> Applicant 1 | P5: ='Customer view page'!G14 -> N/A | Q5: ='Customer view page'!I14 -> N/A | R5: ='Customer view page'!K14 -> N/A | S5: ='Customer view page'!N14 -> N/A | T5: Total
B6: 1 | I6: =IF(OR(G6="",H6="",),"",H6*52/G6) ->  | J6: =IF(OR(H6="",G6=""),"",IF(I6<'All data points & rules'!$F$7,H6,G6*'All data points & rules'!$F$7/52)) ->  | K6: =IF(OR(E6="",J6=""),"",J6*VLOOKUP(E6,'All data points & rules'!$L$3:$N$12,3,FALSE)*VLOOKUP(F6,'All data points & rules'!$L$14:$N$16,3,FALSE)) ->  | N6: =IF(L6="","",L6*VLOOKUP(F6,'All data points & rules'!$L$14:$N$16,3,FALSE)*M6/12) ->  | O6: 1 | T6: =IF(SUM(O6:S6)=0,"",SUM(O6:S6)) -> 1 | U6: =IF(T6<100%,"CDR: will be reflected in 'existing debts' table","") -> 
B7: 2 | I7: =IF(OR(G7="",H7="",),"",H7*52/G7) ->  | J7: =IF(OR(H7="",G7=""),"",IF(I7<'All data points & rules'!$F$7,H7,G7*'All data points & rules'!$F$7/52)) ->  | K7: =IF(OR(E7="",J7=""),"",J7*VLOOKUP(E7,'All data points & rules'!$L$3:$N$12,3,FALSE)*VLOOKUP(F7,'All data points & rules'!$L$14:$N$16,3,FALSE)) ->  | N7: =IF(L7="","",L7*VLOOKUP(F7,'All data points & rules'!$L$14:$N$16,3,FALSE)*M7/12) ->  | O7: 1 | T7: =IF(SUM(O7:S7)=0,"",SUM(O7:S7)) -> 1 | U7: =IF(T7<100%,"CDR: will be reflected in 'existing debts' table","") -> 
B8: 3 | I8: =IF(OR(G8="",H8="",),"",H8*52/G8) ->  | J8: =IF(OR(H8="",G8=""),"",IF(I8<'All data points & rules'!$F$7,H8,G8*'All data points & rules'!$F$7/52)) ->  | K8: =IF(OR(E8="",J8=""),"",J8*VLOOKUP(E8,'All data points & rules'!$L$3:$N$12,3,FALSE)*VLOOKUP(F8,'All data points & rules'!$L$14:$N$16,3,FALSE)) ->  | N8: =IF(L8="","",L8*VLOOKUP(F8,'All data points & rules'!$L$14:$N$16,3,FALSE)*M8/12) ->  | O8: 1 | T8: =IF(SUM(O8:S8)=0,"",SUM(O8:S8)) -> 1
B9: 4 | J9: =IF(OR(H9="",G9=""),"",IF(I9<'All data points & rules'!$F$7,H9,G9*'All data points & rules'!$F$7/52)) ->  | K9: =IF(OR(E9="",J9=""),"",J9*VLOOKUP(E9,'All data points & rules'!$L$3:$N$12,3,FALSE)*VLOOKUP(F9,'All data points & rules'!$L$14:$N$16,3,FALSE)) ->  | N9: =IF(L9="","",L9*VLOOKUP(F9,'All data points & rules'!$L$14:$N$16,3,FALSE)*M9/12) ->  | O9: 1 | T9: 1
B10: 5 | J10: =IF(OR(H10="",G10=""),"",IF(I10<'All data points & rules'!$F$7,H10,G10*'All data points & rules'!$F$7/52)) ->  | K10: =IF(OR(E10="",J10=""),"",J10*VLOOKUP(E10,'All data points & rules'!$L$3:$N$12,3,FALSE)*VLOOKUP(F10,'All data points & rules'!$L$14:$N$16,3,FALSE)) ->  | N10: =IF(L10="","",L10*VLOOKUP(F10,'All data points & rules'!$L$14:$N$16,3,FALSE)*M10/12) ->  | O10: 1 | T10: 1
B11: 6 | J11: =IF(OR(H11="",G11=""),"",IF(I11<'All data points & rules'!$F$7,H11,G11*'All data points & rules'!$F$7/52)) ->  | K11: =IF(OR(E11="",J11=""),"",J11*VLOOKUP(E11,'All data points & rules'!$L$3:$N$12,3,FALSE)*VLOOKUP(F11,'All data points & rules'!$L$14:$N$16,3,FALSE)) ->  | N11: =IF(L11="","",L11*VLOOKUP(F11,'All data points & rules'!$L$14:$N$16,3,FALSE)*M11/12) ->  | O11: 1 | T11: 1
B12: 7 | J12: =IF(OR(H12="",G12=""),"",IF(I12<'All data points & rules'!$F$7,H12,G12*'All data points & rules'!$F$7/52)) ->  | K12: =IF(OR(E12="",J12=""),"",J12*VLOOKUP(E12,'All data points & rules'!$L$3:$N$12,3,FALSE)*VLOOKUP(F12,'All data points & rules'!$L$14:$N$16,3,FALSE)) ->  | N12: =IF(L12="","",L12*VLOOKUP(F12,'All data points & rules'!$L$14:$N$16,3,FALSE)*M12/12) ->  | O12: 1 | T12: 1
B13: 8 | J13: =IF(OR(H13="",G13=""),"",IF(I13<'All data points & rules'!$F$7,H13,G13*'All data points & rules'!$F$7/52)) ->  | K13: =IF(OR(E13="",J13=""),"",J13*VLOOKUP(E13,'All data points & rules'!$L$3:$N$12,3,FALSE)*VLOOKUP(F13,'All data points & rules'!$L$14:$N$16,3,FALSE)) ->  | N13: =IF(L13="","",L13*VLOOKUP(F13,'All data points & rules'!$L$14:$N$16,3,FALSE)*M13/12) ->  | O13: 1 | T13: 1
I14: Total Weekly Rent | K14: =SUM(K6:K13) -> 0 | O14: NOTE: if total ownership among applicants (plus their spouse/s) is not 100%, this will be treated as common debt reducer (CDR)
B15: Definitions
B16: Property type discount (see link below) | E16: Location discount
B17: - Residential: properties not in zone 4/5, or deemed to be high density | E17: - Domestic: all Australian residential properties | N17: Annual neg gearing expense | O17: ='Serviceability calculations'!C29 -> 0 | P17: ='Serviceability calculations'!D29 -> 0 | Q17: ='Serviceability calculations'!E29 -> 0 | R17: ='Serviceability calculations'!F29 -> 0 | S17: ='Serviceability calculations'!G29 -> 0
E18: - Foreign tier 1: USA, Canada, Europe | N18: Monthly neg gearing expense | O18: =O17/12 -> 0 | P18: =P17/12 -> 0 | Q18: 0 | R18: 0 | S18: 0
B19: - Zone 4/5 residential: high risk & ultra high risk postcodes | E19: - Foreign tier 2: China | H19: =IF(COUNTIF(D6:D13,"Yes")>0,"NOTE: ensure you enter the loan and security details for your new AMP Bank loan/s on the main screen","") ->  | O19: =IF(OR(AND(T6>100%,T6<>""),AND(T7>100%,T7<>""),AND(T8>100%,T8<>""),AND(T9>100%,T9<>""),AND(T10>100%,T10<>""),AND(T11>100%,T11<>""),AND(T11>100%,T11<>""),AND(T12>100%,T12<>""),AND(T13>100%,T13<>"")),"Error: ownership cannot be more than 100%. Please amend.","") -> 
B20: - Residential high density: apt/unit in a 'high density' postcode, with >10 units in block
B22: - Commercial: used for business purposes
B23: - Serviced apartment: furnished apartment available for short-term stays
B25: See the Security Property Location Guide to confirm the discount type as per above

Sheet Deductions
B2: Deductions
B3: NOTES - If a deduction cannot be converted to cash then it cannot be used towards serviceability income - Pre-tax deductions will have the applicable tax removed from the deduction - If salary deductions are being included in serviceability, provide documentary evidence of the deduction and its ability to be converted to cash (AMP Bank may consider deductions being included in serviceability if they can be coverted to cash)
H5: Applicants | I5: ='Customer view page'!C7 -> 1
C6: Frequency | D6: Deduction amount | E6: Annual amount | F6: Deduction type/description | H6: Applicant | I6: Pre/post tax | J6: Can the deduction be converted to cash?
B7: 1 | E7: =IF(OR(C7="",D7=""),"",D7*VLOOKUP(C7,'All data points & rules'!$L$31:$N$36,2,0)) -> 
B8: 2 | E8: =IF(OR(C8="",D8=""),"",D8*VLOOKUP(C8,'All data points & rules'!$L$31:$N$36,2,0)) -> 
B9: 3 | E9: =IF(OR(C9="",D9=""),"",D9*VLOOKUP(C9,'All data points & rules'!$L$31:$N$36,2,0)) -> 
B10: 4 | E10: =IF(OR(C10="",D10=""),"",D10*VLOOKUP(C10,'All data points & rules'!$L$31:$N$36,2,0)) -> 
B11: 5 | E11: =IF(OR(C11="",D11=""),"",D11*VLOOKUP(C11,'All data points & rules'!$L$31:$N$36,2,0)) -> 
B12: 6 | E12: =IF(OR(C12="",D12=""),"",D12*VLOOKUP(C12,'All data points & rules'!$L$31:$N$36,2,0)) -> 
B13: 7 | E13: =IF(OR(C13="",D13=""),"",D13*VLOOKUP(C13,'All data points & rules'!$L$31:$N$36,2,0)) -> 
B14: 8 | E14: =IF(OR(C14="",D14=""),"",D14*VLOOKUP(C14,'All data points & rules'!$L$31:$N$36,2,0)) -> 
B15: 9 | E15: =IF(OR(C15="",D15=""),"",D15*VLOOKUP(C15,'All data points & rules'!$L$31:$N$36,2,0)) -> 
B16: 10 | E16: =IF(OR(C16="",D16=""),"",D16*VLOOKUP(C16,'All data points & rules'!$L$31:$N$36,2,0)) -> 
C18: Total (monthly) | D18: ='Serviceability calculations'!Y35 -> 0
C19: Total (annual) | D19: =D18*12 -> 0

Sheet Monthly expenses
B1: Customer Declared Living Expenses (CDLE)
B4: Item | C4: Details | D4: Total Monthly Amount | E4: ='Customer view page'!E14 -> Applicant 1 | F4: ='Customer view page'!G14 -> N/A | G4: ='Customer view page'!I14 -> N/A | H4: ='Customer view page'!K14 -> N/A | I4: ='Customer view page'!N14 -> N/A | J4: Compared to HEM
B5: Primary Residence Costs (excluding Insurance) | C5: Housing and property expenses associated with the applicant's primary residence, either owned or rented. Includes rates, levies, repairs and maintenance, all other utilities and other household costs for fixtures and fittings (excluding land tax, body corporate and strata fees, telephone, internet, pay TV and Insurances). | D5: =SUM(E5:I5) -> 0 | J5: Yes
B6: Telephone, Internet, Pay TV and Media Streaming Subscriptions | C6: Telephone accounts (home and mobile), internet, pay TV and media streaming subscriptions (such as Netflix and Spotify). | D6: =SUM(E6:I6) -> 0 | J6: Yes
B7: Groceries | C7: Typical supermarket shop for groceries including food and toiletries (excluding alcohol & tobacco). | D7: 0 | J7: Yes
B8: Clothing and Personal Care | C8: Clothing, footwear, cosmetics and personal care. | D8: 0 | J8: Yes
B9: Recreation, Entertainment, and Pet Care | C9: Recreation and entertainment costs including alcohol, tobaccos, gambling, restaurants, membership fees, pet care and holidays. | D9: 0 | J9: Yes
B10: Transport | C10: Public transport, motor vehicle running costs including fuel, servicing, registration, parking and tolls (excluding motor vehicle insurance which is categorised under insurance). | D10: =SUM(E10:I10) -> 0 | J10: Yes
B11: Childcare | C11: Childcare including nannies. | D11: =SUM(E11:I11) -> 0 | J11: Yes
B12: Medical and Health (excluding Health Insurance) | C12: Medical and health costs including doctor, dental, optical and pharmaceutical etc. (excluding health insurance which is categorised under 'General Insurance (Including Home & Contents on Primary O/Occ Residence and Health)'). | D12: =SUM(E12:I12) -> 0 | J12: Yes
B13: General Insurance (Including Home and Contents on Primary Owner Occupied Residence and Health) | C13: Insurance costs such as personal belongings, travel and ambulance insurance, home and content, building as well as any compulsory insurance of motor vehicles (combined insurance and registration) other than recreation vehicles. Includes hospital, medical, dental and health insurance. | D13: 0 | J13: Yes
B14: Personal Insurance (Life, Sickness and Personal Accident) | C14: Sickness and personal accident insurance, life insurance. | D14: 0 | J14: No
B15: Public or Government Primary and Secondary Education | C15: Education fees, books, uniforms and associated costs for public schooling (preschool, primary or secondary). | D15: 0 | J15: Yes
B16: Investment Property Costs (including Insurance) | C16: All costs associated with an 'Investment Property' including building/contents insurance, rates, taxes, levies, body corporate, strata fees, repairs, maintenance. | D16: =SUM(E16:I16) -> 0 | J16: Yes
B17: Child and Spouse Maintenance | C17: Child and/or spousal maintenance payments. | D17: =SUM(E17:I17) -> 0 | J17: No
B18: Private and Non-Government Education | C18: Tuition fees, school fees, sports fees, books, uniforms and associated costs for private schooling, including independent schools (Catholic or non-Catholic), private tuition and compulsory age kindergarten/pre-primary/prep/reception. | D18: 0 | J18: No
B19: Higher Education and Vocational Training (excluding HECS/HELP) | C19: Fees, accommodation, books and associated costs for higher education (tertiary) and vocational training e.g. university, TAFE, business college, drama, music, dance (excluding HECS). | D19: 0 | J19: Yes
B20: Owner Occupied Strata, Body Corporate, Land Tax | C20: Land tax, body corporate and strata fees on owner-occupied principal place of residence (excluding investment properties, secondary residences, and properties maintained for other purposes such as holiday properties or residences maintained for parents or children). | D20: =SUM(E20:I20) -> 0 | J20: No
B21: Other Insurances | C21: Insurance of recreational vehicles such as motor cycle, caravan, trailer, boat and aircraft including combined insurance and registration. | D21: =SUM(E21:I21) -> 0 | J21: Yes
B22: Other Regular and Recurring Expenses | C22: Other Regular and Recurring Expenses. | D22: 0 | J22: Yes
B23: Secondary Residence and Holiday Home Costs (including Insurance) | C23: Costs associated with any secondary residences, either rented or owned for non-investment purposes, such as a holiday property that is not rented to generate income, or a property that family members (parents or children) are allowed to live in rent-free. Includes building/contents insurance, rates, taxes, levies, body corporate, strata fees, repairs, maintenance. | D23: =SUM(E23:I23) -> 0 | J23: Yes
B24: Rent | C24: Ongoing Rent commitments that will continue to be paid after settlement. | D24: =IF(E24>0,MAX(E24,'All data points & rules'!$T$2),0)+IF(F24>0,MAX(F24,'All data points & rules'!$T$2),0)+IF(G24>0,MAX(G24,'All data points & rules'!$T$2),0)+IF(H24>0,MAX(H24,'All data points & rules'!$T$2),0)+IF(I24>0,MAX(I24,'All data points & rules'!$T$2),0) -> 0 | J24: No1 | K24: *If applicable, min of $650 assumed
B25: Board | C25: Ongoing Board commitments that will continue to be paid after settlement. | D25: =IF(E25>0,MAX(E25,'All data points & rules'!$T$2),0)+IF(F25>0,MAX(F25,'All data points & rules'!$T$2),0)+IF(G25>0,MAX(G25,'All data points & rules'!$T$2),0)+IF(H25>0,MAX(H25,'All data points & rules'!$T$2),0)+IF(I25>0,MAX(I25,'All data points & rules'!$T$2),0) -> 0 | J25: No1
B26: SMSF Management Expense | C26: SMSF Management Expense | D26: =SUM(E26:I26) -> 0 | J26: No
C28: Expenses comparable to HEM | D28: =SUM(E28:I28) -> 0 | E28: =SUMIF($J$5:$J$26,"Yes",E5:E26) -> 0 | F28: =SUMIF($J$5:$J$26,"Yes",F5:F26) -> 0 | G28: 0 | H28: 0 | I28: 0
C29: Borrower's HEM | E29: ='HEM tables & calculation'!L30 ->  | F29: ='HEM tables & calculation'!L31 ->  | G29: ='HEM tables & calculation'!L32 ->  | H29: ='HEM tables & calculation'!L33 ->  | I29: ='HEM tables & calculation'!L34 -> 
C31: Additional (non-comparable to HEM) | D31: =SUM(E31:I31) -> 0 | E31: =IF(SUM(E5:E26)-E28=0,0,IF(E25>0,MAX(E25,'All data points & rules'!$T$2))+IF(E24>0,MAX(E24,'All data points & rules'!$T$2))+SUMIF($J$5:$J$26,"No",E5:E26)) -> 0 | F31: =IF(SUM(F5:F26)-F28=0,0,IF(F25>0,MAX(F25,'All data points & rules'!$T$2))+IF(F24>0,MAX(F24,'All data points & rules'!$T$2))+SUMIF($J$5:$J$26,"No",F5:F26)) -> 0 | G31: =IF(SUM(G5:G26)-G28=0,0,IF(G25>0,MAX(G25,'All data points & rules'!$T$2))+IF(G24>0,MAX(G24,'All data points & rules'!$T$2))+SUMIF($J$5:$J$26,"No",G5:G26)) -> 0 | H31: =IF(SUM(H5:H26)-H28=0,0,IF(H25>0,MAX(H25,'All data points & rules'!$T$2))+IF(H24>0,MAX(H24,'All data points & rules'!$T$2))+SUMIF($J$5:$J$26,"No",H5:H26)) -> 0 | I31: =IF(SUM(I5:I26)-I28=0,0,IF(I25>0,MAX(I25,'All data points & rules'!$T$2))+IF(I24>0,MAX(I24,'All data points & rules'!$T$2))+SUMIF($J$5:$J$26,"No",I5:I26)) -> 0

Sheet Existing debt
B1: Existing debt calculator
B3: Rental properties | D3: Ensure all properties that receive rent are entered on the 'rental income' screen, then fill out the remainder of the required info. If the rental income declared is the new loan coming to AMP Bank, the loan info should be input on the main page
B5: Property | C5: Loan identifier | E5: Loan balance | F5: Loan limit (inc. any redraw) | G5: Monthly repayment | H5: Assessed Repayment | I5: Will this utilise common debt reducer? | J5: Loan Type | K5: Loan Term Remaining (Years) | L5: Remaining IO Term (Years) | M5: Interest Rate | N5: % of Ownership (all applicants)
B6: 1 | C6: =IF('Rental Income'!C6="","",IF('Rental Income'!D6="Yes","NEW LOAN: enter loan and security details on main screen",IF('Rental Income'!L6=0,"No loan outstanding on property",'Rental Income'!C6))) ->  | E6: =IF('Rental Income'!L6="","",IF('Rental Income'!D6="Yes",0,'Rental Income'!L6)) ->  | H6: =IF(F6="","",IF(J6=Lists!$U$4,MAX(G6,-PMT((MAX('All data points & rules'!$F$2,M6))/12,MIN(60,IF(K6="",60,K6*12)),F6)),MAX(-PMT(IF(AND(I6="No",J6=Lists!$U$2),MAX('All data points & rules'!$F$2,M6+'All data points & rules'!$F$3)/12,MAX('All data points & rules'!$F$2,M6+'All data points & rules'!$F$3)/12),IF(AND(K6="",L6=""),360,IF(AND(K6="",L6<>""),360-(L6*12),(K6-L6)*12)),F6),G6))*IF(I6="Yes",N6,1)) ->  | I6: =IF(OR(E6="",E6=0),"",IF(N6<100%, "Yes", "No")) ->  | N6: ='Rental Income'!T6 -> 1
B7: 2 | C7: =IF('Rental Income'!C7="","",IF('Rental Income'!D7="Yes","NEW LOAN: enter loan and security details on main screen",IF('Rental Income'!L7=0,"No loan outstanding on property",'Rental Income'!C7))) ->  | E7: =IF('Rental Income'!L7="","",IF('Rental Income'!D7="Yes",0,'Rental Income'!L7)) ->  | H7: =IF(F7="","",IF(J7=Lists!$U$4,MAX(G7,-PMT((MAX('All data points & rules'!$F$2,M7))/12,MIN(60,IF(K7="",60,K7*12)),F7)),MAX(-PMT(IF(AND(I7="No",J7=Lists!$U$2),MAX('All data points & rules'!$F$2,M7+'All data points & rules'!$F$3)/12,MAX('All data points & rules'!$F$2,M7+'All data points & rules'!$F$3)/12),IF(AND(K7="",L7=""),360,IF(AND(K7="",L7<>""),360-(L7*12),(K7-L7)*12)),F7),G7))*IF(I7="Yes",N7,1)) ->  | I7: =IF(OR(E7="",E7=0),"",IF(N7<100%, "Yes", "No")) ->  | N7: ='Rental Income'!T7 -> 1
B8: 3 | C8: =IF('Rental Income'!C8="","",IF('Rental Income'!D8="Yes","NEW LOAN: enter loan and security details on main screen",IF('Rental Income'!L8=0,"No loan outstanding on property",'Rental Income'!C8))) ->  | E8: =IF('Rental Income'!L8="","",IF('Rental Income'!D8="Yes",0,'Rental Income'!L8)) ->  | H8: =IF(F8="","",IF(J8=Lists!$U$4,MAX(G8,-PMT((MAX('All data points & rules'!$F$2,M8))/12,MIN(60,IF(K8="",60,K8*12)),F8)),MAX(-PMT(IF(AND(I8="No",J8=Lists!$U$2),MAX('All data points & rules'!$F$2,M8+'All data points & rules'!$F$3)/12,MAX('All data points & rules'!$F$2,M8+'All data points & rules'!$F$3)/12),IF(AND(K8="",L8=""),360,IF(AND(K8="",L8<>""),360-(L8*12),(K8-L8)*12)),F8),G8))*IF(I8="Yes",N8,1)) ->  | N8: ='Rental Income'!T8 -> 1
B9: 4 | C9: =IF('Rental Income'!C9="","",IF('Rental Income'!D9="Yes","NEW LOAN: enter loan and security details on main screen",IF('Rental Income'!L9=0,"No loan outstanding on property",'Rental Income'!C9))) ->  | E9: =IF('Rental Income'!L9="","",IF('Rental Income'!D9="Yes",0,'Rental Income'!L9)) ->  | H9: =IF(F9="","",IF(J9=Lists!$U$4,MAX(G9,-PMT((MAX('All data points & rules'!$F$2,M9))/12,MIN(60,IF(K9="",60,K9*12)),F9)),MAX(-PMT(IF(AND(I9="No",J9=Lists!$U$2),MAX('All data points & rules'!$F$2,M9+'All data points & rules'!$F$3)/12,MAX('All data points & rules'!$F$2,M9+'All data points & rules'!$F$3)/12),IF(AND(K9="",L9=""),360,IF(AND(K9="",L9<>""),360-(L9*12),(K9-L9)*12)),F9),G9))*IF(I9="Yes",N9,1)) ->  | N9: ='Rental Income'!T9 -> 1
B10: 5 | C10: =IF('Rental Income'!C10="","",IF('Rental Income'!D10="Yes","NEW LOAN: enter loan and security details on main screen",IF('Rental Income'!L10=0,"No loan outstanding on property",'Rental Income'!C10))) ->  | E10: =IF('Rental Income'!L10="","",IF('Rental Income'!D10="Yes",0,'Rental Income'!L10)) ->  | H10: =IF(F10="","",IF(J10=Lists!$U$4,MAX(G10,-PMT((MAX('All data points & rules'!$F$2,M10))/12,MIN(60,IF(K10="",60,K10*12)),F10)),MAX(-PMT(IF(AND(I10="No",J10=Lists!$U$2),MAX('All data points & rules'!$F$2,M10+'All data points & rules'!$F$3)/12,MAX('All data points & rules'!$F$2,M10+'All data points & rules'!$F$3)/12),IF(AND(K10="",L10=""),360,IF(AND(K10="",L10<>""),360-(L10*12),(K10-L10)*12)),F10),G10))*IF(I10="Yes",N10,1)) ->  | N10: ='Rental Income'!T10 -> 1
B11: 6 | C11: =IF('Rental Income'!C11="","",IF('Rental Income'!D11="Yes","NEW LOAN: enter loan and security details on main screen",IF('Rental Income'!L11=0,"No loan outstanding on property",'Rental Income'!C11))) ->  | E11: =IF('Rental Income'!L11="","",IF('Rental Income'!D11="Yes",0,'Rental Income'!L11)) ->  | H11: =IF(F11="","",IF(J11=Lists!$U$4,MAX(G11,-PMT((MAX('All data points & rules'!$F$2,M11))/12,MIN(60,IF(K11="",60,K11*12)),F11)),MAX(-PMT(IF(AND(I11="No",J11=Lists!$U$2),MAX('All data points & rules'!$F$2,M11+'All data points & rules'!$F$3)/12,MAX('All data points & rules'!$F$2,M11+'All data points & rules'!$F$3)/12),IF(AND(K11="",L11=""),360,IF(AND(K11="",L11<>""),360-(L11*12),(K11-L11)*12)),F11),G11))*IF(I11="Yes",N11,1)) ->  | N11: ='Rental Income'!T11 -> 1
B13: Other debt | D13: Do not include credit cards or HECS/HELP (see main page). Do not include rental properties: they will automatically pull from the 'rental income' screen into the table above.
B15: Debt | C15: Loan identifier | E15: Loan limit (inc. any redraw) | G15: Monthly Repayment | H15: Assessed Repayment | I15: Will this utilise common debt reducer? | J15: Loan Type | K15: Loan Term Remaining (Years) | L15: Remaining IO Term (Years) | M15: Interest Rate | N15: % of Ownership (all applicants + spouse/s)
B16: 1 | H16: =IF(E16="","",IF(J16="Personal/Equipment Loan - FIXED rate/payments for life of Loan",G16,IF(J16=Lists!$U$4,MAX(G16,-PMT((MAX('All data points & rules'!$F$2,M16+'All data points & rules'!$F$3))/12,MIN(60,IF(K16="",60,K16*12)),E16)),MAX(-PMT(IF(AND(I16="No",J16=Lists!$U$2),MAX('All data points & rules'!$F$2,M16+'All data points & rules'!$F$3)/12,MAX('All data points & rules'!$F$2,M16+'All data points & rules'!$F$3)/12),IF(AND(K16="",L16=""),360,IF(AND(K16="",L16<>""),360-(L16*12),(K16-L16)*12)),E16),G16))*IF(I16="Yes",N16,1))) ->  | N16: 1 | O16: =IF(AND(I16="YES",N16=100%),"CHECK: If CDR = 'Yes', applicant ownership should be < 100%",IF(AND(I16="NO",N16<100%),"CHECK: If ownership is <100%, then CDR should be 'Yes'","")) -> 
B17: 2 | H17: =IF(E17="","",IF(J17="Personal/Equipment Loan - FIXED rate/payments for life of Loan",G17,IF(J17=Lists!$U$4,MAX(G17,-PMT((MAX('All data points & rules'!$F$2,M17+'All data points & rules'!$F$3))/12,MIN(60,IF(K17="",60,K17*12)),E17)),MAX(-PMT(IF(AND(I17="No",J17=Lists!$U$2),MAX('All data points & rules'!$F$2,M17+'All data points & rules'!$F$3)/12,MAX('All data points & rules'!$F$2,M17+'All data points & rules'!$F$3)/12),IF(AND(K17="",L17=""),360,IF(AND(K17="",L17<>""),360-(L17*12),(K17-L17)*12)),E17),G17))*IF(I17="Yes",N17,1))) ->  | N17: 1 | O17: =IF(AND(I17="YES",N17=100%),"CHECK: If CDR = 'Yes', applicant ownership should be < 100%",IF(AND(I17="NO",N17<100%),"CHECK: If ownership is <100%, then CDR should be 'Yes'","")) -> 
B18: 3 | H18: =IF(E18="","",IF(J18="Personal/Equipment Loan - FIXED rate/payments for life of Loan",G18,IF(J18=Lists!$U$4,MAX(G18,-PMT((MAX('All data points & rules'!$F$2,M18+'All data points & rules'!$F$3))/12,MIN(60,IF(K18="",60,K18*12)),E18)),MAX(-PMT(IF(AND(I18="No",J18=Lists!$U$2),MAX('All data points & rules'!$F$2,M18+'All data points & rules'!$F$3)/12,MAX('All data points & rules'!$F$2,M18+'All data points & rules'!$F$3)/12),IF(AND(K18="",L18=""),360,IF(AND(K18="",L18<>""),360-(L18*12),(K18-L18)*12)),E18),G18))*IF(I18="Yes",N18,1))) ->  | N18: 1
B19: 4 | H19: =IF(E19="","",IF(J19="Personal/Equipment Loan - FIXED rate/payments for life of Loan",G19,IF(J19=Lists!$U$4,MAX(G19,-PMT((MAX('All data points & rules'!$F$2,M19+'All data points & rules'!$F$3))/12,MIN(60,IF(K19="",60,K19*12)),E19)),MAX(-PMT(IF(AND(I19="No",J19=Lists!$U$2),MAX('All data points & rules'!$F$2,M19+'All data points & rules'!$F$3)/12,MAX('All data points & rules'!$F$2,M19+'All data points & rules'!$F$3)/12),IF(AND(K19="",L19=""),360,IF(AND(K19="",L19<>""),360-(L19*12),(K19-L19)*12)),E19),G19))*IF(I19="Yes",N19,1))) ->  | N19: 1
B20: 5 | H20: =IF(E20="","",IF(J20="Personal/Equipment Loan - FIXED rate/payments for life of Loan",G20,IF(J20=Lists!$U$4,MAX(G20,-PMT((MAX('All data points & rules'!$F$2,M20+'All data points & rules'!$F$3))/12,MIN(60,IF(K20="",60,K20*12)),E20)),MAX(-PMT(IF(AND(I20="No",J20=Lists!$U$2),MAX('All data points & rules'!$F$2,M20+'All data points & rules'!$F$3)/12,MAX('All data points & rules'!$F$2,M20+'All data points & rules'!$F$3)/12),IF(AND(K20="",L20=""),360,IF(AND(K20="",L20<>""),360-(L20*12),(K20-L20)*12)),E20),G20))*IF(I20="Yes",N20,1))) ->  | N20: 1
B21: 6 | H21: =IF(E21="","",IF(J21="Personal/Equipment Loan - FIXED rate/payments for life of Loan",G21,IF(J21=Lists!$U$4,MAX(G21,-PMT((MAX('All data points & rules'!$F$2,M21+'All data points & rules'!$F$3))/12,MIN(60,IF(K21="",60,K21*12)),E21)),MAX(-PMT(IF(AND(I21="No",J21=Lists!$U$2),MAX('All data points & rules'!$F$2,M21+'All data points & rules'!$F$3)/12,MAX('All data points & rules'!$F$2,M21+'All data points & rules'!$F$3)/12),IF(AND(K21="",L21=""),360,IF(AND(K21="",L21<>""),360-(L21*12),(K21-L21)*12)),E21),G21))*IF(I21="Yes",N21,1))) ->  | N21: 1
B22: 7 | H22: =IF(E22="","",IF(J22="Personal/Equipment Loan - FIXED rate/payments for life of Loan",G22,IF(J22=Lists!$U$4,MAX(G22,-PMT((MAX('All data points & rules'!$F$2,M22+'All data points & rules'!$F$3))/12,MIN(60,IF(K22="",60,K22*12)),E22)),MAX(-PMT(IF(AND(I22="No",J22=Lists!$U$2),MAX('All data points & rules'!$F$2,M22+'All data points & rules'!$F$3)/12,MAX('All data points & rules'!$F$2,M22+'All data points & rules'!$F$3)/12),IF(AND(K22="",L22=""),360,IF(AND(K22="",L22<>""),360-(L22*12),(K22-L22)*12)),E22),G22))*IF(I22="Yes",N22,1))) ->  | N22: 1
B23: 8 | H23: =IF(E23="","",IF(J23="Personal/Equipment Loan - FIXED rate/payments for life of Loan",G23,IF(J23=Lists!$U$4,MAX(G23,-PMT((MAX('All data points & rules'!$F$2,M23+'All data points & rules'!$F$3))/12,MIN(60,IF(K23="",60,K23*12)),E23)),MAX(-PMT(IF(AND(I23="No",J23=Lists!$U$2),MAX('All data points & rules'!$F$2,M23+'All data points & rules'!$F$3)/12,MAX('All data points & rules'!$F$2,M23+'All data points & rules'!$F$3)/12),IF(AND(K23="",L23=""),360,IF(AND(K23="",L23<>""),360-(L23*12),(K23-L23)*12)),E23),G23))*IF(I23="Yes",N23,1))) ->  | N23: 1
B24: 9 | H24: =IF(E24="","",IF(J24="Personal/Equipment Loan - FIXED rate/payments for life of Loan",G24,IF(J24=Lists!$U$4,MAX(G24,-PMT((MAX('All data points & rules'!$F$2,M24+'All data points & rules'!$F$3))/12,MIN(60,IF(K24="",60,K24*12)),E24)),MAX(-PMT(IF(AND(I24="No",J24=Lists!$U$2),MAX('All data points & rules'!$F$2,M24+'All data points & rules'!$F$3)/12,MAX('All data points & rules'!$F$2,M24+'All data points & rules'!$F$3)/12),IF(AND(K24="",L24=""),360,IF(AND(K24="",L24<>""),360-(L24*12),(K24-L24)*12)),E24),G24))*IF(I24="Yes",N24,1))) ->  | N24: 1

Sheet Family Guarantee
B2: Family Guarantee checkbox
B3: NOTE: this checkbox is designed for First Home Buyer Family Guarantee calculation only. Please check with your BDM.
C5: Property value | E5: =IF(ISERROR(IF(D7/D5>0.2,"Security Guarantee may not be needed. Check with your BDM","")),"",IF(D7/D5>0.2,"Security Guarantee may not be needed. Check with your BDM","")) -> 
C7: Deposit amount | E7: =IF(OR(D9="",D7=""),"",IF(D9+D7-D5=0,"","Error: Deposit Amount + Loan Amount does not add up to the Property Value")) -> 
C9: Loan amount | E9: =IF(D9>1000000,"Max loan amount cannot exceed $1,000,000 for FHB Family Guarantee","") -> 
C11: Family guarantee amount | D11: =((D5*0.2)-D7)/'All data points & rules'!T3 -> 0
C13: Guarantor property value
C15: Existing or new guarantor loan with AMP Bank | D15: 0
C17: Guarantee acceptable | D17: =IF(OR(D5="",D7="",D9="",D13="",D15=""),"",IF(AND('All data points & rules'!T3*D13-D15>=D11, D13*'All data points & rules'!T4>=D11), "Yes", "Error")) ->  | E17: =IF(D17="Error", "Insufficient Security Value","") -> 

Sheet LMI (hidden)
B1: 1 = use | C1: Criteria | D1: Test | E1: Add-on
A2: Genworth | B2: 1 | C2: Self-employed | D2: =IF(SUM('Customer view page'!E38:O38)>0,"Y","N") -> N | E2: 0 | J2: Genworth Term Loan | Q2: QBE Term Loan
A3: QBE | B3: 0 | C3: Investment | D3: =IF('New loan details & repayments'!C27="INV","Y","N") -> N | E3: 0.15 | J3: Up to and including $300,000 | L3: Standard | M3: FHB | Q3: Up to and including $300,000 | S3: Regulated | T3: Non-Regulated
A4: Higher | B4: 0 | C4: Refi Purpose | D4: =IF('New loan details & repayments'!C28="Refi","Y","N") -> N | E4: 0 | H4: Bal from | I4: Bal to | J4: to | K4: from | O4: Bal from | P4: Bal to | Q4: to | R4: from
C5: FHB | D5: =IF('New loan details & repayments'!C37=TRUE,"Y","N") -> N | H5: 0 | I5: 300000 | J5: 0 | K5: 0.60009 | L5: 0.0037 | M5: 0.0036 | O5: 0 | P5: 300000 | Q5: 0 | R5: 0.60009 | S5: 0.0028 | T5: =S5 -> 0.0028
A6: Loan amount | B6: ='New loan details & repayments'!C18 -> 0 | H6: 0 | I6: 300000 | J6: 0.6001 | K6: 0.65009 | L6: 0.0038 | M6: 0.0038 | O6: 0 | P6: 300000 | Q6: 0.6001 | R6: 0.70009 | S6: 0.0037 | T6: =S6 -> 0.0037
A7: LVR | B7: ='New loan details & repayments'!C24 -> 0 | H7: 0 | I7: 300000 | J7: 0.6501 | K7: 0.70009 | L7: 0.004 | M7: 0.004 | O7: 0 | P7: 300000 | Q7: 0.7001 | R7: 0.80009 | S7: 0.0043 | T7: 0.0043
H8: 0 | I8: 300000 | J8: 0.7001 | K8: 0.75009 | L8: 0.0042 | M8: 0.0041 | O8: 0 | P8: 300000 | Q8: 0.8001 | R8: 0.81009 | S8: 0.0045 | T8: 0.0045
C9: Genworth | D9: QBE | E9: Higher | H9: 0 | I9: 300000 | J9: 0.7501 | K9: 0.80009 | L9: 0.0047 | M9: 0.0046 | O9: 0 | P9: 300000 | Q9: 0.8101 | R9: 0.82009 | S9: 0.0045 | T9: 0.0045
A10: Term loan rate | C10: =IF(D5="Y",SUMIFS(M3:M150,H3:H150,"<"&B6,I3:I150,">="&B6,J3:J150,"<="&B7,K3:K150,">="&B7),SUMIFS(L3:L150,H3:H150,"<"&B6,I3:I150,">="&B6,J3:J150,"<="&B7,K3:K150,">="&B7)) -> 0 | D10: =SUMIFS(S3:S150,O3:O150,"<"&B6,P3:P150,">="&B6,Q3:Q150,"<="&B7,R3:R150,">="&B7) -> 0 | E10: - | H10: 0 | I10: 300000 | J10: 0.8001 | K10: 0.81009 | L10: 0.0052 | M10: 0.0051 | O10: 0 | P10: 300000 | Q10: =Q9+0.01 -> 0.8201 | R10: =R9+0.01 -> 0.83009 | S10: 0.0068 | T10: 0.0068
A11: Low Doc rate | C11: =C10 -> 0 | D11: =D10 -> 0 | E11: - | H11: 0 | I11: 300000 | J11: 0.8101 | K11: 0.82009 | L11: 0.0053 | M11: 0.0052 | O11: 0 | P11: 300000 | Q11: =Q10+0.01 -> 0.8301 | R11: 0.84009 | S11: 0.0068 | T11: 0.0068
A12: Minimum premium | C12: 1200 | D12: 1200 | E12: - | H12: 0 | I12: 300000 | J12: 0.8201 | K12: 0.83009 | L12: 0.0074 | M12: 0.0073 | O12: 0 | P12: 300000 | Q12: 0.8401 | R12: 0.85009 | S12: 0.0084 | T12: 0.0084
H13: 0 | I13: 300000 | J13: 0.8301 | K13: 0.84009 | L13: 0.0074 | M13: 0.0073 | O13: 0 | P13: 300000 | Q13: 0.8501 | R13: 0.86009 | S13: 0.0084 | T13: 0.0084
A14: Standard | C14: =C10*100 -> 0 | D14: =D10*100 -> 0 | E14: - | H14: 0 | I14: 300000 | J14: 0.8401 | K14: 0.85009 | L14: 0.0093 | M14: 0.0092 | O14: 0 | P14: 300000 | Q14: 0.8601 | R14: 0.87009 | S14: 0.0101 | T14: 0.0101
A15: Self-employed | C15: =1+(IF(D2="Y",E2,0)) -> 1 | D15: - | E15: - | H15: 0 | I15: 300000 | J15: 0.8501 | K15: 0.86009 | L15: 0.0096 | M15: 0.0095 | O15: 0 | P15: 300000 | Q15: 0.8701 | R15: 0.88009 | S15: 0.0101 | T15: 0.0101
A16: Investment | C16: =1+(IF(D3="Y",E3,0)) -> 1 | D16: - | E16: - | H16: 0 | I16: 300000 | J16: 0.8601 | K16: 0.87009 | L16: 0.0113 | M16: 0.0112 | O16: 0 | P16: 300000 | Q16: 0.8801 | R16: 0.89009 | S16: 0.0136 | T16: 0.0136
A17: Refi purpose | C17: =1+(IF(D4="Y",E4,0)) -> 1 | D17: - | E17: - | H17: 0 | I17: 300000 | J17: 0.8701 | K17: 0.88009 | L17: 0.0113 | M17: 0.0112 | O17: 0 | P17: 300000 | Q17: 0.8901 | R17: 0.90009 | S17: 0.0136 | T17: 0.0136
A18: SUMPRODUCT | C18: =ROUND(PRODUCT(C14:C17),2) -> 0 | D18: - | E18: - | H18: 0 | I18: 300000 | J18: 0.8801 | K18: 0.89009 | L18: 0.0147 | M18: 0.0145 | O18: 0 | P18: 300000 | Q18: 0.9001 | R18: 0.91009 | S18: 0.0187 | T18: 0.0187
H19: 0 | I19: 300000 | J19: 0.8901 | K19: 0.90009 | L19: 0.0166 | M19: 0.0163 | O19: 0 | P19: 300000 | Q19: 0.9101 | R19: 0.92009 | S19: 0.0187 | T19: 0.0187
A20: Premium | C20: =B6*C18/100 -> 0 | D20: =B6*D14/100 -> 0 | E20: =MAX(C20:D20) -> 0 | H20: 0 | I20: 300000 | J20: 0.9001 | K20: 0.91009 | L20: 0.0212 | M20: 0.0209 | O20: 0 | P20: 300000 | Q20: 0.9201 | R20: 0.93009 | S20: 0.021 | T20: 0.021
A21: Rounded premium | C21: =IF(AND(C20<$C$12,C20>1),$C$12,C20) -> 0 | D21: =IF(AND(D20<$C$12,D20>1),$C$12,D20) -> 0 | E21: =MAX(C21:D21) -> 0 | H21: 0 | I21: 300000 | J21: 0.9101 | K21: 0.92009 | L21: 0.0212 | M21: 0.0209 | O21: 0 | P21: 300000 | Q21: 0.9301 | R21: 0.94009 | S21: 0.021 | T21: 0.021
A22: Total stamp duty | C22: =SUM(D27:D32) -> 0 | D22: =SUM(E27:E32) -> 0 | E22: 0 | H22: 0 | I22: 300000 | J22: 0.9201 | K22: 0.93009 | L22: 0.0244 | M22: 0.024 | O22: 0 | P22: 300000 | Q22: 0.9401 | R22: 0.95009 | S22: 0.0233 | T22: 0.0233
A23: Total premium (LMI + SD) | C23: =SUM(C21:C22) -> 0 | D23: =SUM(D21:D22) -> 0 | E23: 0 | H23: 0 | I23: 300000 | J23: 0.9301 | K23: 0.94009 | L23: 0.0244 | M23: 0.024 | O23: 0 | P23: 300000 | Q23: 0.9501 | R23: 0.96009 | S23: 0 | T23: 0
A24: Premium charged to borrower | C24: =((C23-C22)*(1-1/11))+(0.25*((1/11)*(C23-C22)))+C22 -> 0 | D24: =((D23-D22)*(1-1/11))+(0.25*((1/11)*(D23-D22)))+D22 -> 0 | E24: 0 | H24: 0 | I24: 300000 | J24: 0.9401 | K24: 0.95009 | L24: 0.0272 | M24: 0.0267 | O24: 0 | P24: 300000 | Q24: 0.9601 | R24: 0.97009 | S24: 0 | T24: 0
J25: $300,001 to $600,000 | O25: 0 | P25: 300000 | Q25: 0.9701 | R25: 0.98009 | S25: 0 | T25: 0
A26: Stamp duty per property (WEIGHTED) | D26: Genworth | E26: QBE | F26: Higher | H26: 300000 | I26: 600000 | J26: 0 | K26: 0.60009 | L26: 0.0038 | M26: 0.0038 | O26: 0 | P26: 300000 | Q26: 0.9801 | R26: 0.99009 | S26: 0 | T26: 0
A27: Sec 1 | B27: =IF('Customer view page'!G94="","",VLOOKUP('Customer view page'!G94,'Zoning & Postcodes'!$B:$C,2,0)) ->  | C27: ='Customer view page'!E94 -> 0 | D27: =IF(B27="","",C$21*($C27/$C$33)*VLOOKUP(B27,'All data points & rules'!$P$2:$Q$11,2,0)) ->  | E27: =IF(B27="","",D$21*($C27/$C$33)*VLOOKUP(B27,'All data points & rules'!$P$2:$Q$11,2,0)) ->  | F27: =IF(B27="","",MAX(D27:E27)) ->  | H27: 300000 | I27: 600000 | J27: 0.6001 | K27: 0.65009 | L27: 0.0042 | M27: 0.0041 | O27: 0 | P27: 300000 | Q27: =Q26+0.01 -> 0.9901 | R27: =R26+0.01 -> 1.00009 | S27: 0 | T27: 0
A28: Sec 2 | B28: =IF('Customer view page'!G95="","",VLOOKUP('Customer view page'!G95,'Zoning & Postcodes'!$B:$C,2,0)) ->  | C28: ='Customer view page'!E95 -> 0 | D28: =IF(B28="","",C$21*($C28/$C$33)*VLOOKUP(B28,'All data points & rules'!$P$2:$Q$11,2,0)) ->  | E28: =IF(B28="","",D$21*($C28/$C$33)*VLOOKUP(B28,'All data points & rules'!$P$2:$Q$11,2,0)) ->  | H28: 300000 | I28: 600000 | J28: 0.6501 | K28: 0.70009 | L28: 0.0044 | M28: 0.0043 | Q28: $300,001 to $600,000
A29: Sec 3 | B29: =IF('Customer view page'!G96="","",VLOOKUP('Customer view page'!G96,'Zoning & Postcodes'!$B:$C,2,0)) ->  | C29: ='Customer view page'!E96 -> 0 | D29: =IF(B29="","",C$21*($C29/$C$33)*VLOOKUP(B29,'All data points & rules'!$P$2:$Q$11,2,0)) ->  | E29: =IF(B29="","",D$21*($C29/$C$33)*VLOOKUP(B29,'All data points & rules'!$P$2:$Q$11,2,0)) ->  | H29: 300000 | I29: 600000 | J29: 0.7001 | K29: 0.75009 | L29: 0.0048 | M29: 0.0048 | O29: 300000 | P29: 600000 | Q29: 0 | R29: 0.60009 | S29: 0.0028 | T29: =S29 -> 0.0028
A30: Sec 4 | B30: =IF('Customer view page'!G97="","",VLOOKUP('Customer view page'!G97,'Zoning & Postcodes'!$B:$C,2,0)) ->  | C30: ='Customer view page'!E97 -> 0 | D30: =IF(B30="","",C$21*($C30/$C$33)*VLOOKUP(B30,'All data points & rules'!$P$2:$Q$11,2,0)) ->  | E30: =IF(B30="","",D$21*($C30/$C$33)*VLOOKUP(B30,'All data points & rules'!$P$2:$Q$11,2,0)) ->  | H30: 300000 | I30: 600000 | J30: 0.7501 | K30: 0.80009 | L30: 0.0053 | M30: 0.0052 | O30: 300000 | P30: 600000 | Q30: 0.6001 | R30: 0.70009 | S30: 0.0037 | T30: =S30 -> 0.0037
A31: Sec 5 | B31: =IF('Customer view page'!G98="","",VLOOKUP('Customer view page'!G98,'Zoning & Postcodes'!$B:$C,2,0)) ->  | C31: ='Customer view page'!E98 -> 0 | D31: =IF(B31="","",C$21*($C31/$C$33)*VLOOKUP(B31,'All data points & rules'!$P$2:$Q$11,2,0)) ->  | E31: =IF(B31="","",D$21*($C31/$C$33)*VLOOKUP(B31,'All data points & rules'!$P$2:$Q$11,2,0)) ->  | H31: 300000 | I31: 600000 | J31: 0.8001 | K31: 0.81009 | L31: 0.006 | M31: 0.0059 | O31: 300000 | P31: 600000 | Q31: 0.7001 | R31: 0.80009 | S31: 0.0043 | T31: 0.0043
A32: Sec 6 | B32: =IF('Customer view page'!G99="","",VLOOKUP('Customer view page'!G99,'Zoning & Postcodes'!$B:$C,2,0)) ->  | C32: ='Customer view page'!E99 -> 0 | D32: =IF(B32="","",C$21*($C32/$C$33)*VLOOKUP(B32,'All data points & rules'!$P$2:$Q$11,2,0)) ->  | E32: =IF(B32="","",D$21*($C32/$C$33)*VLOOKUP(B32,'All data points & rules'!$P$2:$Q$11,2,0)) ->  | H32: 300000 | I32: 600000 | J32: 0.8101 | K32: 0.82009 | L32: 0.006 | M32: 0.0059 | O32: 300000 | P32: 600000 | Q32: 0.8001 | R32: 0.81009 | S32: 0.0058 | T32: 0.0058
C33: =SUM(C27:C32) -> 0 | H33: 300000 | I33: 600000 | J33: 0.8201 | K33: 0.83009 | L33: 0.0092 | M33: 0.009 | O33: 300000 | P33: 600000 | Q33: 0.8101 | R33: 0.82009 | S33: 0.0058 | T33: 0.0058
H34: 300000 | I34: 600000 | J34: 0.8301 | K34: 0.84009 | L34: 0.0092 | M34: 0.009 | O34: 300000 | P34: 600000 | Q34: =Q33+0.01 -> 0.8201 | R34: =R33+0.01 -> 0.83009 | S34: 0.0087 | T34: 0.0087
B35: LMI to use | C35: =IF(B7>'All data points & rules'!B9,IF(B2=1,C24,IF(B3=1,D24,IF(B4=1,E24,0))),0) -> 0 | H35: 300000 | I35: 600000 | J35: 0.8401 | K35: 0.85009 | L35: 0.0121 | M35: 0.0119 | O35: 300000 | P35: 600000 | Q35: =Q34+0.01 -> 0.8301 | R35: 0.84009 | S35: 0.0087 | T35: 0.0087
H36: 300000 | I36: 600000 | J36: 0.8501 | K36: 0.86009 | L36: 0.0121 | M36: 0.0119 | O36: 300000 | P36: 600000 | Q36: 0.8401 | R36: 0.85009 | S36: 0.011 | T36: 0.011
H37: 300000 | I37: 600000 | J37: 0.8601 | K37: 0.87009 | L37: 0.0137 | M37: 0.0135 | O37: 300000 | P37: 600000 | Q37: 0.8501 | R37: 0.86009 | S37: 0.011 | T37: 0.011
H38: 300000 | I38: 600000 | J38: 0.8701 | K38: 0.88009 | L38: 0.0137 | M38: 0.0135 | O38: 300000 | P38: 600000 | Q38: 0.8601 | R38: 0.87009 | S38: 0.0131 | T38: 0.0131
H39: 300000 | I39: 600000 | J39: 0.8801 | K39: 0.89009 | L39: 0.0193 | M39: 0.019 | O39: 300000 | P39: 600000 | Q39: 0.8701 | R39: 0.88009 | S39: 0.0131 | T39: 0.0131
H40: 300000 | I40: 600000 | J40: 0.8901 | K40: 0.90009 | L40: 0.021 | M40: 0.0207 | O40: 300000 | P40: 600000 | Q40: 0.8801 | R40: 0.89009 | S40: 0.0178 | T40: 0.0178
H41: 300000 | I41: 600000 | J41: 0.9001 | K41: 0.91009 | L41: 0.0274 | M41: 0.0269 | O41: 300000 | P41: 600000 | Q41: 0.8901 | R41: 0.90009 | S41: 0.0178 | T41: 0.0178
H42: 300000 | I42: 600000 | J42: 0.9101 | K42: 0.92009 | L42: 0.0274 | M42: 0.0269 | O42: 300000 | P42: 600000 | Q42: 0.9001 | R42: 0.91009 | S42: 0.0244 | T42: 0.0244
H43: 300000 | I43: 600000 | J43: 0.9201 | K43: 0.93009 | L43: 0.0309 | M43: 0.0304 | O43: 300000 | P43: 600000 | Q43: 0.9101 | R43: 0.92009 | S43: 0.0244 | T43: 0.0244
H44: 300000 | I44: 600000 | J44: 0.9301 | K44: 0.94009 | L44: 0.0309 | M44: 0.0304 | O44: 300000 | P44: 600000 | Q44: 0.9201 | R44: 0.93009 | S44: 0.0274 | T44: 0.0274
H45: 300000 | I45: 600000 | J45: 0.9401 | K45: 0.95009 | L45: 0.0341 | M45: 0.0336 | O45: 300000 | P45: 600000 | Q45: 0.9301 | R45: 0.94009 | S45: 0.0274 | T45: 0.0274
J46: $600,001 to $750,000 | O46: 300000 | P46: 600000 | Q46: 0.9401 | R46: 0.95009 | S46: 0.0304 | T46: 0.0304
H47: 600000 | I47: 750000 | J47: 0 | K47: 0.60009 | L47: 0.0041 | M47: 0.0041 | O47: 300000 | P47: 600000 | Q47: 0.9501 | R47: 0.96009 | S47: 0 | T47: 0
H48: 600000 | I48: 750000 | J48: 0.6001 | K48: 0.65009 | L48: 0.0053 | M48: 0.0052 | O48: 300000 | P48: 600000 | Q48: 0.9601 | R48: 0.97009 | S48: 0 | T48: 0
H49: 600000 | I49: 750000 | J49: 0.6501 | K49: 0.70009 | L49: 0.006 | M49: 0.0059 | O49: 300000 | P49: 600000 | Q49: 0.9701 | R49: 0.98009 | S49: 0 | T49: 0
H50: 600000 | I50: 750000 | J50: 0.7001 | K50: 0.75009 | L50: 0.0081 | M50: 0.008 | O50: 300000 | P50: 600000 | Q50: 0.9801 | R50: 0.99009 | S50: 0 | T50: 0
H51: 600000 | I51: 750000 | J51: 0.7501 | K51: 0.80009 | L51: 0.0088 | M51: 0.0086 | O51: 300000 | P51: 600000 | Q51: =Q50+0.01 -> 0.9901 | R51: 1 | S51: 0 | T51: 0
H52: 600000 | I52: 750000 | J52: 0.8001 | K52: 0.81009 | L52: 0.0096 | M52: 0.0095 | Q52: $600,000 to 1,000,000
H53: 600000 | I53: 750000 | J53: 0.8101 | K53: 0.82009 | L53: 0.0096 | M53: 0.0095 | O53: 600000 | P53: 1000000 | Q53: 0 | R53: 0.60009 | S53: 0.0051 | T53: =S53 -> 0.0051
H54: 600000 | I54: 750000 | J54: 0.8201 | K54: 0.83009 | L54: 0.0113 | M54: 0.0111 | O54: 600000 | P54: 1000000 | Q54: 0.6001 | R54: 0.70009 | S54: 0.0056 | T54: =S54 -> 0.0056
H55: 600000 | I55: 750000 | J55: 0.8301 | K55: 0.84009 | L55: 0.012 | M55: 0.0118 | O55: 600000 | P55: 1000000 | Q55: 0.7001 | R55: 0.80009 | S55: 0.0064 | T55: 0.0064
H56: 600000 | I56: 750000 | J56: 0.8401 | K56: 0.85009 | L56: 0.0138 | M56: 0.0136 | O56: 600000 | P56: 1000000 | Q56: 0.8001 | R56: 0.81009 | S56: 0.008 | T56: 0.008
H57: 600000 | I57: 750000 | J57: 0.8501 | K57: 0.86009 | L57: 0.0151 | M57: 0.0149 | O57: 600000 | P57: 1000000 | Q57: =Q56+0.01 -> 0.8101 | R57: =R56+0.01 -> 0.82009 | S57: 0.008 | T57: 0.008
H58: 600000 | I58: 750000 | J58: 0.8601 | K58: 0.87009 | L58: 0.0167 | M58: 0.0165 | O58: 600000 | P58: 1000000 | Q58: =Q57+0.01 -> 0.8201 | R58: =R57+0.01 -> 0.83009 | S58: 0.0112 | T58: 0.0112
H59: 600000 | I59: 750000 | J59: 0.8701 | K59: 0.88009 | L59: 0.0177 | M59: 0.0174 | O59: 600000 | P59: 1000000 | Q59: =Q58+0.01 -> 0.8301 | R59: 0.84009 | S59: 0.0112 | T59: 0.0112
H60: 600000 | I60: 750000 | J60: 0.8801 | K60: 0.89009 | L60: 0.0226 | M60: 0.0222 | O60: 600000 | P60: 1000000 | Q60: 0.8401 | R60: 0.85009 | S60: 0.0139 | T60: 0.0139
H61: 600000 | I61: 750000 | J61: 0.8901 | K61: 0.90009 | L61: 0.0268 | M61: 0.0264 | O61: 600000 | P61: 1000000 | Q61: 0.8501 | R61: 0.86009 | S61: 0.0139 | T61: 0.0139
H62: 600000 | I62: 750000 | J62: 0.9001 | K62: 0.91009 | L62: 0.037 | M62: 0.0364 | O62: 600000 | P62: 1000000 | Q62: 0.8601 | R62: 0.87009 | S62: 0.0167 | T62: 0.0167
H63: 600000 | I63: 750000 | J63: 0.9101 | K63: 0.92009 | L63: 0.0384 | M63: 0.0378 | O63: 600000 | P63: 1000000 | Q63: 0.8701 | R63: 0.88009 | S63: 0.0167 | T63: 0.0167
H64: 600000 | I64: 750000 | J64: 0.9201 | K64: 0.93009 | L64: 0.0399 | M64: 0.0392 | O64: 600000 | P64: 1000000 | Q64: 0.8801 | R64: 0.89009 | S64: 0.0224 | T64: 0.0224
H65: 600000 | I65: 750000 | J65: 0.9301 | K65: 0.94009 | L65: 0.0436 | M65: 0.0429 | O65: 600000 | P65: 1000000 | Q65: 0.8901 | R65: 0.90009 | S65: 0.0224 | T65: 0.0224
H66: 600000 | I66: 750000 | J66: 0.9401 | K66: 0.95009 | L66: 0.0458 | M66: 0.0451 | O66: 600000 | P66: 1000000 | Q66: 0.9001 | R66: 0.91009 | S66: 0.0368 | T66: 0.0368
J67: $750,001 to $1.000,000 | O67: 600000 | P67: 1000000 | Q67: 0.9101 | R67: 0.92009 | S67: 0.0368 | T67: 0.0368
H68: 750000 | I68: 1000000 | J68: 0 | K68: 0.60009 | L68: 0.0041 | M68: 0.0041 | O68: 600000 | P68: 1000000 | Q68: 0.9201 | R68: 0.93009 | S68: 0.0396 | T68: 0.0396
H69: 750000 | I69: 1000000 | J69: 0.6001 | K69: 0.65009 | L69: 0.0053 | M69: 0.0052 | O69: 600000 | P69: 1000000 | Q69: 0.9301 | R69: 0.94009 | S69: 0.0396 | T69: 0.0396
H70: 750000 | I70: 1000000 | J70: 0.6501 | K70: 0.70009 | L70: 0.006 | M70: 0.0059 | O70: 600000 | P70: 1000000 | Q70: 0.9401 | R70: 0.95009 | S70: 0.0418 | T70: 0.0418
H71: 750000 | I71: 1000000 | J71: 0.7001 | K71: 0.75009 | L71: 0.0081 | M71: 0.008 | O71: 600000 | P71: 1000000 | Q71: 0.9501 | R71: 0.96009 | S71: 0 | T71: 0
H72: 750000 | I72: 1000000 | J72: 0.7501 | K72: 0.80009 | L72: 0.0088 | M72: 0.0086 | O72: 600000 | P72: 1000000 | Q72: 0.9601 | R72: 0.97009 | S72: 0 | T72: 0
H73: 750000 | I73: 1000000 | J73: 0.8001 | K73: 0.81009 | L73: 0.0096 | M73: 0.0095 | O73: 600000 | P73: 1000000 | Q73: 0.9701 | R73: 0.98009 | S73: 0 | T73: 0
H74: 750000 | I74: 1000000 | J74: 0.8101 | K74: 0.82009 | L74: 0.0096 | M74: 0.0095 | O74: 600000 | P74: 1000000 | Q74: 0.9801 | R74: 0.99009 | S74: 0 | T74: 0
H75: 750000 | I75: 1000000 | J75: 0.8201 | K75: 0.83009 | L75: 0.0113 | M75: 0.0111 | O75: 600000 | P75: 1000000 | Q75: =Q74+0.01 -> 0.9901 | R75: 1 | S75: 0 | T75: 0
H76: 750000 | I76: 1000000 | J76: 0.8301 | K76: 0.84009 | L76: 0.012 | M76: 0.0118 | Q76: $750,000 to 1,000,000
H77: 750000 | I77: 1000000 | J77: 0.8401 | K77: 0.85009 | L77: 0.0138 | M77: 0.0136 | P77: Not used | Q77: 0 | R77: 0.60009 | S77: 0 | T77: =S77 -> 0
H78: 750000 | I78: 1000000 | J78: 0.8501 | K78: 0.86009 | L78: 0.0151 | M78: 0.0149 | P78: Not used | Q78: 0.6001 | R78: 0.70009 | S78: 0 | T78: =S78 -> 0
H79: 750000 | I79: 1000000 | J79: 0.8601 | K79: 0.87009 | L79: 0.0167 | M79: 0.0165 | P79: Not used | Q79: 0.7001 | R79: 0.80009 | S79: 0 | T79: 0
H80: 750000 | I80: 1000000 | J80: 0.8701 | K80: 0.88009 | L80: 0.0177 | M80: 0.0174 | P80: Not used | Q80: 0.8001 | R80: 0.81009 | S80: 0 | T80: 0
H81: 750000 | I81: 1000000 | J81: 0.8801 | K81: 0.89009 | L81: 0.0226 | M81: 0.0222 | P81: Not used | Q81: =Q80+0.01 -> 0.8101 | R81: =R80+0.01 -> 0.82009 | S81: 0 | T81: 0
H82: 750000 | I82: 1000000 | J82: 0.8901 | K82: 0.90009 | L82: 0.0268 | M82: 0.0264 | P82: Not used | Q82: =Q81+0.01 -> 0.8201 | R82: 0.83009 | S82: 0 | T82: 0
H83: 750000 | I83: 1000000 | J83: 0.9001 | K83: 0.91009 | L83: 0.037 | M83: 0.0364 | P83: Not used | Q83: 0.8301 | R83: 0.84009 | S83: 0 | T83: 0
H84: 750000 | I84: 1000000 | J84: 0.9101 | K84: 0.92009 | L84: 0.0384 | M84: 0.0378 | P84: Not used | Q84: 0.8401 | R84: 0.85009 | S84: 0 | T84: 0
H85: 750000 | I85: 1000000 | J85: 0.9201 | K85: 0.93009 | L85: 0.0399 | M85: 0.0392 | P85: Not used | Q85: 0.8501 | R85: 0.86009 | S85: 0 | T85: 0
H86: 750000 | I86: 1000000 | J86: 0.9301 | K86: 0.94009 | L86: 0.0436 | M86: 0.0429 | P86: Not used | Q86: 0.8601 | R86: 0.87009 | S86: 0 | T86: 0
H87: 750000 | I87: 1000000 | J87: 0.9401 | K87: 0.95009 | L87: 0.0458 | M87: 0.0451 | P87: Not used | Q87: 0.8701 | R87: 0.88009 | S87: 0 | T87: 0
J88: $1.000,001 to $1.500,000 | P88: Not used | Q88: 0.8801 | R88: 0.89009 | S88: 0 | T88: 0
H89: 1000000 | I89: 1500000 | J89: 0 | K89: 0.60009 | L89: 0.0046 | M89: 0.0045 | P89: Not used | Q89: 0.8901 | R89: 0.90009 | S89: 0 | T89: 0
H90: 1000000 | I90: 1500000 | J90: 0.6001 | K90: 0.65009 | L90: 0.0059 | M90: 0.0058 | P90: Not used | Q90: 0.9001 | R90: 0.91009 | S90: 0 | T90: 0
H91: 1000000 | I91: 1500000 | J91: 0.6501 | K91: 0.70009 | L91: 0.0067 | M91: 0.0066 | P91: Not used | Q91: 0.9101 | R91: 0.92009 | S91: 0 | T91: 0
H92: 1000000 | I92: 1500000 | J92: 0.7001 | K92: 0.75009 | L92: 0.009 | M92: 0.0088 | P92: Not used | Q92: 0.9201 | R92: 0.93009 | S92: 0 | T92: 0
H93: 1000000 | I93: 1500000 | J93: 0.7501 | K93: 0.80009 | L93: 0.0097 | M93: 0.0095 | P93: Not used | Q93: 0.9301 | R93: 0.94009 | S93: 0 | T93: 0
H94: 1000000 | I94: 1500000 | J94: 0.8001 | K94: 0.81009 | L94: 0.0106 | M94: 0.0104 | P94: Not used | Q94: 0.9401 | R94: 0.95009 | S94: 0 | T94: 0
H95: 1000000 | I95: 1500000 | J95: 0.8101 | K95: 0.82009 | L95: 0.0106 | M95: 0.0104 | P95: Not used | Q95: $1,000,001 to $1,500,000
H96: 1000000 | I96: 1500000 | J96: 0.8201 | K96: 0.83009 | L96: 0.0124 | M96: 0.0122 | P96: Not used | Q96: 0 | R96: 0.70009 | S96: 0 | T96: 0
H97: 1000000 | I97: 1500000 | J97: 0.8301 | K97: 0.84009 | L97: 0.0132 | M97: 0.013 | P97: Not used | Q97: 0.7001 | R97: 0.75009 | S97: 0 | T97: 0
H98: 1000000 | I98: 1500000 | J98: 0.8401 | K98: 0.85009 | L98: 0.0152 | M98: 0.0149 | P98: Not used | Q98: =Q97+0.05 -> 0.7501 | R98: =R97+0.05 -> 0.80009 | S98: 0 | T98: 0
H99: 1000000 | I99: 1500000 | J99: 0.8501 | K99: 0.86009 | L99: 0.0166 | M99: 0.0163 | P99: Not used | Q99: 0.8001 | R99: 0.81009 | S99: 0 | T99: 0
H100: 1000000 | I100: 1500000 | J100: 0.8601 | K100: 0.87009 | L100: 0.0184 | M100: 0.0181 | P100: Not used | Q100: =Q99+0.01 -> 0.8101 | R100: =R99+0.01 -> 0.82009 | S100: 0 | T100: 0
H101: 1000000 | I101: 1500000 | J101: 0.8701 | K101: 0.88009 | L101: 0.0195 | M101: 0.0192 | P101: Not used | Q101: =Q100+0.01 -> 0.8201 | R101: 0.83009 | S101: 0 | T101: 0
H102: 1000000 | I102: 1500000 | J102: 0.8801 | K102: 0.89009 | L102: 0.0248 | M102: 0.0244 | P102: Not used | Q102: 0.8301 | R102: 0.84009 | S102: 0 | T102: 0
H103: 1000000 | I103: 1500000 | J103: 0.8901 | K103: 0.90009 | L103: 0.0295 | M103: 0.029 | P103: Not used | Q103: 0.8401 | R103: 0.85009 | S103: 0 | T103: 0
H104: 1000000 | I104: 1500000 | J104: 0.9001 | K104: 0.91009 | L104: 0.0406 | M104: 0.04 | P104: Not used | Q104: 0.8501 | R104: 0.86009 | S104: 0 | T104: 0
H105: 1000000 | I105: 1500000 | J105: 0.9101 | K105: 0.92009 | L105: 0.0423 | M105: 0.0416 | P105: Not used | Q105: 0.8601 | R105: 0.87009 | S105: 0 | T105: 0
H106: 1000000 | I106: 1500000 | J106: 0.9201 | K106: 0.93009 | L106: 0.0439 | M106: 0.0432 | P106: Not used | Q106: 0.8701 | R106: 0.88009 | S106: 0 | T106: 0
H107: 1000000 | I107: 1500000 | J107: 0.9301 | K107: 0.94009 | L107: 0.048 | M107: 0.0473 | P107: Not used | Q107: 0.8801 | R107: 0.89009 | S107: 0 | T107: 0
H108: 1000000 | I108: 1500000 | J108: 0.9401 | K108: 0.95009 | L108: 0.0504 | M108: 0.0496 | P108: Not used | Q108: 0.8901 | R108: 0.90009 | S108: 0 | T108: 0
J109: $1.500,001 to $2.000,000 | P109: Not used | Q109: $1,500,001 to $2,000,000
H110: 1500000 | I110: 2000000 | J110: 0 | K110: 0.60009 | L110: 0.0046 | M110: 0.0045 | P110: Not used | Q110: 0 | R110: 0.70009 | S110: 0 | T110: 0
H111: 1500000 | I111: 2000000 | J111: 0.6001 | K111: 0.65009 | L111: 0.0059 | M111: 0.0058 | P111: Not used | Q111: 0.7001 | R111: 0.75009 | S111: 0 | T111: 0
H112: 1500000 | I112: 2000000 | J112: 0.6501 | K112: 0.70009 | L112: 0.0067 | M112: 0.0066 | P112: Not used | Q112: 0.7501 | R112: 0.80009 | S112: 0 | T112: 0
H113: 1500000 | I113: 2000000 | J113: 0.7001 | K113: 0.75009 | L113: 0.009 | M113: 0.0088 | P113: Not used | Q113: 0 | R113: 1 | S113: 0 | T113: 0
H114: 1500000 | I114: 2000000 | J114: 0.7501 | K114: 0.80009 | L114: 0.0097 | M114: 0.0095
H115: 1500000 | I115: 2000000 | J115: 0.8001 | K115: 0.81009 | L115: 0.0106 | M115: 0.0104
H116: 1500000 | I116: 2000000 | J116: 0.8101 | K116: 0.82009 | L116: 0.0106 | M116: 0.0104
H117: 1500000 | I117: 2000000 | J117: 0.8201 | K117: 0.83009 | L117: 0.0124 | M117: 0.0122
H118: 1500000 | I118: 2000000 | J118: 0.8301 | K118: 0.84009 | L118: 0.0132 | M118: 0.013
H119: 1500000 | I119: 2000000 | J119: 0.8401 | K119: 0.85009 | L119: 0.0152 | M119: 0.0149
H120: 1500000 | I120: 2000000 | J120: 0.8501 | K120: 0.86009 | L120: 0.0166 | M120: 0.0163
H121: 1500000 | I121: 2000000 | J121: 0.8601 | K121: 0.87009 | L121: 0.0184 | M121: 0.0181
H122: 1500000 | I122: 2000000 | J122: 0.8701 | K122: 0.88009 | L122: 0.0195 | M122: 0.0192
H123: 1500000 | I123: 2000000 | J123: 0.8801 | K123: 0.89009 | L123: 0.0248 | M123: 0.0244
H124: 1500000 | I124: 2000000 | J124: 0.8901 | K124: 0.90009 | L124: 0.0295 | M124: 0.029
H125: 1500000 | I125: 2000000 | J125: 0.9001 | K125: 0.91009 | L125: 0.0406 | M125: 0.04
H126: 1500000 | I126: 2000000 | J126: 0.9101 | K126: 0.92009 | L126: 0.0423 | M126: 0.0416
H127: 1500000 | I127: 2000000 | J127: 0.9201 | K127: 0.93009 | L127: 0.0439 | M127: 0.0432
H128: 1500000 | I128: 2000000 | J128: 0.9301 | K128: 0.94009 | L128: 0.048 | M128: 0.0473
H129: 1500000 | I129: 2000000 | J129: 0.9401 | K129: 0.95009 | L129: 0.0504 | M129: 0.0496
J130: $2.000,001 to $2.500,000
H131: 2000000 | I131: 2500000 | J131: 0 | K131: 0.60009 | L131: 0.0046 | M131: 0.0045
H132: 2000000 | I132: 2500000 | J132: 0.6001 | K132: 0.65009 | L132: 0.0059 | M132: 0.0058
H133: 2000000 | I133: 2500000 | J133: 0.6501 | K133: 0.70009 | L133: 0.0067 | M133: 0.0066
H134: 2000000 | I134: 2500000 | J134: 0.7001 | K134: 0.75009 | L134: 0.009 | M134: 0.0088
H135: 2000000 | I135: 2500000 | J135: 0.7501 | K135: 0.80009 | L135: 0.0097 | M135: 0.0095
H136: 2000000 | I136: 2500000 | J136: 0.8001 | K136: 0.81009 | L136: 0.0106 | M136: 0.0104
H137: 2000000 | I137: 2500000 | J137: 0.8101 | K137: 0.82009 | L137: 0.0106 | M137: 0.0104
H138: 2000000 | I138: 2500000 | J138: 0.8201 | K138: 0.83009 | L138: 0.0124 | M138: 0.0122
H139: 2000000 | I139: 2500000 | J139: 0.8301 | K139: 0.84009 | L139: 0.0132 | M139: 0.013
H140: 2000000 | I140: 2500000 | J140: 0.8401 | K140: 0.85009 | L140: 0.0152 | M140: 0.0149
H141: 2000000 | I141: 2500000 | J141: 0.8501 | K141: 0.86009 | L141: 0.0166 | M141: 0.0163
H142: 2000000 | I142: 2500000 | J142: 0.8601 | K142: 0.87009 | L142: 0.0184 | M142: 0.0181
H143: 2000000 | I143: 2500000 | J143: 0.8701 | K143: 0.88009 | L143: 0.0195 | M143: 0.0192
H144: 2000000 | I144: 2500000 | J144: 0.8801 | K144: 0.89009 | L144: 0.0248 | M144: 0.0244
H145: 2000000 | I145: 2500000 | J145: 0.8901 | K145: 0.90009 | L145: 0.0295 | M145: 0.029
H146: 2000000 | I146: 2500000 | J146: 0.9001 | K146: 0.91009 | L146: 0.0406 | M146: 0.04
H147: 2000000 | I147: 2500000 | J147: 0.9101 | K147: 0.92009 | L147: 0.0423 | M147: 0.0416
H148: 2000000 | I148: 2500000 | J148: 0.9201 | K148: 0.93009 | L148: 0.0439 | M148: 0.0432
H149: 2000000 | I149: 2500000 | J149: 0.9301 | K149: 0.94009 | L149: 0.048 | M149: 0.0473
H150: 2000000 | I150: 2500000 | J150: 0.9401 | K150: 0.95009 | L150: 0.0504 | M150: 0.0496

Sheet Zoning & Postcodes (hidden)
A1: Suburb | B1: PostCode | C1: State | D1: New zoning with old flag | E1: Metro_Flag | F1: New Zone | G1: Check | H1: Genworth restricted Postcode | J1: High density postcodes
A2: DARWIN | B2: 800 | C2: NT | D2: =MAX(F2-1,1) -> 2 | E2: 1 | F2: 3 | G2: 800 | H2: 2835 | J2: 800 | K2: NT | L2: Darwin
A3: ALAWA | B3: 810 | C3: NT | D3: =MAX(F3-1,1) -> 3 | E3: 1 | F3: 4 | G3: 810 | H3: 2880 | J3: 2000 | K3: NSW | L3: Sydney
A4: BRINKIN | B4: 810 | C4: NT | D4: 3 | E4: 1 | F4: 4 | G4: 810 | H4: 4413 | J4: 2008 | K4: NSW | L4: Chippendale
A5: CASUARINA | B5: 810 | C5: NT | D5: 3 | E5: 1 | F5: 4 | G5: 810 | H5: 4415 | J5: 2017 | K5: NSW | L5: Waterloo
A6: COCONUT GROVE | B6: 810 | C6: NT | D6: 3 | E6: 1 | F6: 4 | G6: 810 | H6: 4455 | J6: 2018 | K6: NSW | L6: Rosebery
A7: JINGILI | B7: 810 | C7: NT | D7: 3 | E7: 1 | F7: 4 | G7: 810 | H7: 4615 | J7: 2020 | K7: NSW | L7: Mascot
A8: LEE POINT | B8: 810 | C8: NT | D8: 3 | E8: 1 | F8: 4 | G8: 810 | H8: 4680 | J8: 2077 | K8: NSW | L8: Asquith
A9: LYONS | B9: 810 | C9: NT | D9: 3 | E9: 1 | F9: 4 | G9: 810 | H9: 4717 | J9: 2113 | K9: NSW | L9: Macquarie Park
A10: MILLNER | B10: 810 | C10: NT | D10: 3 | E10: 1 | F10: 4 | G10: 810 | H10: 4718 | J10: 2114 | K10: NSW | L10: Meadowbank
A11: MOIL | B11: 810 | C11: NT | D11: 3 | E11: 1 | F11: 4 | G11: 810 | H11: 4720 | J11: 2121 | K11: NSW | L11: Epping
A12: MUIRHEAD | B12: 810 | C12: NT | D12: 3 | E12: 1 | F12: 4 | G12: 810 | H12: 4721 | J12: 2127 | K12: NSW | L12: Newington
A13: NAKARA | B13: 810 | C13: NT | D13: 3 | E13: 1 | F13: 4 | G13: 810 | H13: 4723 | J13: 2138 | K13: NSW | L13: Rhodes
A14: NIGHTCLIFF | B14: 810 | C14: NT | D14: 3 | E14: 1 | F14: 4 | G14: 810 | H14: 4742 | J14: 2140 | K14: NSW | L14: Homebush
A15: RAPID CREEK | B15: 810 | C15: NT | D15: 3 | E15: 1 | F15: 4 | G15: 810 | H15: 4743 | J15: 2141 | K15: NSW | L15: Lidcombe
A16: TIWI | B16: 810 | C16: NT | D16: 3 | E16: 1 | F16: 4 | G16: 810 | H16: 4744 | J16: 2142 | K16: NSW | L16: Granville
A17: WAGAMAN | B17: 810 | C17: NT | D17: 3 | E17: 1 | F17: 4 | G17: 810 | H17: 4745 | J17: 2144 | K17: NSW | L17: Auburn
A18: WANGURI | B18: 810 | C18: NT | D18: 3 | E18: 1 | F18: 4 | G18: 810 | H18: 4746 | J18: 2145 | K18: NSW | L18: Constitution Hill
A19: ANULA | B19: 812 | C19: NT | D19: 3 | E19: 1 | F19: 4 | G19: 812 | H19: 4804 | J19: 2150 | K19: NSW | L19: Parramatta
A20: BUFFALO CREEK | B20: 812 | C20: NT | D20: 3 | E20: 1 | F20: 4 | G20: 812 | H20: 4805 | J20: 2155 | K20: NSW | L20: Beaumont Hills
A21: HOLMES | B21: 812 | C21: NT | D21: 3 | E21: 1 | F21: 4 | G21: 812 | H21: 4825 | J21: 2160 | K21: NSW | L21: Merrylands
A22: KARAMA | B22: 812 | C22: NT | D22: 3 | E22: 1 | F22: 4 | G22: 812 | H22: 4874 | J22: 2170 | K22: NSW | L22: Casula
A23: LEANYER | B23: 812 | C23: NT | D23: 3 | E23: 1 | F23: 4 | G23: 812 | H23: 5722 | J23: 2205 | K23: NSW | L23: Wolli Creek
A24: MALAK | B24: 812 | C24: NT | D24: 3 | E24: 1 | F24: 4 | G24: 812 | H24: 5725 | J24: 2220 | K24: NSW | L24: Hurstville
A25: MARRARA | B25: 812 | C25: NT | D25: 3 | E25: 1 | F25: 4 | G25: 812 | H25: 7467 | J25: 2750 | K25: NSW | L25: Penrith
A26: NORTHLAKES | B26: 812 | C26: NT | D26: 3 | E26: 1 | F26: 4 | G26: 812 | H26: 7469 | J26: 3000 | K26: VIC | L26: Melbourne
A27: SANDERSON | B27: 812 | C27: NT | D27: 3 | E27: 1 | F27: 4 | G27: 812 | H27: 6225 | J27: 3003 | K27: VIC | L27: West Melbourne
A28: WOODLEIGH GARDENS | B28: 812 | C28: NT | D28: 3 | E28: 1 | F28: 4 | G28: 812 | H28: 6429 | J28: 3004 | K28: VIC | L28: Melbourne
A29: WULAGI | B29: 812 | C29: NT | D29: 3 | E29: 1 | F29: 4 | G29: 812 | H29: 6430 | J29: 3006 | K29: VIC | L29: South Wharf
A30: BAGOT | B30: 820 | C30: NT | D30: 2 | E30: 1 | F30: 3 | G30: 820 | H30: 6432 | J30: 3008 | K30: VIC | L30: Docklands
A31: BAYVIEW | B31: 820 | C31: NT | D31: 2 | E31: 1 | F31: 3 | G31: 820 | H31: 6440 | J31: 3011 | K31: VIC | L31: Footscray
A32: CHARLES DARWIN | B32: 820 | C32: NT | D32: 2 | E32: 1 | F32: 3 | G32: 820 | H32: 6442 | J32: 3066 | K32: VIC | L32: Collingwood
A33: CHARLES DARWIN | B33: 820 | C33: NT | D33: 2 | E33: 0 | F33: 3 | G33: 820 | H33: 6713 | J33: 3122 | K33: VIC | L33: Hawthorn
A34: COONAWARRA | B34: 820 | C34: NT | D34: 2 | E34: 1 | F34: 3 | G34: 820 | H34: 6714 | J34: 3123 | K34: VIC | L34: Hawthorn East
A35: CULLEN BAY | B35: 820 | C35: NT | D35: 2 | E35: 1 | F35: 3 | G35: 820 | H35: 6718 | J35: 3128 | K35: VIC | L35: Box Hill
A36: DARWIN INTERNATIONAL AIRPORT | B36: 820 | C36: NT | D36: 2 | E36: 0 | F36: 3 | G36: 820 | H36: 6720 | J36: 3141 | K36: VIC | L36: South Yarra
A37: EAST POINT | B37: 820 | C37: NT | D37: 2 | E37: 1 | F37: 3 | G37: 820 | H37: 6721 | J37: 3145 | K37: VIC | L37: Malvern East
A38: EATON | B38: 820 | C38: NT | D38: 2 | E38: 1 | F38: 3 | G38: 820 | H38: 6722 | J38: 3169 | K38: VIC | L38: Clayton South
A39: FANNIE BAY | B39: 820 | C39: NT | D39: 2 | E39: 1 | F39: 3 | G39: 820 | H39: 6728 | J39: 3205 | K39: VIC | L39: South Melbourne
A40: LARRAKEYAH | B40: 820 | C40: NT | D40: 2 | E40: 1 | F40: 3 | G40: 820 | H40: 6751 | J40: 4000 | K40: QLD | L40: Brisbane City
A41: LUDMILLA | B41: 820 | C41: NT | D41: 2 | E41: 1 | F41: 3 | G41: 820 | H41: 6753 | J41: 4006 | K41: QLD | L41: Bowen Hills
A42: PARAP | B42: 820 | C42: NT | D42: 2 | E42: 1 | F42: 3 | G42: 820 | H42: 4715 | J42: 4101 | K42: QLD | L42: Highgate Hill
A43: RAAF BASE DARWIN | B43: 820 | C43: NT | D43: 2 | E43: 0 | F43: 3 | G43: 820 | H43: 4716 | J43: 4209 | K43: QLD | L43: Coomera
A44: STUART PARK | B44: 820 | C44: NT | D44: 2 | E44: 1 | F44: 3 | G44: 820 | H44: 4719 | J44: 4215 | K44: QLD | L44: Labrador
A45: THE GARDENS | B45: 820 | C45: NT | D45: 2 | E45: 1 | F45: 3 | G45: 820 | H45: 4722 | J45: 4217 | K45: QLD | L45: Benowa
A46: THE NARROWS | B46: 820 | C46: NT | D46: 2 | E46: 1 | F46: 3 | G46: 820 | H46: 4737 | J46: 4218 | K46: QLD | L46: Broadbeach
A47: WINNELLIE | B47: 820 | C47: NT | D47: 2 | E47: 1 | F47: 3 | G47: 820 | H47: 4741 | J47: 4870 | K47: QLD | L47: Cairns
A48: WOOLNER | B48: 820 | C48: NT | D48: 2 | E48: 1 | F48: 3 | G48: 820 | J48: 4879 | K48: QLD | L48: Clifton Beach
A49: ACACIA HILLS | B49: 822 | C49: NT | D49: 2 | E49: 0 | F49: 3 | G49: 822 | J49: 5000 | K49: SA | L49: Adelaide
A50: ANGURUGU | B50: 822 | C50: NT | D50: 2 | E50: 0 | F50: 3 | G50: 822 | J50: 6000 | K50: WA | L50: Perth
A51: ANINDILYAKWA | B51: 822 | C51: NT | D51: 2 | E51: 0 | F51: 3 | G51: 822 | J51: 6003 | K51: WA | L51: Highgate
A52: ANNIE RIVER | B52: 822 | C52: NT | D52: 2 | E52: 0 | F52: 3 | G52: 822 | J52: 6004 | K52: WA | L52: East Perth
A53: BATHURST ISLAND | B53: 822 | C53: NT | D53: 2 | E53: 0 | F53: 3 | G53: 822 | J53: 6005 | K53: WA | L53: Kings Park
A54: BEES CREEK | B54: 822 | C54: NT | D54: 2 | E54: 0 | F54: 3 | G54: 822 | J54: 6210 | K54: WA | L54: Mandurah
A55: BELYUEN | B55: 822 | C55: NT | D55: 2 | E55: 0 | F55: 3 | G55: 822 | J55: 7000 | K55: TAS | L55: Hobart
A56: BLACK JUNGLE | B56: 822 | C56: NT | D56: 2 | E56: 0 | F56: 3 | G56: 822 | J56: 2765 | K56: NSW | L56: Marsden Park
A57: BLACKMORE | B57: 822 | C57: NT | D57: 2 | E57: 0 | F57: 3 | G57: 822
A58: BORDER STORE | B58: 822 | C58: NT | D58: 2 | E58: 0 | F58: 3 | G58: 822
A59: BURRUNDIE | B59: 822 | C59: NT | D59: 2 | E59: 0 | F59: 3 | G59: 822
A60: BYNOE | B60: 822 | C60: NT | D60: 2 | E60: 0 | F60: 3 | G60: 822
A61: BYNOE HARBOUR | B61: 822 | C61: NT | D61: 2 | E61: 0 | F61: 3 | G61: 822
A62: CAMP CREEK | B62: 822 | C62: NT | D62: 2 | E62: 0 | F62: 3 | G62: 822
A63: CHANNEL ISLAND | B63: 822 | C63: NT | D63: 2 | E63: 0 | F63: 3 | G63: 822
A64: CHARLOTTE | B64: 822 | C64: NT | D64: 2 | E64: 0 | F64: 3 | G64: 822
A65: CLARAVALE | B65: 822 | C65: NT | D65: 2 | E65: 0 | F65: 3 | G65: 822
A66: COBOURG | B66: 822 | C66: NT | D66: 2 | E66: 0 | F66: 3 | G66: 822
A67: COLLETT CREEK | B67: 822 | C67: NT | D67: =MAX(F67-1,1) -> 2 | E67: 0 | F67: 3 | G67: 822
A68: COOMALIE CREEK | B68: 822 | C68: NT | D68: 2 | E68: 0 | F68: 3 | G68: 822
A69: COX PENINSULA | B69: 822 | C69: NT | D69: 2 | E69: 0 | F69: 3 | G69: 822
A70: CROKER ISLAND | B70: 822 | C70: NT | D70: 2 | E70: 0 | F70: 3 | G70: 822
A71: DALY | B71: 822 | C71: NT | D71: 2 | E71: 0 | F71: 3 | G71: 822
A72: DALY RIVER | B72: 822 | C72: NT | D72: 2 | E72: 0 | F72: 3 | G72: 822
A73: DARWIN RIVER DAM | B73: 822 | C73: NT | D73: 2 | E73: 0 | F73: 3 | G73: 822
A74: DELISSAVILLE | B74: 822 | C74: NT | D74: 2 | E74: 0 | F74: 3 | G74: 822
A75: DOUGLAS-DALY | B75: 822 | C75: NT | D75: 2 | E75: 0 | F75: 3 | G75: 822
A76: EAST ARM | B76: 822 | C76: NT | D76: 2 | E76: 0 | F76: 3 | G76: 822
A77: EAST ARNHEM | B77: 822 | C77: NT | D77: 2 | E77: 0 | F77: 3 | G77: 822
A78: ELRUNDIE | B78: 822 | C78: NT | D78: 2 | E78: 0 | F78: 3 | G78: 822
A79: EVA VALLEY | B79: 822 | C79: NT | D79: 2 | E79: 0 | F79: 3 | G79: 822
A80: FINNISS VALLEY | B80: 822 | C80: NT | D80: 2 | E80: 0 | F80: 3 | G80: 822
A81: FLEMING | B81: 822 | C81: NT | D81: 2 | E81: 0 | F81: 3 | G81: 822
A82: FLY CREEK | B82: 822 | C82: NT | D82: 2 | E82: 0 | F82: 3 | G82: 822
A83: FREDS PASS | B83: 822 | C83: NT | D83: 2 | E83: 0 | F83: 3 | G83: 822
A84: GALIWINKU | B84: 822 | C84: NT | D84: 2 | E84: 0 | F84: 3 | G84: 822
A85: GLYDE POINT | B85: 822 | C85: NT | D85: 2 | E85: 0 | F85: 3 | G85: 822
A86: GOULBURN | B86: 822 | C86: NT | D86: 2 | E86: 0 | F86: 3 | G86: 822
A87: GUNBALANYA | B87: 822 | C87: NT | D87: 2 | E87: 0 | F87: 3 | G87: 822
A88: GUNN POINT | B88: 822 | C88: NT | D88: 2 | E88: 0 | F88: 3 | G88: 822
A89: HAYES CREEK | B89: 822 | C89: NT | D89: 2 | E89: 0 | F89: 3 | G89: 822
A90: HIDDEN VALLEY | B90: 822 | C90: NT | D90: 2 | E90: 0 | F90: 3 | G90: 822
A91: HOTHAM | B91: 822 | C91: NT | D91: 2 | E91: 0 | F91: 3 | G91: 822
A92: HUGHES | B92: 822 | C92: NT | D92: 2 | E92: 0 | F92: 3 | G92: 822
A93: KAKADU | B93: 822 | C93: NT | D93: 2 | E93: 0 | F93: 3 | G93: 822
A94: KOOLPINYAH | B94: 822 | C94: NT | D94: 2 | E94: 0 | F94: 3 | G94: 822
A95: LAKE BENNETT | B95: 822 | C95: NT | D95: 2 | E95: 0 | F95: 3 | G95: 822
A96: LAMBELLS LAGOON | B96: 822 | C96: NT | D96: 2 | E96: 0 | F96: 3 | G96: 822
A97: LITCHFIELD PARK | B97: 822 | C97: NT | D97: 2 | E97: 0 | F97: 3 | G97: 822
A98: LIVINGSTONE | B98: 822 | C98: NT | D98: 2 | E98: 0 | F98: 3 | G98: 822
A99: LLOYD CREEK | B99: 822 | C99: NT | D99: 2 | E99: 0 | F99: 3 | G99: 822
A100: MANDORAH | B100: 822 | C100: NT | D100: 2 | E100: 0 | F100: 3 | G100: 822
A101: MANINGRIDA | B101: 822 | C101: NT | D101: 2 | E101: 0 | F101: 3 | G101: 822
A102: MARANUNGA | B102: 822 | C102: NT | D102: 2 | E102: 0 | F102: 3 | G102: 822
A103: MARGARET RIVER | B103: 822 | C103: NT | D103: 2 | E103: 0 | F103: 3 | G103: 822
A104: MARRAKAI | B104: 822 | C104: NT | D104: 2 | E104: 0 | F104: 3 | G104: 822
A105: MCMINNS LAGOON | B105: 822 | C105: NT | D105: 2 | E105: 0 | F105: 3 | G105: 822
A106: MICKETT CREEK | B106: 822 | C106: NT | D106: 2 | E106: 0 | F106: 3 | G106: 822
A107: MIDDLE POINT | B107: 822 | C107: NT | D107: 2 | E107: 0 | F107: 3 | G107: 822
A108: MILIKAPITI | B108: 822 | C108: NT | D108: 2 | E108: 0 | F108: 3 | G108: 822
A109: MILINGIMBI | B109: 822 | C109: NT | D109: 2 | E109: 0 | F109: 3 | G109: 822
A110: MILLWOOD | B110: 822 | C110: NT | D110: 2 | E110: 0 | F110: 3 | G110: 822
A111: MILYAKBURRA | B111: 822 | C111: NT | D111: 2 | E111: 0 | F111: 3 | G111: 822
A112: MINJILANG | B112: 822 | C112: NT | D112: 2 | E112: 0 | F112: 3 | G112: 822
A113: MOUNT BUNDEY | B113: 822 | C113: NT | D113: 2 | E113: 0 | F113: 3 | G113: 822
A114: MURRUMUJUK | B114: 822 | C114: NT | D114: 2 | E114: 0 | F114: 3 | G114: 822
A115: NAUIYU | B115: 822 | C115: NT | D115: 2 | E115: 0 | F115: 3 | G115: 822
A116: NEMARLUK | B116: 822 | C116: NT | D116: 2 | E116: 0 | F116: 3 | G116: 822
A117: NGANMARRIYANGA | B117: 822 | C117: NT | D117: 2 | E117: 0 | F117: 3 | G117: 822
A118: NGUIU | B118: 822 | C118: NT | D118: 2 | E118: 0 | F118: 3 | G118: 822
A119: NUMBULWAR | B119: 822 | C119: NT | D119: 2 | E119: 0 | F119: 3 | G119: 822
A120: NUMBURINDI | B120: 822 | C120: NT | D120: 2 | E120: 0 | F120: 3 | G120: 822
A121: OENPELLI | B121: 822 | C121: NT | D121: 2 | E121: 0 | F121: 3 | G121: 822
A122: PALUMPA | B122: 822 | C122: NT | D122: 2 | E122: 0 | F122: 3 | G122: 822
A123: PEPPIMENARTI | B123: 822 | C123: NT | D123: 2 | E123: 0 | F123: 3 | G123: 822
A124: PIRLANGIMPI | B124: 822 | C124: NT | D124: 2 | E124: 0 | F124: 3 | G124: 822
A125: POINT STEPHENS | B125: 822 | C125: NT | D125: 2 | E125: 0 | F125: 3 | G125: 822
A126: POINT STUART | B126: 822 | C126: NT | D126: 2 | E126: 0 | F126: 3 | G126: 822
A127: PULARUMPI | B127: 822 | C127: NT | D127: 2 | E127: 0 | F127: 3 | G127: 822
A128: RAKULA | B128: 822 | C128: NT | D128: 2 | E128: 0 | F128: 3 | G128: 822
A129: RAMINGINING | B129: 822 | C129: NT | D129: 2 | E129: 0 | F129: 3 | G129: 822
A130: ROBIN FALLS | B130: 822 | C130: NT | D130: 2 | E130: 0 | F130: 3 | G130: 822
A131: RUM JUNGLE | B131: 822 | C131: NT | D131: =MAX(F131-1,1) -> 2 | E131: 0 | F131: 3 | G131: 822
A132: SANDPALMS ROADHOUSE | B132: 822 | C132: NT | D132: 2 | E132: 0 | F132: 3 | G132: 822
A133: SOUTHPORT | B133: 822 | C133: NT | D133: 2 | E133: 0 | F133: 3 | G133: 822
A134: STAPLETON | B134: 822 | C134: NT | D134: 2 | E134: 0 | F134: 3 | G134: 822
A135: THAMARRURR | B135: 822 | C135: NT | D135: 2 | E135: 0 | F135: 3 | G135: 822
A136: TIPPERARY | B136: 822 | C136: NT | D136: 2 | E136: 0 | F136: 3 | G136: 822
A137: TIVENDALE | B137: 822 | C137: NT | D137: 2 | E137: 0 | F137: 3 | G137: 822
A138: TIWI ISLANDS | B138: 822 | C138: NT | D138: 2 | E138: 0 | F138: 3 | G138: 822
A139: TORTILLA FLATS | B139: 822 | C139: NT | D139: 2 | E139: 0 | F139: 3 | G139: 822
A140: TUMBLING WATERS | B140: 822 | C140: NT | D140: 2 | E140: 0 | F140: 3 | G140: 822
A141: UMBAKUMBA | B141: 822 | C141: NT | D141: 2 | E141: 0 | F141: 3 | G141: 822
A142: VERNON ISLANDS | B142: 822 | C142: NT | D142: 2 | E142: 0 | F142: 3 | G142: 822
A143: WADEYE | B143: 822 | C143: NT | D143: 2 | E143: 0 | F143: 3 | G143: 822
A144: WAGAIT BEACH | B144: 822 | C144: NT | D144: 2 | E144: 0 | F144: 3 | G144: 822
A145: WAK WAK | B145: 822 | C145: NT | D145: 2 | E145: 0 | F145: 3 | G145: 822
A146: WARRUWI | B146: 822 | C146: NT | D146: 2 | E146: 0 | F146: 3 | G146: 822
A147: WEDDELL | B147: 822 | C147: NT | D147: 2 | E147: 0 | F147: 3 | G147: 822
A148: WEST ARNHEM | B148: 822 | C148: NT | D148: 2 | E148: 0 | F148: 3 | G148: 822
A149: WICKHAM | B149: 822 | C149: NT | D149: 2 | E149: 0 | F149: 3 | G149: 822
A150: WISHART | B150: 822 | C150: NT | D150: 2 | E150: 0 | F150: 3 | G150: 822
A151: WOOLANING | B151: 822 | C151: NT | D151: 2 | E151: 0 | F151: 3 | G151: 822
A152: BERRIMAH | B152: 828 | C152: NT | D152: 3 | E152: 1 | F152: 4 | G152: 828
A153: KNUCKEY LAGOON | B153: 828 | C153: NT | D153: 3 | E153: 1 | F153: 4 | G153: 828
A154: HOLTZE | B154: 829 | C154: NT | D154: 3 | E154: 1 | F154: 4 | G154: 829
A155: PINELANDS | B155: 829 | C155: NT | D155: 3 | E155: 1 | F155: 4 | G155: 829
A156: ARCHER | B156: 830 | C156: NT | D156: 3 | E156: 1 | F156: 4 | G156: 830
A157: DRIVER | B157: 830 | C157: NT | D157: 3 | E157: 1 | F157: 4 | G157: 830
A158: DURACK | B158: 830 | C158: NT | D158: 3 | E158: 1 | F158: 4 | G158: 830
A159: FARRAR | B159: 830 | C159: NT | D159: 3 | E159: 1 | F159: 4 | G159: 830
A160: GRAY | B160: 830 | C160: NT | D160: 3 | E160: 1 | F160: 4 | G160: 830
A161: MARLOW LAGOON | B161: 830 | C161: NT | D161: 3 | E161: 1 | F161: 4 | G161: 830
A162: MOULDEN | B162: 830 | C162: NT | D162: 3 | E162: 1 | F162: 4 | G162: 830
A163: PALMERSTON | B163: 830 | C163: NT | D163: 3 | E163: 1 | F163: 4 | G163: 830
A164: SHOAL BAY | B164: 830 | C164: NT | D164: 3 | E164: 1 | F164: 4 | G164: 830
A165: WOODROFFE | B165: 830 | C165: NT | D165: 3 | E165: 1 | F165: 4 | G165: 830
A166: YARRAWONGA | B166: 830 | C166: NT | D166: 3 | E166: 1 | F166: 4 | G166: 830
A167: BAKEWELL | B167: 832 | C167: NT | D167: 1 | E167: 1 | F167: 2 | G167: 832
A168: BELLAMACK | B168: 832 | C168: NT | D168: 1 | E168: 1 | F168: 2 | G168: 832
A169: GUNN | B169: 832 | C169: NT | D169: 1 | E169: 1 | F169: 2 | G169: 832
A170: JOHNSTON | B170: 832 | C170: NT | D170: 1 | E170: 1 | F170: 2 | G170: 832
A171: MITCHELL | B171: 832 | C171: NT | D171: 1 | E171: 1 | F171: 2 | G171: 832
A172: ROSEBERY | B172: 832 | C172: NT | D172: 1 | E172: 1 | F172: 2 | G172: 832
A173: ROSEBERY HEIGHTS | B173: 832 | C173: NT | D173: 1 | E173: 1 | F173: 2 | G173: 832
A174: ZUCCOLI | B174: 832 | C174: NT | D174: 1 | E174: 1 | F174: 2 | G174: 832
A175: COOLALINGA | B175: 839 | C175: NT | D175: 3 | E175: 0 | F175: 4 | G175: 839
A176: HOWARD SPRINGS | B176: 835 | C176: NT | D176: 3 | E176: 0 | F176: 4 | G176: 835
A177: VIRGINIA | B177: 835 | C177: NT | D177: 3 | E177: 0 | F177: 4 | G177: 835
A178: GIRRAWEEN | B178: 836 | C178: NT | D178: 3 | E178: 0 | F178: 4 | G178: 836
A179: HERBERT | B179: 836 | C179: NT | D179: 3 | E179: 0 | F179: 4 | G179: 836
A180: HUMPTY DOO | B180: 836 | C180: NT | D180: 3 | E180: 0 | F180: 4 | G180: 836
A181: MANTON | B181: 837 | C181: NT | D181: 3 | E181: 0 | F181: 4 | G181: 837
A182: NOONAMAH | B182: 837 | C182: NT | D182: 3 | E182: 0 | F182: 4 | G182: 837
A183: BERRY SPRINGS | B183: 838 | C183: NT | D183: 3 | E183: 0 | F183: 4 | G183: 838
A184: DUNDEE BEACH | B184: 840 | C184: NT | D184: 2 | E184: 0 | F184: 3 | G184: 840
A185: DUNDEE BEACH | B185: 840 | C185: NT | D185: 2 | E185: 0 | F185: 3 | G185: 840
A186: DUNDEE FOREST | B186: 840 | C186: NT | D186: 2 | E186: 0 | F186: 3 | G186: 840
A187: DARWIN RIVER | B187: 841 | C187: NT | D187: 3 | E187: 0 | F187: 4 | G187: 841
A188: BATCHELOR | B188: 845 | C188: NT | D188: 2 | E188: 0 | F188: 3 | G188: 845
A189: ADELAIDE RIVER | B189: 846 | C189: NT | D189: 2 | E189: 0 | F189: 3 | G189: 846
A190: PINE CREEK | B190: 847 | C190: NT | D190: 2 | E190: 0 | F190: 3 | G190: 847
A191: COSSACK | B191: 850 | C191: NT | D191: 2 | E191: 0 | F191: 3 | G191: 850
A192: EMUNGALAN | B192: 850 | C192: NT | D192: 2 | E192: 0 | F192: 3 | G192: 850
A193: KATHERINE | B193: 850 | C193: NT | D193: 2 | E193: 0 | F193: 3 | G193: 850
A194: KATHERINE EAST | B194: 850 | C194: NT | D194: 2 | E194: 0 | F194: 3 | G194: 850
A195: KATHERINE SOUTH | B195: 850 | C195: NT | D195: =MAX(F195-1,1) -> 2 | E195: 0 | F195: 3 | G195: 850
A196: LANSDOWNE | B196: 850 | C196: NT | D196: 2 | E196: 0 | F196: 3 | G196: 850
A197: ARNOLD | B197: 852 | C197: NT | D197: 2 | E197: 0 | F197: 3 | G197: 852
A198: BAINES | B198: 852 | C198: NT | D198: 2 | E198: 0 | F198: 3 | G198: 852
A199: BARUNGA | B199: 852 | C199: NT | D199: 2 | E199: 0 | F199: 3 | G199: 852
A200: BESWICK | B200: 852 | C200: NT | D200: 2 | E200: 0 | F200: 3 | G200: 852
... 4300 more rows

Sheet Lists (hidden)
A1: Base salary | B1: Other income | C1: Payment Frequencies | D1: Choice | E1: Packages | F1: Splits | G1: Master Limit IO | H1: Purpose | I1: ProPack/AMPF/Select | J1: Repay Type | K1: No. applicants | L1: No. Securities | M1: Status | N1: Couples for App 1 | O1: Couples for App 2 | P1: Couples for App 3 | Q1: Couples for App 4 | R1: Couples for App 5 | S1: Foreign Income | T1: Rental Property Type | U1: Existing loan types | V1: Non-rental property | W1: SE applicant type | X1: SE trading entity type | Y1: SE payment types | Z1: Self-employed lists
A2: Full-time | B2: Full-time | C2: Annually | D2: Yes | E2: ProPack | F2: 1 | G2: Yes (5 yrs) | H2: Owner Occupied (purchase) | I2: Variable | J2: P&I | K2: 1 | L2: 1 | M2: Single | N2: Non-applicant | O2: If App 1 w/ App 2 | P2: If App 1 w/ App 3 | Q2: If App 1 w/ App 4 | R2: If App 1 w/ App 5 | S2: Tier 1 | T2: ='All data points & rules'!L3 -> Residential Investment (80%) | U2: Other Bank Home Loan | V2: Owner Occupied home | W2: Individual/s | X2: Sole Trader | Y2: Wages from this Trading Entity | Z2: Sole Trader | AA2: Company | AB2: Trust | AC2: Partnership
A3: Part-time | B3: Part-time | C3: Monthly | D3: No | E3: Basic | F3: 2 | G3: Yes (10 yrs) | H3: Owner Occupied (refi) | I3: 1 year fixed | J3: IO | K3: 2 | L3: 2 | M3: Couple | N3: Applicant 2 | O3: Applicant 1 | P3: Applicant 1 | Q3: Applicant 1 | R3: Applicant 1 | S3: Tier 2 | T3: ='All data points & rules'!L4 -> Service Apartment & Short Term (Airbnb, Stayz, etc) - Active Lease/Income Statements (65%) | U3: Existing AMP Bank Loan | V3: Second home | W3: Company | X3: Company | Y3: Other Allowable Payments from this Trading Entity | Z3: Wages from this Trading Entity | AA3: Wages from this Company | AB3: Wages from this Trust | AC3: Wages from this Partnership
A4: Casual | B4: Casual | C4: Bi-monthly | E4: Essential | F4: 3 | G4: No | H4: Investment (purchase) | I4: 2 year fixed | K4: 3 | L4: 3 | N4: Applicant 3 | T4: ='All data points & rules'!L5 -> Service Apartment & Short Term (Airbnb, Stayz, etc) - 3rd Party Estimate (80%) | U4: Personal Loan | V4: Personal/Other | W4: Trust | X4: Trust | Y4: No Payments from this Trading Entity | Z4: Other Allowable Payments from this Trading Entity | AA4: Directors Fees | AB4: Distribution from this Trust | AC4: Distribution from this Partnership
A5: Casual teacher | B5: Self-empl | C5: F/nightly | E5: AMP First | F5: 4 | H5: Investment (refi) | I5: 3 year fixed | K5: 4 | L5: 4 | N5: Applicant 4 | O5: If App 1 single or w/ non-applicant | P5: If App 2 w/ App 3 | Q5: If App 2 w/ App 4 | R5: If App 2 w/ App 5 | S5: Pre/Post tax | T5: ='All data points & rules'!L6 -> Commercial / Industrial / Non-Residential - Active Lease/Income Statements (65%) | U5: Personal/Equipment Loan - FIXED rate/payments for life of loan | X5: Partnership | Z5: No Payments from this Trading Entity | AA5: Other Allowable Payments from this Company | AB5: Allowable Distributions to Others | AC5: Other Allowable Distributions (eg. to Children)
B6: Overtime | C6: Weekly | E6: Select | F6: 5 | G6: ML IO | H6: Owner Occupied (other) | I6: 5 year fixed | K6: 5 | L6: 5 | N6: Applicant 5 | O6: Non-applicant | P6: Applicant 2 | Q6: Applicant 2 | R6: Applicant 2 | S6: Pre | AA6: N/A - See Separate Worksheet for this Company | AB6: Directors Fees (if Company Trustee) | AC6: Other Allowable Payments from Partnership
B7: Bonus | E7: Land | F7: 6 | G7: 5 | H7: Investment (other) | I7: Construction | L7: 6 | O7: Applicant 3 | S7: Post | AA7: No Payments from this Company | AB7: Other Allowable Payments from this Trust | AC7: No Payments from this Partnership
B8: Commission | F8: 7 | G8: 10 | I8: Line of Credit | N8: Single | O8: Applicant 4 | P8: Other | Q8: If App 3 w/ App 4 | R8: If App 3 w/ App 5 | AB8: N/A - See Separate Worksheet for this Trust
B9: Allowances | F9: 8 | N9: N/A | O9: Applicant 5 | P9: Non-applicant | Q9: Applicant 3 | R9: Applicant 3 | AB9: No Payments from this Trust
B10: Investment | F10: 9 | I10: Essential Product | P10: Applicant 4
B11: Child support | F11: 10 | I11: Variable | O11: If App 1 w/ App 3 | P11: Applicant 5 | Q11: Other | R11: If App 4 w/ App 5
B12: Superannuation | O12: Non-applicant | Q12: Non-applicant | R12: Applicant 4
I13: If Master Limit | O13: Applicant 4 | Q13: Applicant 5
A14: Income methods | I14: Line of Credit | O14: Applicant 5 | R14: Other | T14: Rental Location Discount
A15: PAYG income assessor | R15: Non-applicant | T15: ='All data points & rules'!L14 -> Domestic (100%)
A16: Manually enter | I16: IO years | O16: If App 1 w/ App 4 | T16: ='All data points & rules'!L15 -> Foreign Tier 1 (80%)
A17: Mix of both | I17: 1 | O17: Non-applicant | T17: ='All data points & rules'!L16 -> Foreign Tier 2 (50%)
I18: 2 | O18: Applicant 3
I19: 3 | O19: Applicant 5
I20: 4
I21: 5 | O21: If App 1 w/ App 5
O22: Non-applicant
I23: Basic | O23: Applicant 3
I24: Variable | O24: Applicant 4
I25: 1 year fixed
I26: 2 year fixed
I27: 3 year fixed
I28: 5 year fixed
I29: Construction
I39: Result
I40: PASSED
I41: FAILED
I42: UNFINISHED

Sheet Pay periods (hidden)
A1: Monthly calculation e.g. | G1: Starting month
A2: Start | B2: End | C2: Pay periods | G2: 1 | H2: 2 | I2: 3 | J2: 4 | K2: 5 | L2: 6 | M2: 7 | N2: 8 | O2: 9 | P2: 10 | Q2: 11 | R2: 12
A3: 2022-01-01 | B3: 2022-04-29 | C3: =VLOOKUP(MONTH(B3),$F$2:$R$14,MONTH(A3)+1,0) -> 4 | E3: Pay month | F3: 1 | G3: 1 | H3: 12 | I3: 11 | J3: 10 | K3: 9 | L3: 8 | M3: 7 | N3: 6 | O3: 5 | P3: 4 | Q3: 3 | R3: 2
F4: 2 | G4: 2 | H4: 1 | I4: 12 | J4: 11 | K4: 10 | L4: 9 | M4: 8 | N4: 7 | O4: 6 | P4: 5 | Q4: 4 | R4: 3
F5: 3 | G5: 3 | H5: 2 | I5: 1 | J5: 12 | K5: 11 | L5: 10 | M5: 9 | N5: 8 | O5: 7 | P5: 6 | Q5: 5 | R5: 4
F6: 4 | G6: 4 | H6: 3 | I6: 2 | J6: 1 | K6: 12 | L6: 11 | M6: 10 | N6: 9 | O6: 8 | P6: 7 | Q6: 6 | R6: 5
F7: 5 | G7: 5 | H7: 4 | I7: 3 | J7: 2 | K7: 1 | L7: 12 | M7: 11 | N7: 10 | O7: 9 | P7: 8 | Q7: 7 | R7: 6
F8: 6 | G8: 6 | H8: 5 | I8: 4 | J8: 3 | K8: 2 | L8: 1 | M8: 12 | N8: 11 | O8: 10 | P8: 9 | Q8: 8 | R8: 7
F9: 7 | G9: 7 | H9: 6 | I9: 5 | J9: 4 | K9: 3 | L9: 2 | M9: 1 | N9: 12 | O9: 11 | P9: 10 | Q9: 9 | R9: 8
F10: 8 | G10: 8 | H10: 7 | I10: 6 | J10: 5 | K10: 4 | L10: 3 | M10: 2 | N10: 1 | O10: 12 | P10: 11 | Q10: 10 | R10: 9
F11: 9 | G11: 9 | H11: 8 | I11: 7 | J11: 6 | K11: 5 | L11: 4 | M11: 3 | N11: 2 | O11: 1 | P11: 12 | Q11: 11 | R11: 10
F12: 10 | G12: 10 | H12: 9 | I12: 8 | J12: 7 | K12: 6 | L12: 5 | M12: 4 | N12: 3 | O12: 2 | P12: 1 | Q12: 12 | R12: 11
F13: 11 | G13: 11 | H13: 10 | I13: 9 | J13: 8 | K13: 7 | L13: 6 | M13: 5 | N13: 4 | O13: 3 | P13: 2 | Q13: 1 | R13: 12
F14: 12 | G14: 12 | H14: 11 | I14: 10 | J14: 9 | K14: 8 | L14: 7 | M14: 6 | N14: 5 | O14: 4 | P14: 3 | Q14: 2 | R14: 1

Sheet BPMS
A1: Issue: BPMS does not allow macro-enabled workbooks to be attached (xlsm). Workaround: save a copy of this workbook as an xlsx version. This means macros will no longer work, however all sheet tabs will be visible, with data still able to be entered/altered. If, for some reason, a macro is required then the original xlsm workbook will need to be used. Instructions 1) Save a copy of the workbook as 'Excel Workbook (Xslx)' type. You may wish to add 'BPMS' to the end of its name 2) When prompted, click 'No' 3) Upload new workbook to BPMS. If required to download again to change details, this should work fine given all tabs are now open. Needing to add or remove applicants will require you to re-use the original xlsm file
